Workbook

Sheet Notes
A1: ApirineMoneyFlowOscillator.xlsm
A2: Coded beginning 2015-Sep-06 by Ronald McAllister (rpmac_xltt@sprynet.com)
A4: This Workbook demonstrates an EXCEL version of the ideas presented
A5: by Vitali Alpirine in an article titled "Average Percentage True Range"
A6: which appears in the November 2015 issue of
A7: "Technical Analysis of Stocks and Commodities" magazine.
A9: CalculationsAndCharts construction Notes:
B10: To approximate figure 2 from the article: use data for Symbol ^RUT, plot dates 7/14/1999 to 7/17/2000.
A12: Development Notes:
C13: This workbook contains and uses VBA macros and VBA Class structures.
C14: Input Data
C15: The data in this workbook is sorted date descending (most recent date at the top). All formulas and
C16: VBA routines are built accordingly.
A18: Calculation and Chart Worksheet Usage Comments:
C19: In General, Items in Bolded BLUE are items you may freely change to play what-if games.
C20: Be sure to have a backup copy of the spreadsheet before you alter anything else.
A22: New Features as of the October 2015 TradersTips Template
B23: Improved automation: changes to any of the following will automatically initiate calculations appropriate to reflect a change.
C24: Changing either of cells A11 (pan) or A12 (zoom) will automatically initiate the same chart sizing macros that the manual
C25: "Set Chart" button uses.
B26: Added fail-over capability to attempt to retrieve company name and basic last trade info via screen scraper logic
C27: using the Yahoo stock Summary page. Until now, the way I have been doing this reports that ^DJI is Not Found!
C28: when there is history available. Will still report correctly for a truly Not Found Symbol
C29: Minor drawbacks to the screen scrape of the stock summary page include:
C30: Only date on the page is the date we request the page. I will use this date for now as the last trade date…
C31: but the user should be aware that this is not necessarily the correct date if you are making the inquiry on
C32: a weekend or market holiday.
C33: This is not a big issue as the last real trade will already be accounted for in the history download by about 6 pm on the real date of the trade.
C34: Note: Failover is only used if what I have been doing all along reports a not found.

Sheet InputPriceData
A1: Russell 2000 (^RUT) -WCB (Daily)
A2: Last Trade: | B2: 2015-09-09 | C2: 1162.720581 | D2: 1170.204712 | E2: 1155.904419 | F2: 1158.366333 | G2: 0 | H2: 11:10am | I2: -3.396606 | J2: =IFERROR(OFFSET(J2,0,-1,1,1)/(OFFSET(J2,0,-4,1,1)-OFFSET(J2,0,-1,1,1)),"") -> -0.002923665307 | L2: Notes: | M2: Online Yahoo Finance Query Interfaces used in the VBA code to obtain this data: | IJ2: 241.79
A3: Request Online Yahoo History for: | M3: A.) Price History Only: "http://ichart.finance.yahoo.com/table.csv"
A4: Symbol | B4: ^RUT | D4: Valid | I4: =OFFSET(I4,-2,0,1,1) -> -3.396606 | M4: B.) Price History w/ imbedded divs n splits: "http://ichart.finance.yahoo.com/x"
A5: From | B5: 1977-01-07 | D5: Data | AF5: Trailing 12 Div return (Cur Close)
A6: To | B6: =TODAY() -> 2015-09-09 | D6: Types | E6: =VLOOKUP(B7,D7:E10,2,FALSE) -> d | M6: C.) Fundamentals (in this case name and exchange):
A7: Data Type | B7: Daily | D7: Daily | E7: d | M7: "http://download.finance.yahoo.com/d/quotes.csv?"
D8: Weekly | E8: w | M8: For some how-to doc regarding this particular interface, including a list of the
A9: Available Data | D9: Monthly | E9: m | M9: specific fields you can include in a request to this interface see:
A10: Bar Count: | B10: =COUNTA(B15:B70000)-1 -> 7058 | M10: http://www.gummy-stuff.org/Yahoo-data.htm | AF10: =OFFSET(AC15,1,0,1,1)/OFFSET(N15,1,0,1,1) -> 0
A11: From: | B11: =IF(B10<=0,"",OFFSET(B15,B10,IF(HistReqDataType="v",1,0),1,1)) -> 1987-09-10 | M11: This web site includes a downloadable working EXCEL/VBA example | W11: Trailing 12 Month Dividend Returns
A12: To: | B12: =IF(B10<=0,"",IF(HistReqDataType="v",OFFSET(B15,2,1,1,1),OFFSET(B15,1,0,1,1))) -> 2015-09-09 | M12: of the capabilities of this interface. | W12: Raw Close price on Dividend date | X12: Div Year and Month | Y12: Looking for year ago Div Year and Month | Z12: Year ago Div Date we found | AA12: row offset to year ago div Date | AB12: Same month flag | AC12: Trailing 12 Div Total | AD12: Trailing 12 Div return
Q13: Split History | S13: =COUNT(Q16:Q20000) -> 0 | T13: Running | U13: Dividend History
B14: Raw Data Values | H14: Adjusted | I14: Price Adjust | J14: Vol Adjust | K14: Adjusted Values | P14: Last | Q14: Effective | R14: Shares | T14: Vol Adjust | V14: =COUNT(U16:U20000) -> 0
A15: RelRow | B15: Date | C15: Open | D15: High | E15: Low | F15: Close | G15: Volume | H15: Close | I15: Factor | J15: Factor | K15: Open | L15: High | M15: Low | N15: Close | O15: Volume | P15: Trade | Q15: 42257 | R15: New | S15: Old | T15: 1 | U15: Date | V15: $ / Share
A16: 1 | B16: 2015-09-09 | C16: 1162.720581 | D16: 1170.204712 | E16: 1155.904419 | F16: 1158.366333 | G16: 0 | H16: 1158.366333 | I16: =H16/F16 -> 1 | J16: =INDEX(OFFSET($T$15,0,0,$S$13+1,1),MATCH(B16,OFFSET($Q$15,0,0,$S$13+1,1),-1)) -> 1 | K16: =ROUND($I16*C16,2) -> 1162.72 | L16: =ROUND($I16*D16,2) -> 1170.2 | M16: =ROUND($I16*E16,2) -> 1155.9 | N16: =ROUND($I16*F16,2) -> 1158.37 | O16: =G16*J16 -> 0 | P16: 11:10am
A17: 2 | B17: 2015-09-08 | C17: 1139.069946 | D17: 1162.449951 | E17: 1139.069946 | F17: 1161.76001 | G17: 35486500 | H17: 1161.76001 | I17: =H17/F17 -> 1 | J17: =INDEX(OFFSET($T$15,0,0,$S$13+1,1),MATCH(B17,OFFSET($Q$15,0,0,$S$13+1,1),-1)) -> 1 | K17: 1139.07 | L17: 1162.45 | M17: 1139.07 | N17: 1161.76 | O17: =G17*J17 -> 35486500
A18: 3 | B18: 2015-09-04 | C18: 1132.949951 | D18: 1142.550049 | E18: 1130.75 | F18: 1136.170044 | G18: 31670900 | H18: 1136.170044 | I18: =H18/F18 -> 1 | J18: =INDEX(OFFSET($T$15,0,0,$S$13+1,1),MATCH(B18,OFFSET($Q$15,0,0,$S$13+1,1),-1)) -> 1 | K18: 1132.95 | L18: 1142.55 | M18: 1130.75 | N18: 1136.17 | O18: =G18*J18 -> 31670900
A19: 4 | B19: 2015-09-03 | C19: 1148.619995 | D19: 1157.630005 | E19: 1143.790039 | F19: 1145.150024 | G19: 35207000 | H19: 1145.150024 | I19: 1 | J19: 1 | K19: 1148.62 | L19: 1157.63 | M19: 1143.79 | N19: 1145.15 | O19: 35207000
A20: 5 | B20: 2015-09-02 | C20: 1128.050049 | D20: 1146.030029 | E20: 1128.050049 | F20: 1146.030029 | G20: 37426200 | H20: 1146.030029 | I20: 1 | J20: 1 | K20: 1128.05 | L20: 1146.03 | M20: 1128.05 | N20: 1146.03 | O20: 37426200
A21: 6 | B21: 2015-09-01 | C21: 1148.310059 | D21: 1151.530029 | E21: 1124.459961 | F21: 1128.050049 | G21: 43718500 | H21: 1128.050049 | I21: 1 | J21: 1 | K21: 1148.31 | L21: 1151.53 | M21: 1124.46 | N21: 1128.05 | O21: 43718500
A22: 7 | B22: 2015-08-31 | C22: 1161.01001 | D22: 1164.890015 | E22: 1156.369995 | F22: 1159.449951 | G22: 39151000 | H22: 1159.449951 | I22: 1 | J22: 1 | K22: 1161.01 | L22: 1164.89 | M22: 1156.37 | N22: 1159.45 | O22: 39151000
A23: 8 | B23: 2015-08-28 | C23: 1149.550049 | D23: 1163.050049 | E23: 1149.469971 | F23: 1162.910034 | G23: 39490800 | H23: 1162.910034 | I23: 1 | J23: 1 | K23: 1149.55 | L23: 1163.05 | M23: 1149.47 | N23: 1162.91 | O23: 39490800
A24: 9 | B24: 2015-08-27 | C24: 1140.920044 | D24: 1157.900024 | E24: 1133.77002 | F24: 1153.609985 | G24: 49763900 | H24: 1153.609985 | I24: 1 | J24: 1 | K24: 1140.92 | L24: 1157.9 | M24: 1133.77 | N24: 1153.61 | O24: 49763900
A25: 10 | B25: 2015-08-26 | C25: 1119.280029 | D25: 1132.630005 | E25: 1102.579956 | F25: 1132.189941 | G25: 53382500 | H25: 1132.189941 | I25: 1 | J25: 1 | K25: 1119.28 | L25: 1132.63 | M25: 1102.58 | N25: 1132.19 | O25: 53382500
A26: 11 | B26: 2015-08-25 | C26: 1133.130005 | D26: 1133.150024 | E26: 1104.050049 | F26: 1104.099976 | G26: 51835600 | H26: 1104.099976 | I26: 1 | J26: 1 | K26: 1133.13 | L26: 1133.15 | M26: 1104.05 | N26: 1104.1 | O26: 51835600
A27: 12 | B27: 2015-08-24 | C27: 1119.76001 | D27: 1148.579956 | E27: 1105.930054 | F27: 1111.689941 | G27: 66126900 | H27: 1111.689941 | I27: 1 | J27: 1 | K27: 1119.76 | L27: 1148.58 | M27: 1105.93 | N27: 1111.69 | O27: 66126900
A28: 13 | B28: 2015-08-21 | C28: 1158 | D28: 1172.76001 | E28: 1152.369995 | F28: 1156.790039 | G28: 50182400 | H28: 1156.790039 | I28: 1 | J28: 1 | K28: 1158 | L28: 1172.76 | M28: 1152.37 | N28: 1156.79 | O28: 50182400
A29: 14 | B29: 2015-08-20 | C29: 1193.900024 | D29: 1193.930054 | E29: 1172.530029 | F29: 1172.530029 | G29: 39224700 | H29: 1172.530029 | I29: 1 | J29: 1 | K29: 1193.9 | L29: 1193.93 | M29: 1172.53 | N29: 1172.53 | O29: 39224700
A30: 15 | B30: 2015-08-19 | C30: 1208.550049 | D30: 1211.680054 | E30: 1196.660034 | F30: 1202.97998 | G30: 35129200 | H30: 1202.97998 | I30: 1 | J30: 1 | K30: 1208.55 | L30: 1211.68 | M30: 1196.66 | N30: 1202.98 | O30: 35129200
A31: 16 | B31: 2015-08-18 | C31: 1224.079956 | D31: 1224.119995 | E31: 1214.26001 | F31: 1214.880005 | G31: 29499900 | H31: 1214.880005 | I31: 1 | J31: 1 | K31: 1224.08 | L31: 1224.12 | M31: 1214.26 | N31: 1214.88 | O31: 29499900
A32: 17 | B32: 2015-08-17 | C32: 1209.23999 | D32: 1225.089966 | E32: 1206.400024 | F32: 1225.089966 | G32: 28676900 | H32: 1225.089966 | I32: 1 | J32: 1 | K32: 1209.24 | L32: 1225.09 | M32: 1206.4 | N32: 1225.09 | O32: 28676900
A33: 18 | B33: 2015-08-14 | C33: 1202.109985 | D33: 1212.790039 | E33: 1199.459961 | F33: 1212.689941 | G33: 27955900 | H33: 1212.689941 | I33: 1 | J33: 1 | K33: 1202.11 | L33: 1212.79 | M33: 1199.46 | N33: 1212.69 | O33: 27955900
A34: 19 | B34: 2015-08-13 | C34: 1208.569946 | D34: 1213.410034 | E34: 1203.640015 | F34: 1204.73999 | G34: 32213000 | H34: 1204.73999 | I34: 1 | J34: 1 | K34: 1208.57 | L34: 1213.41 | M34: 1203.64 | N34: 1204.74 | O34: 32213000
A35: 20 | B35: 2015-08-12 | C35: 1203.170044 | D35: 1210.97998 | E35: 1189.420044 | F35: 1208.97998 | G35: 42691300 | H35: 1208.97998 | I35: 1 | J35: 1 | K35: 1203.17 | L35: 1210.98 | M35: 1189.42 | N35: 1208.98 | O35: 42691300
A36: 21 | B36: 2015-08-11 | C36: 1214.140015 | D36: 1218.670044 | E36: 1205.869995 | F36: 1211.140015 | G36: 37088800 | H36: 1211.140015 | I36: 1 | J36: 1 | K36: 1214.14 | L36: 1218.67 | M36: 1205.87 | N36: 1211.14 | O36: 37088800
A37: 22 | B37: 2015-08-10 | C37: 1212.420044 | D37: 1223.390015 | E37: 1212.420044 | F37: 1222.670044 | G37: 35144600 | H37: 1222.670044 | I37: 1 | J37: 1 | K37: 1212.42 | L37: 1223.39 | M37: 1212.42 | N37: 1222.67 | O37: 35144600
A38: 23 | B38: 2015-08-07 | C38: 1209.47998 | D38: 1211.930054 | E38: 1200.410034 | F38: 1206.900024 | G38: 36023200 | H38: 1206.900024 | I38: 1 | J38: 1 | K38: 1209.48 | L38: 1211.93 | M38: 1200.41 | N38: 1206.9 | O38: 36023200
A39: 24 | B39: 2015-08-06 | C39: 1232.439941 | D39: 1232.77002 | E39: 1207.77002 | F39: 1215.849976 | G39: 42465700 | H39: 1215.849976 | I39: 1 | J39: 1 | K39: 1232.44 | L39: 1232.77 | M39: 1207.77 | N39: 1215.85 | O39: 42465700
A40: 25 | B40: 2015-08-05 | C40: 1233.719971 | D40: 1243.160034 | E40: 1229.51001 | F40: 1231.75 | G40: 39686800 | H40: 1231.75 | I40: 1 | J40: 1 | K40: 1233.72 | L40: 1243.16 | M40: 1229.51 | N40: 1231.75 | O40: 39686800
A41: 26 | B41: 2015-08-04 | C41: 1232.52002 | D41: 1237.199951 | E41: 1226.369995 | F41: 1228.839966 | G41: 35467100 | H41: 1228.839966 | I41: 1 | J41: 1 | K41: 1232.52 | L41: 1237.2 | M41: 1226.37 | N41: 1228.84 | O41: 35467100
A42: 27 | B42: 2015-08-03 | C42: 1238.319946 | D42: 1238.969971 | E42: 1224.869995 | F42: 1231.790039 | G42: 34767700 | H42: 1231.790039 | I42: 1 | J42: 1 | K42: 1238.32 | L42: 1238.97 | M42: 1224.87 | N42: 1231.79 | O42: 34767700
A43: 28 | B43: 2015-07-31 | C43: 1235.170044 | D43: 1244.97998 | E43: 1232.949951 | F43: 1238.680054 | G43: 36813400 | H43: 1238.680054 | I43: 1 | J43: 1 | K43: 1235.17 | L43: 1244.98 | M43: 1232.95 | N43: 1238.68 | O43: 36813400
A44: 29 | B44: 2015-07-30 | C44: 1226.040039 | D44: 1233 | E44: 1220.97998 | F44: 1232.069946 | G44: 35794100 | H44: 1232.069946 | I44: 1 | J44: 1 | K44: 1226.04 | L44: 1233 | M44: 1220.98 | N44: 1232.07 | O44: 35794100
A45: 30 | B45: 2015-07-29 | C45: 1223.97998 | D45: 1232.339966 | E45: 1220.930054 | F45: 1229.599976 | G45: 0 | H45: 1229.599976 | I45: 1 | J45: 1 | K45: 1223.98 | L45: 1232.34 | M45: 1220.93 | N45: 1229.6 | O45: 0
A46: 31 | B46: 2015-07-28 | C46: 1219.469971 | D46: 1226.410034 | E46: 1205.189941 | F46: 1224.599976 | G46: 41177400 | H46: 1224.599976 | I46: 1 | J46: 1 | K46: 1219.47 | L46: 1226.41 | M46: 1205.19 | N46: 1224.6 | O46: 41177400
A47: 32 | B47: 2015-07-27 | C47: 1219.209961 | D47: 1220.72998 | E47: 1212.329956 | F47: 1214.689941 | G47: 38367500 | H47: 1214.689941 | I47: 1 | J47: 1 | K47: 1219.21 | L47: 1220.73 | M47: 1212.33 | N47: 1214.69 | O47: 38367500
A48: 33 | B48: 2015-07-24 | C48: 1242.390015 | D48: 1243.579956 | E48: 1225.430054 | F48: 1225.98999 | G48: 38700400 | H48: 1225.98999 | I48: 1 | J48: 1 | K48: 1242.39 | L48: 1243.58 | M48: 1225.43 | N48: 1225.99 | O48: 38700400
A49: 34 | B49: 2015-07-23 | C49: 1260.660034 | D49: 1262.569946 | E49: 1243.689941 | F49: 1244.969971 | G49: 37728100 | H49: 1244.969971 | I49: 1 | J49: 1 | K49: 1260.66 | L49: 1262.57 | M49: 1243.69 | N49: 1244.97 | O49: 37728100
A50: 35 | B50: 2015-07-22 | C50: 1249.369995 | D50: 1259.76001 | E50: 1248.630005 | F50: 1258.349976 | G50: 36940700 | H50: 1258.349976 | I50: 1 | J50: 1 | K50: 1249.37 | L50: 1259.76 | M50: 1248.63 | N50: 1258.35 | O50: 36940700
A51: 36 | B51: 2015-07-21 | C51: 1259.75 | D51: 1265.439941 | E51: 1252.089966 | F51: 1254.569946 | G51: 33436900 | H51: 1254.569946 | I51: 1 | J51: 1 | K51: 1259.75 | L51: 1265.44 | M51: 1252.09 | N51: 1254.57 | O51: 33436900
A52: 37 | B52: 2015-07-20 | C52: 1268.819946 | D52: 1268.890015 | E52: 1258.300049 | F52: 1260.219971 | G52: 32458700 | H52: 1260.219971 | I52: 1 | J52: 1 | K52: 1268.82 | L52: 1268.89 | M52: 1258.3 | N52: 1260.22 | O52: 32458700
A53: 38 | B53: 2015-07-17 | C53: 1273.670044 | D53: 1273.670044 | E53: 1263.869995 | F53: 1267.089966 | G53: 33627500 | H53: 1267.089966 | I53: 1 | J53: 1 | K53: 1273.67 | L53: 1273.67 | M53: 1263.87 | N53: 1267.09 | O53: 33627500
A54: 39 | B54: 2015-07-16 | C54: 1271.099976 | D54: 1275.900024 | E54: 1269.660034 | F54: 1272.829956 | G54: 32270800 | H54: 1272.829956 | I54: 1 | J54: 1 | K54: 1271.1 | L54: 1275.9 | M54: 1269.66 | N54: 1272.83 | O54: 32270800
A55: 40 | B55: 2015-07-15 | C55: 1273.800049 | D55: 1273.800049 | E55: 1263.01001 | F55: 1264.52002 | G55: 32618100 | H55: 1264.52002 | I55: 1 | J55: 1 | K55: 1273.8 | L55: 1273.8 | M55: 1263.01 | N55: 1264.52 | O55: 32618100
A56: 41 | B56: 2015-07-14 | C56: 1265.300049 | D56: 1274.109985 | E56: 1264.869995 | F56: 1273.329956 | G56: 30021200 | H56: 1273.329956 | I56: 1 | J56: 1 | K56: 1265.3 | L56: 1274.11 | M56: 1264.87 | N56: 1273.33 | O56: 30021200
A57: 42 | B57: 2015-07-13 | C57: 1258.790039 | D57: 1266.099976 | E57: 1258.790039 | F57: 1265.349976 | G57: 30967300 | H57: 1265.349976 | I57: 1 | J57: 1 | K57: 1258.79 | L57: 1266.1 | M57: 1258.79 | N57: 1265.35 | O57: 30967300
A58: 43 | B58: 2015-07-10 | C58: 1245 | D58: 1252.869995 | E58: 1244.219971 | F58: 1252.02002 | G58: 30650700 | H58: 1252.02002 | I58: 1 | J58: 1 | K58: 1245 | L58: 1252.87 | M58: 1244.22 | N58: 1252.02 | O58: 30650700
A59: 44 | B59: 2015-07-09 | C59: 1240.160034 | D59: 1243.959961 | E59: 1232.810059 | F59: 1234.150024 | G59: 34468100 | H59: 1234.150024 | I59: 1 | J59: 1 | K59: 1240.16 | L59: 1243.96 | M59: 1232.81 | N59: 1234.15 | O59: 34468100
A60: 45 | B60: 2015-07-08 | C60: 1239.079956 | D60: 1241.349976 | E60: 1226.52002 | F60: 1228.959961 | G60: 36087800 | H60: 1228.959961 | I60: 1 | J60: 1 | K60: 1239.08 | L60: 1241.35 | M60: 1226.52 | N60: 1228.96 | O60: 36087800
A61: 46 | B61: 2015-07-07 | C61: 1247.780029 | D61: 1248.959961 | E61: 1225.97998 | F61: 1248.050049 | G61: 44586600 | H61: 1248.050049 | I61: 1 | J61: 1 | K61: 1247.78 | L61: 1248.96 | M61: 1225.98 | N61: 1248.05 | O61: 44586600
A62: 47 | B62: 2015-07-06 | C62: 1239.22998 | D62: 1253.199951 | E62: 1236.589966 | F62: 1246.959961 | G62: 34863600 | H62: 1246.959961 | I62: 1 | J62: 1 | K62: 1239.23 | L62: 1253.2 | M62: 1236.59 | N62: 1246.96 | O62: 34863600
A63: 48 | B63: 2015-07-02 | C63: 1259.030029 | D63: 1259.25 | E63: 1244.630005 | F63: 1248.26001 | G63: 29965400 | H63: 1248.26001 | I63: 1 | J63: 1 | K63: 1259.03 | L63: 1259.25 | M63: 1244.63 | N63: 1248.26 | O63: 29965400
A64: 49 | B64: 2015-07-01 | C64: 1262.119995 | D64: 1264.630005 | E64: 1250.650024 | F64: 1256.390015 | G64: 37272600 | H64: 1256.390015 | I64: 1 | J64: 1 | K64: 1262.12 | L64: 1264.63 | M64: 1250.65 | N64: 1256.39 | O64: 37272600
A65: 50 | B65: 2015-06-30 | C65: 1255.51001 | D65: 1256.869995 | E65: 1248.810059 | F65: 1253.949951 | G65: 40785400 | H65: 1253.949951 | I65: 1 | J65: 1 | K65: 1255.51 | L65: 1256.87 | M65: 1248.81 | N65: 1253.95 | O65: 40785400
A66: 51 | B66: 2015-06-29 | C66: 1269.359985 | D66: 1273.949951 | E66: 1246.599976 | F66: 1246.75 | G66: 36789600 | H66: 1246.75 | I66: 1 | J66: 1 | K66: 1269.36 | L66: 1273.95 | M66: 1246.6 | N66: 1246.75 | O66: 36789600
A67: 52 | B67: 2015-06-26 | C67: 1285.22998 | D67: 1287.099976 | E67: 1274.030029 | F67: 1279.800049 | G67: 50254700 | H67: 1279.800049 | I67: 1 | J67: 1 | K67: 1285.23 | L67: 1287.1 | M67: 1274.03 | N67: 1279.8 | O67: 50254700
A68: 53 | B68: 2015-06-25 | C68: 1286.969971 | D68: 1287.459961 | E68: 1278.569946 | F68: 1283.310059 | G68: 32146100 | H68: 1283.310059 | I68: 1 | J68: 1 | K68: 1286.97 | L68: 1287.46 | M68: 1278.57 | N68: 1283.31 | O68: 32146100
A69: 54 | B69: 2015-06-24 | C69: 1293.810059 | D69: 1295.030029 | E69: 1283.199951 | F69: 1283.920044 | G69: 31024800 | H69: 1283.920044 | I69: 1 | J69: 1 | K69: 1293.81 | L69: 1295.03 | M69: 1283.2 | N69: 1283.92 | O69: 31024800
A70: 55 | B70: 2015-06-23 | C70: 1294.369995 | D70: 1296 | E70: 1289.589966 | F70: 1295.800049 | G70: 30911900 | H70: 1295.800049 | I70: 1 | J70: 1 | K70: 1294.37 | L70: 1296 | M70: 1289.59 | N70: 1295.8 | O70: 30911900
A71: 56 | B71: 2015-06-22 | C71: 1290.560059 | D71: 1293.310059 | E71: 1288.48999 | F71: 1292.390015 | G71: 30300200 | H71: 1292.390015 | I71: 1 | J71: 1 | K71: 1290.56 | L71: 1293.31 | M71: 1288.49 | N71: 1292.39 | O71: 30300200
A72: 57 | B72: 2015-06-19 | C72: 1285.469971 | D72: 1286.579956 | E72: 1281.660034 | F72: 1284.660034 | G72: 44498100 | H72: 1284.660034 | I72: 1 | J72: 1 | K72: 1285.47 | L72: 1286.58 | M72: 1281.66 | N72: 1284.66 | O72: 44498100
A73: 58 | B73: 2015-06-18 | C73: 1271.949951 | D73: 1287.060059 | E73: 1271.949951 | F73: 1284.680054 | G73: 34990000 | H73: 1284.680054 | I73: 1 | J73: 1 | K73: 1271.95 | L73: 1287.06 | M73: 1271.95 | N73: 1284.68 | O73: 34990000
A74: 59 | B74: 2015-06-17 | C74: 1273.359985 | D74: 1274.400024 | E74: 1266.630005 | F74: 1268.329956 | G74: 32222400 | H74: 1268.329956 | I74: 1 | J74: 1 | K74: 1273.36 | L74: 1274.4 | M74: 1266.63 | N74: 1268.33 | O74: 32222400
A75: 60 | B75: 2015-06-16 | C75: 1259.02002 | D75: 1271.459961 | E75: 1258.930054 | F75: 1269.530029 | G75: 29199000 | H75: 1269.530029 | I75: 1 | J75: 1 | K75: 1259.02 | L75: 1271.46 | M75: 1258.93 | N75: 1269.53 | O75: 29199000
A76: 61 | B76: 2015-06-15 | C76: 1259.380005 | D76: 1262.859985 | E76: 1247.52002 | F76: 1261.040039 | G76: 30615700 | H76: 1261.040039 | I76: 1 | J76: 1 | K76: 1259.38 | L76: 1262.86 | M76: 1247.52 | N76: 1261.04 | O76: 30615700
A77: 62 | B77: 2015-06-12 | C77: 1265.560059 | D77: 1266.780029 | E77: 1262.219971 | F77: 1265.02002 | G77: 27194000 | H77: 1265.02002 | I77: 1 | J77: 1 | K77: 1265.56 | L77: 1266.78 | M77: 1262.22 | N77: 1265.02 | O77: 27194000
A78: 63 | B78: 2015-06-11 | C78: 1268.680054 | D78: 1270.790039 | E78: 1266.050049 | F78: 1268.920044 | G78: 31286000 | H78: 1268.920044 | I78: 1 | J78: 1 | K78: 1268.68 | L78: 1270.79 | M78: 1266.05 | N78: 1268.92 | O78: 31286000
A79: 64 | B79: 2015-06-10 | C79: 1254.469971 | D79: 1269.77002 | E79: 1254.469971 | F79: 1266.930054 | G79: 34143200 | H79: 1266.930054 | I79: 1 | J79: 1 | K79: 1254.47 | L79: 1269.77 | M79: 1254.47 | N79: 1266.93 | O79: 34143200
A80: 65 | B80: 2015-06-09 | C80: 1253.5 | D80: 1254.439941 | E80: 1242.359985 | F80: 1249.660034 | G80: 30345800 | H80: 1249.660034 | I80: 1 | J80: 1 | K80: =ROUND($I80*C80,2) -> 1253.5 | L80: =ROUND($I80*D80,2) -> 1254.44 | M80: =ROUND($I80*E80,2) -> 1242.36 | N80: =ROUND($I80*F80,2) -> 1249.66 | O80: 30345800
A81: 66 | B81: 2015-06-08 | C81: 1259.670044 | D81: 1261.180054 | E81: 1252.72998 | F81: 1253.699951 | G81: 29171500 | H81: 1253.699951 | I81: 1 | J81: 1 | K81: 1259.67 | L81: 1261.18 | M81: 1252.73 | N81: 1253.7 | O81: 29171500
A82: 67 | B82: 2015-06-05 | C82: 1250.400024 | D82: 1261.069946 | E82: 1242.73999 | F82: 1261.01001 | G82: 32436900 | H82: 1261.01001 | I82: =H82/F82 -> 1 | J82: =INDEX(OFFSET($T$15,0,0,$S$13+1,1),MATCH(B82,OFFSET($Q$15,0,0,$S$13+1,1),-1)) -> 1 | K82: 1250.4 | L82: 1261.07 | M82: 1242.74 | N82: 1261.01 | O82: =G82*J82 -> 32436900
A83: 68 | B83: 2015-06-04 | C83: 1258.540039 | D83: 1261.209961 | E83: 1248.430054 | F83: 1251.290039 | G83: 32000500 | H83: 1251.290039 | I83: 1 | J83: 1 | K83: 1258.54 | L83: 1261.21 | M83: 1248.43 | N83: 1251.29 | O83: 32000500
A84: 69 | B84: 2015-06-03 | C84: 1254.97998 | D84: 1264.939941 | E84: 1252.790039 | F84: 1264.579956 | G84: 30999800 | H84: 1264.579956 | I84: 1 | J84: 1 | K84: 1254.98 | L84: 1264.94 | M84: 1252.79 | N84: 1264.58 | O84: 30999800
A85: 70 | B85: 2015-06-02 | C85: 1245.589966 | D85: 1258.459961 | E85: 1243.300049 | F85: 1251.800049 | G85: 30493500 | H85: 1251.800049 | I85: 1 | J85: 1 | K85: 1245.59 | L85: 1258.46 | M85: 1243.3 | N85: 1251.8 | O85: 30493500
A86: 71 | B86: 2015-06-01 | C86: 1252.02002 | D86: 1254.560059 | E86: 1238.650024 | F86: 1249.619995 | G86: 30117100 | H86: 1249.619995 | I86: 1 | J86: 1 | K86: 1252.02 | L86: 1254.56 | M86: 1238.65 | N86: 1249.62 | O86: 30117100
A87: 72 | B87: 2015-05-29 | C87: 1251.579956 | D87: 1252.640015 | E87: 1241.150024 | F87: 1246.530029 | G87: 39273900 | H87: 1246.530029 | I87: 1 | J87: 1 | K87: 1251.58 | L87: 1252.64 | M87: 1241.15 | N87: 1246.53 | O87: 39273900
A88: 73 | B88: 2015-05-28 | C88: 1251.780029 | D88: 1253.199951 | E88: 1246.069946 | F88: 1253.099976 | G88: 29803500 | H88: 1253.099976 | I88: 1 | J88: 1 | K88: 1251.78 | L88: 1253.2 | M88: 1246.07 | N88: 1253.1 | O88: 29803500
A89: 74 | B89: 2015-05-27 | C89: 1241.01001 | D89: 1255.050049 | E89: 1237.609985 | F89: 1254.359985 | G89: 31279600 | H89: 1254.359985 | I89: 1 | J89: 1 | K89: 1241.01 | L89: 1255.05 | M89: 1237.61 | N89: 1254.36 | O89: 31279600
A90: 75 | B90: 2015-05-26 | C90: 1248.109985 | D90: 1248.109985 | E90: 1233.719971 | F90: 1238.76001 | G90: 33421300 | H90: 1238.76001 | I90: 1 | J90: 1 | K90: 1248.11 | L90: 1248.11 | M90: 1233.72 | N90: 1238.76 | O90: 33421300
A91: 76 | B91: 2015-05-22 | C91: 1255.48999 | D91: 1258.72998 | E91: 1248.369995 | F91: 1252.219971 | G91: 25718600 | H91: 1252.219971 | I91: 1 | J91: 1 | K91: 1255.49 | L91: 1258.73 | M91: 1248.37 | N91: 1252.22 | O91: 25718600
A92: 77 | B92: 2015-05-21 | C92: 1257.5 | D92: 1261.02002 | E92: 1252.98999 | F92: 1256.73999 | G92: 30704600 | H92: 1256.73999 | I92: 1 | J92: 1 | K92: 1257.5 | L92: 1261.02 | M92: 1252.99 | N92: 1256.74 | O92: 30704600
A93: 78 | B93: 2015-05-20 | C93: 1257.329956 | D93: 1260.829956 | E93: 1252.359985 | F93: 1257.73999 | G93: 30258800 | H93: 1257.73999 | I93: 1 | J93: 1 | K93: 1257.33 | L93: 1260.83 | M93: 1252.36 | N93: 1257.74 | O93: 30258800
A94: 79 | B94: 2015-05-19 | C94: 1257.859985 | D94: 1258.579956 | E94: 1251.819946 | F94: 1255.660034 | G94: 32960300 | H94: 1255.660034 | I94: 1 | J94: 1 | K94: 1257.86 | L94: 1258.58 | M94: 1251.82 | N94: 1255.66 | O94: 32960300
A95: 80 | B95: 2015-05-18 | C95: 1242.079956 | D95: 1258 | E95: 1240.839966 | F95: 1257.52002 | G95: 28881900 | H95: 1257.52002 | I95: 1 | J95: 1 | K95: 1242.08 | L95: 1258 | M95: 1240.84 | N95: 1257.52 | O95: 28881900
A96: 81 | B96: 2015-05-15 | C96: 1245.420044 | D96: 1245.900024 | E96: 1238.98999 | F96: 1243.949951 | G96: 30920800 | H96: 1243.949951 | I96: 1 | J96: 1 | K96: 1245.42 | L96: 1245.9 | M96: 1238.99 | N96: 1243.95 | O96: 30920800
A97: 82 | B97: 2015-05-14 | C97: 1236.810059 | D97: 1245.119995 | E97: 1232.530029 | F97: 1245.109985 | G97: 32257400 | H97: 1245.109985 | I97: 1 | J97: 1 | K97: 1236.81 | L97: 1245.12 | M97: 1232.53 | N97: 1245.11 | O97: 32257400
A98: 83 | B98: 2015-05-13 | C98: 1235.73999 | D98: 1237.880005 | E98: 1228.48999 | F98: 1232.280029 | G98: 33742600 | H98: 1232.280029 | I98: 1 | J98: 1 | K98: 1235.74 | L98: 1237.88 | M98: 1228.49 | N98: 1232.28 | O98: 33742600
A99: 84 | B99: 2015-05-12 | C99: 1230.569946 | D99: 1236.140015 | E99: 1219.290039 | F99: 1233.130005 | G99: 0 | H99: 1233.130005 | I99: 1 | J99: 1 | K99: 1230.57 | L99: 1236.14 | M99: 1219.29 | N99: 1233.13 | O99: 0
A100: 85 | B100: 2015-05-11 | C100: 1234.589966 | D100: 1243.560059 | E100: 1234.51001 | F100: 1235.829956 | G100: 29926700 | H100: 1235.829956 | I100: 1 | J100: 1 | K100: 1234.59 | L100: 1243.56 | M100: 1234.51 | N100: 1235.83 | O100: 29926700
A101: 86 | B101: 2015-05-08 | C101: 1234.819946 | D101: 1239.380005 | E101: 1232.589966 | F101: 1234.930054 | G101: 33994400 | H101: 1234.930054 | I101: 1 | J101: 1 | K101: 1234.82 | L101: 1239.38 | M101: 1232.59 | N101: 1234.93 | O101: 33994400
A102: 87 | B102: 2015-05-07 | C102: 1218.949951 | D102: 1228.819946 | E102: 1215.430054 | F102: 1225.540039 | G102: 36766400 | H102: 1225.540039 | I102: 1 | J102: 1 | K102: 1218.95 | L102: 1228.82 | M102: 1215.43 | N102: 1225.54 | O102: 36766400
A103: 88 | B103: 2015-05-06 | C103: 1221.530029 | D103: 1222.900024 | E103: 1211.130005 | F103: 1219.359985 | G103: 37922100 | H103: 1219.359985 | I103: 1 | J103: 1 | K103: 1221.53 | L103: 1222.9 | M103: 1211.13 | N103: 1219.36 | O103: 37922100
A104: 89 | B104: 2015-05-05 | C104: 1231.77002 | D104: 1234.040039 | E104: 1211.780029 | F104: 1215.420044 | G104: 37939500 | H104: 1215.420044 | I104: 1 | J104: 1 | K104: 1231.77 | L104: 1234.04 | M104: 1211.78 | N104: 1215.42 | O104: 37939500
A105: 90 | B105: 2015-05-04 | C105: 1230.300049 | D105: 1240.630005 | E105: 1230.099976 | F105: 1233.219971 | G105: 30915800 | H105: 1233.219971 | I105: 1 | J105: 1 | K105: 1230.3 | L105: 1240.63 | M105: 1230.1 | N105: 1233.22 | O105: 30915800
A106: 91 | B106: 2015-05-01 | C106: 1223.050049 | D106: 1229.469971 | E106: 1218.589966 | F106: 1228.099976 | G106: 33793900 | H106: 1228.099976 | I106: 1 | J106: 1 | K106: 1223.05 | L106: 1229.47 | M106: 1218.59 | N106: 1228.1 | O106: 33793900
A107: 92 | B107: 2015-04-30 | C107: 1241.400024 | D107: 1242.77002 | E107: 1216.099976 | F107: 1220.130005 | G107: 45096800 | H107: 1220.130005 | I107: 1 | J107: 1 | K107: 1241.4 | L107: 1242.77 | M107: 1216.1 | N107: 1220.13 | O107: 45096800
A108: 93 | B108: 2015-04-29 | C108: 1254.5 | D108: 1255.810059 | E108: 1245.469971 | F108: 1246.949951 | G108: 40749700 | H108: 1246.949951 | I108: 1 | J108: 1 | K108: 1254.5 | L108: 1255.81 | M108: 1245.47 | N108: 1246.95 | O108: 40749700
A109: 94 | B109: 2015-04-28 | C109: 1252.890015 | D109: 1260.689941 | E109: 1242.569946 | F109: 1259.359985 | G109: 35462700 | H109: 1259.359985 | I109: 1 | J109: 1 | K109: 1252.89 | L109: 1260.69 | M109: 1242.57 | N109: 1259.36 | O109: 35462700
A110: 95 | B110: 2015-04-27 | C110: 1269.869995 | D110: 1275.839966 | E110: 1250.449951 | F110: 1252.699951 | G110: 34387500 | H110: 1252.699951 | I110: 1 | J110: 1 | K110: 1269.87 | L110: 1275.84 | M110: 1250.45 | N110: 1252.7 | O110: 34387500
A111: 96 | B111: 2015-04-24 | C111: 1272.800049 | D111: 1273.079956 | E111: 1266.219971 | F111: 1267.540039 | G111: 33757800 | H111: 1267.540039 | I111: 1 | J111: 1 | K111: 1272.8 | L111: 1273.08 | M111: 1266.22 | N111: 1267.54 | O111: 33757800
A112: 97 | B112: 2015-04-23 | C112: 1263.660034 | D112: 1273.25 | E112: 1262.410034 | F112: 1271.540039 | G112: 36366700 | H112: 1271.540039 | I112: 1 | J112: 1 | K112: 1263.66 | L112: 1273.25 | M112: 1262.41 | N112: 1271.54 | O112: 36366700
A113: 98 | B113: 2015-04-22 | C113: 1265.01001 | D113: 1266.560059 | E113: 1255.040039 | F113: 1265.47998 | G113: 33484800 | H113: 1265.47998 | I113: 1 | J113: 1 | K113: 1265.01 | L113: 1266.56 | M113: 1255.04 | N113: 1265.48 | O113: 33484800
A114: 99 | B114: 2015-04-21 | C114: 1269.319946 | D114: 1270.079956 | E114: 1263.589966 | F114: 1264.150024 | G114: 32434100 | H114: 1264.150024 | I114: 1 | J114: 1 | K114: 1269.32 | L114: 1270.08 | M114: 1263.59 | N114: 1264.15 | O114: 32434100
A115: 100 | B115: 2015-04-20 | C115: 1257.609985 | D115: 1266.97998 | E115: 1255.75 | F115: 1264.920044 | G115: 30001600 | H115: 1264.920044 | I115: 1 | J115: 1 | K115: 1257.61 | L115: 1266.98 | M115: 1255.75 | N115: 1264.92 | O115: 30001600
A116: 101 | B116: 2015-04-17 | C116: 1264.219971 | D116: 1264.219971 | E116: 1248.22998 | F116: 1251.859985 | G116: 36276000 | H116: 1251.859985 | I116: 1 | J116: 1 | K116: 1264.22 | L116: 1264.22 | M116: 1248.23 | N116: 1251.86 | O116: 36276000
A117: 102 | B117: 2015-04-16 | C117: 1273.47998 | D117: 1275.280029 | E117: 1271.109985 | F117: 1272.900024 | G117: 34341200 | H117: 1272.900024 | I117: 1 | J117: 1 | K117: 1273.48 | L117: 1275.28 | M117: 1271.11 | N117: 1272.9 | O117: 34341200
A118: 103 | B118: 2015-04-15 | C118: 1269.650024 | D118: 1278.630005 | E118: 1268.819946 | F118: 1275.349976 | G118: 40137600 | H118: 1275.349976 | I118: 1 | J118: 1 | K118: 1269.65 | L118: 1278.63 | M118: 1268.82 | N118: 1275.35 | O118: 40137600
A119: 104 | B119: 2015-04-14 | C119: 1266.680054 | D119: 1267.969971 | E119: 1258.530029 | F119: 1265.349976 | G119: 33012700 | H119: 1265.349976 | I119: 1 | J119: 1 | K119: 1266.68 | L119: 1267.97 | M119: 1258.53 | N119: 1265.35 | O119: 33012700
A120: 105 | B120: 2015-04-13 | C120: 1265.48999 | D120: 1271.73999 | E120: 1265.050049 | F120: 1265.589966 | G120: 29084200 | H120: 1265.589966 | I120: 1 | J120: 1 | K120: 1265.49 | L120: 1271.74 | M120: 1265.05 | N120: 1265.59 | O120: 29084200
A121: 106 | B121: 2015-04-10 | C121: 1263.72998 | D121: 1266 | E121: 1262.319946 | F121: 1264.77002 | G121: 5362000 | H121: 1264.77002 | I121: 1 | J121: 1 | K121: 1263.73 | L121: 1266 | M121: 1262.32 | N121: 1264.77 | O121: 5362000
A122: 107 | B122: 2015-04-09 | C122: 1262.540039 | D122: 1265.780029 | E122: 1248.170044 | F122: 1259.109985 | G122: 31723600 | H122: 1259.109985 | I122: 1 | J122: 1 | K122: 1262.54 | L122: 1265.78 | M122: 1248.17 | N122: 1259.11 | O122: 31723600
A123: 108 | B123: 2015-04-08 | C123: 1254.390015 | D123: 1264.130005 | E123: 1254.359985 | F123: 1262.709961 | G123: 32653300 | H123: 1262.709961 | I123: 1 | J123: 1 | K123: 1254.39 | L123: 1264.13 | M123: 1254.36 | N123: 1262.71 | O123: 32653300
A124: 109 | B124: 2015-04-07 | C124: 1260.300049 | D124: 1263.22998 | E124: 1253.290039 | F124: 1253.359985 | G124: 30655100 | H124: 1253.359985 | I124: 1 | J124: 1 | K124: 1260.3 | L124: 1263.23 | M124: 1253.29 | N124: 1253.36 | O124: 30655100
A125: 110 | B125: 2015-04-06 | C125: 1250.23999 | D125: 1262.76001 | E125: 1249.349976 | F125: 1260.540039 | G125: 33029700 | H125: 1260.540039 | I125: 1 | J125: 1 | K125: 1250.24 | L125: 1262.76 | M125: 1249.35 | N125: 1260.54 | O125: 33029700
A126: 111 | B126: 2015-04-02 | C126: 1252.180054 | D126: 1259.969971 | E126: 1251.829956 | F126: 1255.660034 | G126: 30959600 | H126: 1255.660034 | I126: 1 | J126: 1 | K126: 1252.18 | L126: 1259.97 | M126: 1251.83 | N126: 1255.66 | O126: 30959600
A127: 112 | B127: 2015-04-01 | C127: 1250.98999 | D127: 1251.890015 | E127: 1239.599976 | F127: 1251.709961 | G127: 35432700 | H127: 1251.709961 | I127: 1 | J127: 1 | K127: 1250.99 | L127: 1251.89 | M127: 1239.6 | N127: 1251.71 | O127: 35432700
A128: 113 | B128: 2015-03-31 | C128: 1252.640015 | D128: 1255.300049 | E128: 1248.910034 | F128: 1252.77002 | G128: 33765500 | H128: 1252.77002 | I128: 1 | J128: 1 | K128: 1252.64 | L128: 1255.3 | M128: 1248.91 | N128: 1252.77 | O128: 33765500
A129: 114 | B129: 2015-03-30 | C129: 1246.689941 | D129: 1258.23999 | E129: 1246.689941 | F129: 1257.800049 | G129: 29176900 | H129: 1257.800049 | I129: 1 | J129: 1 | K129: 1246.69 | L129: 1258.24 | M129: 1246.69 | N129: 1257.8 | O129: 29176900
A130: 115 | B130: 2015-03-27 | C130: 1231.670044 | D130: 1240.76001 | E130: 1229.380005 | F130: 1240.410034 | G130: 30085500 | H130: 1240.410034 | I130: 1 | J130: 1 | K130: 1231.67 | L130: 1240.76 | M130: 1229.38 | N130: 1240.41 | O130: 30085500
A131: 116 | B131: 2015-03-26 | C131: 1228.800049 | D131: 1237.359985 | E131: 1225.469971 | F131: 1231.98999 | G131: 35106700 | H131: 1231.98999 | I131: 1 | J131: 1 | K131: 1228.8 | L131: 1237.36 | M131: 1225.47 | N131: 1231.99 | O131: 35106700
A132: 117 | B132: 2015-03-25 | C132: 1265.579956 | D132: 1265.849976 | E132: 1233.550049 | F132: 1233.849976 | G132: 35211400 | H132: 1233.849976 | I132: 1 | J132: 1 | K132: 1265.58 | L132: 1265.85 | M132: 1233.55 | N132: 1233.85 | O132: 35211400
A133: 118 | B133: 2015-03-24 | C133: 1264.060059 | D133: 1268.079956 | E133: 1262.410034 | F133: 1263.459961 | G133: 31898200 | H133: 1263.459961 | I133: 1 | J133: 1 | K133: 1264.06 | L133: 1268.08 | M133: 1262.41 | N133: 1263.46 | O133: 31898200
A134: 119 | B134: 2015-03-23 | C134: 1264.170044 | D134: 1268.160034 | E134: 1262.949951 | F134: 1264.709961 | G134: 32679600 | H134: 1264.709961 | I134: 1 | J134: 1 | K134: 1264.17 | L134: 1268.16 | M134: 1262.95 | N134: 1264.71 | O134: 32679600
A135: 120 | B135: 2015-03-20 | C135: 1259.709961 | D135: 1267.219971 | E135: 1259.709961 | F135: 1266.369995 | G135: 55541200 | H135: 1266.369995 | I135: 1 | J135: 1 | K135: 1259.71 | L135: 1267.22 | M135: 1259.71 | N135: 1266.37 | O135: 55541200
A136: 121 | B136: 2015-03-19 | C136: 1249.26001 | D136: 1254.890015 | E136: 1248.47998 | F136: 1254.859985 | G136: 33052200 | H136: 1254.859985 | I136: 1 | J136: 1 | K136: 1249.26 | L136: 1254.89 | M136: 1248.48 | N136: 1254.86 | O136: 33052200
A137: 122 | B137: 2015-03-18 | C137: 1239.839966 | D137: 1255.680054 | E137: 1235.48999 | F137: 1252.140015 | G137: 41282100 | H137: 1252.140015 | I137: 1 | J137: 1 | K137: 1239.84 | L137: 1255.68 | M137: 1235.49 | N137: 1252.14 | O137: 41282100
A138: 123 | B138: 2015-03-17 | C138: 1235.900024 | D138: 1243.329956 | E138: 1234.660034 | F138: 1242.22998 | G138: 32218400 | H138: 1242.22998 | I138: 1 | J138: 1 | K138: 1235.9 | L138: 1243.33 | M138: 1234.66 | N138: 1242.23 | O138: 32218400
A139: 124 | B139: 2015-03-16 | C139: 1237.079956 | D139: 1241.109985 | E139: 1235.699951 | F139: 1239.780029 | G139: 32956000 | H139: 1239.780029 | I139: 1 | J139: 1 | K139: 1237.08 | L139: 1241.11 | M139: 1235.7 | N139: 1239.78 | O139: 32956000
A140: 125 | B140: 2015-03-13 | C140: 1235.589966 | D140: 1236.780029 | E140: 1220.01001 | F140: 1232.140015 | G140: 34985600 | H140: 1232.140015 | I140: 1 | J140: 1 | K140: 1235.59 | L140: 1236.78 | M140: 1220.01 | N140: 1232.14 | O140: 34985600
A141: 126 | B141: 2015-03-12 | C141: 1221.459961 | D141: 1236.680054 | E141: 1221.26001 | F141: 1236.640015 | G141: 34058600 | H141: 1236.640015 | I141: 1 | J141: 1 | K141: 1221.46 | L141: 1236.68 | M141: 1221.26 | N141: 1236.64 | O141: 34058600
A142: 127 | B142: 2015-03-11 | C142: 1209.98999 | D142: 1216.5 | E142: 1206.109985 | F142: 1215.780029 | G142: 34065700 | H142: 1215.780029 | I142: 1 | J142: 1 | K142: 1209.99 | L142: 1216.5 | M142: 1206.11 | N142: 1215.78 | O142: 34065700
A143: 128 | B143: 2015-03-10 | C143: 1213.930054 | D143: 1213.939941 | E143: 1206.319946 | F143: 1208.469971 | G143: 36689000 | H143: 1208.469971 | I143: 1 | J143: 1 | K143: 1213.93 | L143: 1213.94 | M143: 1206.32 | N143: 1208.47 | O143: 36689000
A144: 129 | B144: 2015-03-09 | C144: 1220.47998 | D144: 1225.829956 | E144: 1218.76001 | F144: 1223.589966 | G144: 33490900 | H144: 1223.589966 | I144: 1 | J144: 1 | K144: =ROUND($I144*C144,2) -> 1220.48 | L144: =ROUND($I144*D144,2) -> 1225.83 | M144: =ROUND($I144*E144,2) -> 1218.76 | N144: =ROUND($I144*F144,2) -> 1223.59 | O144: 33490900
A145: 130 | B145: 2015-03-06 | C145: 1227.880005 | D145: 1231.089966 | E145: 1216.219971 | F145: 1217.52002 | G145: 38535700 | H145: 1217.52002 | I145: 1 | J145: 1 | K145: 1227.88 | L145: 1231.09 | M145: 1216.22 | N145: 1217.52 | O145: 38535700
A146: 131 | B146: 2015-03-05 | C146: 1232.890015 | D146: 1236.050049 | E146: 1228.849976 | F146: 1234.310059 | G146: 31030300 | H146: 1234.310059 | I146: =H146/F146 -> 1 | J146: =INDEX(OFFSET($T$15,0,0,$S$13+1,1),MATCH(B146,OFFSET($Q$15,0,0,$S$13+1,1),-1)) -> 1 | K146: 1232.89 | L146: 1236.05 | M146: 1228.85 | N146: 1234.31 | O146: =G146*J146 -> 31030300
A147: 132 | B147: 2015-03-04 | C147: 1232.150024 | D147: 1232.619995 | E147: 1224.630005 | F147: 1230.72998 | G147: 34211100 | H147: 1230.72998 | I147: 1 | J147: 1 | K147: 1232.15 | L147: 1232.62 | M147: 1224.63 | N147: 1230.73 | O147: 34211100
A148: 133 | B148: 2015-03-03 | C148: 1238.790039 | D148: 1238.939941 | E148: 1230.73999 | F148: 1234.76001 | G148: 32623000 | H148: 1234.76001 | I148: 1 | J148: 1 | K148: 1238.79 | L148: 1238.94 | M148: 1230.74 | N148: 1234.76 | O148: 32623000
A149: 134 | B149: 2015-03-02 | C149: 1233.390015 | D149: 1243.329956 | E149: 1232.670044 | F149: 1242.619995 | G149: 34094900 | H149: 1242.619995 | I149: 1 | J149: 1 | K149: 1233.39 | L149: 1243.33 | M149: 1232.67 | N149: 1242.62 | O149: 34094900
A150: 135 | B150: 2015-02-27 | C150: 1238.140015 | D150: 1239.670044 | E150: 1233.26001 | F150: 1233.369995 | G150: 35473800 | H150: 1233.369995 | I150: 1 | J150: 1 | K150: 1238.14 | L150: 1239.67 | M150: 1233.26 | N150: 1233.37 | O150: 35473800
A151: 136 | B151: 2015-02-26 | C151: 1234.670044 | D151: 1239.219971 | E151: 1231.699951 | F151: 1239.109985 | G151: 34086900 | H151: 1239.109985 | I151: 1 | J151: 1 | K151: 1234.67 | L151: 1239.22 | M151: 1231.7 | N151: 1239.11 | O151: 34086900
A152: 137 | B152: 2015-02-25 | C152: 1233.23999 | D152: 1236.880005 | E152: 1230.949951 | F152: 1235.099976 | G152: 33123400 | H152: 1235.099976 | I152: 1 | J152: 1 | K152: 1233.24 | L152: 1236.88 | M152: 1230.95 | N152: 1235.1 | O152: 33123400
A153: 138 | B153: 2015-02-24 | C153: 1232.23999 | D153: 1236.199951 | E153: 1230.069946 | F153: 1233.97998 | G153: 31998400 | H153: 1233.97998 | I153: 1 | J153: 1 | K153: 1232.24 | L153: 1236.2 | M153: 1230.07 | N153: 1233.98 | O153: 31998400
A154: 139 | B154: 2015-02-23 | C154: 1230.219971 | D154: 1231.839966 | E154: 1222.640015 | F154: 1231.829956 | G154: 30936800 | H154: 1231.829956 | I154: 1 | J154: 1 | K154: 1230.22 | L154: 1231.84 | M154: 1222.64 | N154: 1231.83 | O154: 30936800
A155: 140 | B155: 2015-02-20 | C155: 1228.119995 | D155: 1231.920044 | E155: 1218.290039 | F155: 1231.790039 | G155: 32816000 | H155: 1231.790039 | I155: 1 | J155: 1 | K155: 1228.12 | L155: 1231.92 | M155: 1218.29 | N155: 1231.79 | O155: 32816000
A156: 141 | B156: 2015-02-19 | C156: 1225.089966 | D156: 1230.5 | E156: 1222.849976 | F156: 1227.910034 | G156: 32471000 | H156: 1227.910034 | I156: 1 | J156: 1 | K156: 1225.09 | L156: 1230.5 | M156: 1222.85 | N156: 1227.91 | O156: 32471000
A157: 142 | B157: 2015-02-18 | C157: 1222.560059 | D157: 1227.97998 | E157: 1219.839966 | F157: 1227.949951 | G157: 33700200 | H157: 1227.949951 | I157: 1 | J157: 1 | K157: 1222.56 | L157: 1227.98 | M157: 1219.84 | N157: 1227.95 | O157: 33700200
A158: 143 | B158: 2015-02-17 | C158: 1223.099976 | D158: 1227.180054 | E158: 1221.040039 | F158: 1225.01001 | G158: 33617500 | H158: 1225.01001 | I158: 1 | J158: 1 | K158: 1223.1 | L158: 1227.18 | M158: 1221.04 | N158: 1225.01 | O158: 33617500
A159: 144 | B159: 2015-02-13 | C159: 1218.050049 | D159: 1223.73999 | E159: 1214.930054 | F159: 1223.130005 | G159: 35274500 | H159: 1223.130005 | I159: 1 | J159: 1 | K159: 1218.05 | L159: 1223.74 | M159: 1214.93 | N159: 1223.13 | O159: 35274500
A160: 145 | B160: 2015-02-12 | C160: 1207.599976 | D160: 1216.27002 | E160: 1206.75 | F160: 1216.27002 | G160: 37883500 | H160: 1216.27002 | I160: 1 | J160: 1 | K160: 1207.6 | L160: 1216.27 | M160: 1206.75 | N160: 1216.27 | O160: 37883500
A161: 146 | B161: 2015-02-11 | C161: 1201.25 | D161: 1204.439941 | E161: 1195.280029 | F161: 1201.550049 | G161: 35968600 | H161: 1201.550049 | I161: 1 | J161: 1 | K161: 1201.25 | L161: 1204.44 | M161: 1195.28 | N161: 1201.55 | O161: 35968600
A162: 147 | B162: 2015-02-10 | C162: 1202.609985 | D162: 1205.119995 | E162: 1190.27002 | F162: 1203.180054 | G162: 36698500 | H162: 1203.180054 | I162: 1 | J162: 1 | K162: 1202.61 | L162: 1205.12 | M162: 1190.27 | N162: 1203.18 | O162: 36698500
A163: 148 | B163: 2015-02-09 | C163: 1202.26001 | D163: 1208.280029 | E163: 1195.380005 | F163: 1195.829956 | G163: 35495400 | H163: 1195.829956 | I163: 1 | J163: 1 | K163: 1202.26 | L163: 1208.28 | M163: 1195.38 | N163: 1195.83 | O163: 35495400
A164: 149 | B164: 2015-02-06 | C164: 1209.73999 | D164: 1214.709961 | E164: 1202.160034 | F164: 1205.459961 | G164: 42329700 | H164: 1205.459961 | I164: 1 | J164: 1 | K164: 1209.74 | L164: 1214.71 | M164: 1202.16 | N164: 1205.46 | O164: 42329700
A165: 150 | B165: 2015-02-05 | C165: 1195.5 | D165: 1209.900024 | E165: 1195.410034 | F165: 1208.709961 | G165: 38219900 | H165: 1208.709961 | I165: 1 | J165: 1 | K165: 1195.5 | L165: 1209.9 | M165: 1195.41 | N165: 1208.71 | O165: 38219900
A166: 151 | B166: 2015-02-04 | C166: 1191.560059 | D166: 1198.949951 | E166: 1189.339966 | F166: 1191.439941 | G166: 41419200 | H166: 1191.439941 | I166: 1 | J166: 1 | K166: 1191.56 | L166: 1198.95 | M166: 1189.34 | N166: 1191.44 | O166: 41419200
A167: 152 | B167: 2015-02-03 | C167: 1180.079956 | D167: 1197.390015 | E167: 1180.060059 | F167: 1196.98999 | G167: 46159000 | H167: 1196.98999 | I167: 1 | J167: 1 | K167: 1180.08 | L167: 1197.39 | M167: 1180.06 | N167: 1196.99 | O167: 46159000
A168: 153 | B168: 2015-02-02 | C168: 1168.579956 | D168: 1175.560059 | E168: 1153.790039 | F168: 1175.51001 | G168: 40083300 | H168: 1175.51001 | I168: 1 | J168: 1 | K168: 1168.58 | L168: 1175.56 | M168: 1153.79 | N168: 1175.51 | O168: 40083300
A169: 154 | B169: 2015-01-30 | C169: 1183.339966 | D169: 1186.040039 | E169: 1164.900024 | F169: 1165.390015 | G169: 45386500 | H169: 1165.390015 | I169: 1 | J169: 1 | K169: 1183.34 | L169: 1186.04 | M169: 1164.9 | N169: 1165.39 | O169: 45386500
A170: 155 | B170: 2015-01-29 | C170: 1177.150024 | D170: 1190.189941 | E170: 1170.140015 | F170: 1190.180054 | G170: 41271400 | H170: 1190.180054 | I170: 1 | J170: 1 | K170: 1177.15 | L170: 1190.19 | M170: 1170.14 | N170: 1190.18 | O170: 41271400
A171: 156 | B171: 2015-01-28 | C171: 1200.680054 | D171: 1201.23999 | E171: 1172.72998 | F171: 1175.119995 | G171: 40675300 | H171: 1175.119995 | I171: 1 | J171: 1 | K171: 1200.68 | L171: 1201.24 | M171: 1172.73 | N171: 1175.12 | O171: 40675300
A172: 157 | B172: 2015-01-27 | C172: 1190.339966 | D172: 1199.77002 | E172: 1186.160034 | F172: 1194.660034 | G172: 33298100 | H172: 1194.660034 | I172: 1 | J172: 1 | K172: 1190.34 | L172: 1199.77 | M172: 1186.16 | N172: 1194.66 | O172: 33298100
A173: 158 | B173: 2015-01-26 | C173: 1188.930054 | D173: 1200.73999 | E173: 1181.77002 | F173: 1200.73999 | G173: 34657600 | H173: 1200.73999 | I173: 1 | J173: 1 | K173: 1188.93 | L173: 1200.74 | M173: 1181.77 | N173: 1200.74 | O173: 34657600
A174: 159 | B174: 2015-01-23 | C174: 1190.26001 | D174: 1194.150024 | E174: 1185.5 | F174: 1188.930054 | G174: 35735600 | H174: 1188.930054 | I174: 1 | J174: 1 | K174: 1190.26 | L174: 1194.15 | M174: 1185.5 | N174: 1188.93 | O174: 35735600
A175: 160 | B175: 2015-01-22 | C175: 1172.5 | D175: 1190.369995 | E175: 1161.300049 | F175: 1190.369995 | G175: 41760500 | H175: 1190.369995 | I175: 1 | J175: 1 | K175: 1172.5 | L175: 1190.37 | M175: 1161.3 | N175: 1190.37 | O175: 41760500
A176: 161 | B176: 2015-01-21 | C176: 1167.52002 | D176: 1174.949951 | E176: 1162.310059 | F176: 1166.25 | G176: 37300700 | H176: 1166.25 | I176: 1 | J176: 1 | K176: 1167.52 | L176: 1174.95 | M176: 1162.31 | N176: 1166.25 | O176: 37300700
A177: 162 | B177: 2015-01-20 | C177: 1179.079956 | D177: 1179.140015 | E177: 1161.329956 | F177: 1170.25 | G177: 39443400 | H177: 1170.25 | I177: 1 | J177: 1 | K177: 1179.08 | L177: 1179.14 | M177: 1161.33 | N177: 1170.25 | O177: 39443400
A178: 163 | B178: 2015-01-16 | C178: 1151.339966 | D178: 1177.189941 | E178: 1151.300049 | F178: 1176.650024 | G178: 40564100 | H178: 1176.650024 | I178: 1 | J178: 1 | K178: 1151.34 | L178: 1177.19 | M178: 1151.3 | N178: 1176.65 | O178: 40564100
A179: 164 | B179: 2015-01-15 | C179: 1179.719971 | D179: 1180.869995 | E179: 1154.640015 | F179: 1154.709961 | G179: 42767200 | H179: 1154.709961 | I179: 1 | J179: 1 | K179: 1179.72 | L179: 1180.87 | M179: 1154.64 | N179: 1154.71 | O179: 42767200
A180: 165 | B180: 2015-01-14 | C180: 1169.75 | D180: 1177.97998 | E180: 1165.060059 | F180: 1177.060059 | G180: 43786800 | H180: 1177.060059 | I180: 1 | J180: 1 | K180: 1169.75 | L180: 1177.98 | M180: 1165.06 | N180: 1177.06 | O180: 43786800
A181: 166 | B181: 2015-01-13 | C181: 1187.52002 | D181: 1200.52002 | E181: 1168.410034 | F181: 1180.640015 | G181: 41073000 | H181: 1180.640015 | I181: 1 | J181: 1 | K181: 1187.52 | L181: 1200.52 | M181: 1168.41 | N181: 1180.64 | O181: 41073000
A182: 167 | B182: 2015-01-12 | C182: 1186.939941 | D182: 1187.630005 | E182: 1173.219971 | F182: 1180.089966 | G182: 34564600 | H182: 1180.089966 | I182: 1 | J182: 1 | K182: 1186.94 | L182: 1187.63 | M182: 1173.22 | N182: 1180.09 | O182: 34564600
A183: 168 | B183: 2015-01-09 | C183: 1196.01001 | D183: 1196.060059 | E183: 1183.089966 | F183: 1185.680054 | G183: 33641400 | H183: 1185.680054 | I183: 1 | J183: 1 | K183: 1196.01 | L183: 1196.06 | M183: 1183.09 | N183: 1185.68 | O183: 33641400
A184: 169 | B184: 2015-01-08 | C184: 1184.170044 | D184: 1196.130005 | E184: 1184.079956 | F184: 1196.130005 | G184: 39340100 | H184: 1196.130005 | I184: 1 | J184: 1 | K184: 1184.17 | L184: 1196.13 | M184: 1184.08 | N184: 1196.13 | O184: 39340100
A185: 170 | B185: 2015-01-07 | C185: 1169.300049 | D185: 1175.97998 | E185: 1164.949951 | F185: 1175.969971 | G185: 38054800 | H185: 1175.969971 | I185: 1 | J185: 1 | K185: 1169.3 | L185: 1175.98 | M185: 1164.95 | N185: 1175.97 | O185: 38054800
A186: 171 | B186: 2015-01-06 | C186: 1183.469971 | D186: 1183.910034 | E186: 1153.400024 | F186: 1161.310059 | G186: 44601100 | H186: 1161.310059 | I186: 1 | J186: 1 | K186: 1183.47 | L186: 1183.91 | M186: 1153.4 | N186: 1161.31 | O186: 44601100
A187: 172 | B187: 2015-01-05 | C187: 1192.359985 | D187: 1194.219971 | E187: 1177.459961 | F187: 1181.349976 | G187: 37991200 | H187: 1181.349976 | I187: 1 | J187: 1 | K187: 1192.36 | L187: 1194.22 | M187: 1177.46 | N187: 1181.35 | O187: 37991200
A188: 173 | B188: 2015-01-02 | C188: 1209.97998 | D188: 1212.800049 | E188: 1189.160034 | F188: 1198.800049 | G188: 27087000 | H188: 1198.800049 | I188: 1 | J188: 1 | K188: 1209.98 | L188: 1212.8 | M188: 1189.16 | N188: 1198.8 | O188: 27087000
A189: 174 | B189: 2014-12-31 | C189: 1215.569946 | D189: 1221.439941 | E189: 1204.689941 | F189: 1204.699951 | G189: 26060700 | H189: 1204.699951 | I189: 1 | J189: 1 | K189: 1215.57 | L189: 1221.44 | M189: 1204.69 | N189: 1204.7 | O189: 26060700
A190: 175 | B190: 2014-12-30 | C190: 1215.930054 | D190: 1219.449951 | E190: 1212.339966 | F190: 1213.050049 | G190: 24402800 | H190: 1213.050049 | I190: 1 | J190: 1 | K190: 1215.93 | L190: 1219.45 | M190: 1212.34 | N190: 1213.05 | O190: 24402800
A191: 176 | B191: 2014-12-29 | C191: 1214.439941 | D191: 1220.810059 | E191: 1214.439941 | F191: 1219.109985 | G191: 24523600 | H191: 1219.109985 | I191: 1 | J191: 1 | K191: 1214.44 | L191: 1220.81 | M191: 1214.44 | N191: 1219.11 | O191: 24523600
A192: 177 | B192: 2014-12-26 | C192: 1210.880005 | D192: 1217.01001 | E192: 1210.880005 | F192: 1215.209961 | G192: 17352300 | H192: 1215.209961 | I192: 1 | J192: 1 | K192: 1210.88 | L192: 1217.01 | M192: 1210.88 | N192: 1215.21 | O192: 17352300
A193: 178 | B193: 2014-12-24 | C193: 1203.780029 | D193: 1208.780029 | E193: 1202.540039 | F193: 1206.780029 | G193: 14169800 | H193: 1206.780029 | I193: 1 | J193: 1 | K193: 1203.78 | L193: 1208.78 | M193: 1202.54 | N193: 1206.78 | O193: 14169800
A194: 179 | B194: 2014-12-23 | C194: 1205.77002 | D194: 1207.170044 | E194: 1200.380005 | F194: 1202.439941 | G194: 30439500 | H194: 1202.439941 | I194: 1 | J194: 1 | K194: 1205.77 | L194: 1207.17 | M194: 1200.38 | N194: 1202.44 | O194: 30439500
A195: 180 | B195: 2014-12-22 | C195: 1196.01001 | D195: 1201.880005 | E195: 1193.569946 | F195: 1201.859985 | G195: 33695200 | H195: 1201.859985 | I195: 1 | J195: 1 | K195: 1196.01 | L195: 1201.88 | M195: 1193.57 | N195: 1201.86 | O195: 33695200
A196: 181 | B196: 2014-12-19 | C196: 1191.47998 | D196: 1198.969971 | E196: 1187.939941 | F196: 1195.959961 | G196: 64655300 | H196: 1195.959961 | I196: 1 | J196: 1 | K196: 1191.48 | L196: 1198.97 | M196: 1187.94 | N196: 1195.96 | O196: 64655300
A197: 182 | B197: 2014-12-18 | C197: 1185.939941 | D197: 1192.160034 | E197: 1180.609985 | F197: 1192.160034 | G197: 47033800 | H197: 1192.160034 | I197: 1 | J197: 1 | K197: 1185.94 | L197: 1192.16 | M197: 1180.61 | N197: 1192.16 | O197: 47033800
A198: 183 | B198: 2014-12-17 | C198: 1141.869995 | D198: 1174.839966 | E198: 1141.339966 | F198: 1174.839966 | G198: 49123700 | H198: 1174.839966 | I198: 1 | J198: 1 | K198: 1141.87 | L198: 1174.84 | M198: 1141.34 | N198: 1174.84 | O198: 49123700
A199: 184 | B199: 2014-12-16 | C199: 1136.869995 | D199: 1156.939941 | E199: 1134.51001 | F199: 1139.369995 | G199: 49586800 | H199: 1139.369995 | I199: 1 | J199: 1 | K199: 1136.87 | L199: 1156.94 | M199: 1134.51 | N199: 1139.37 | O199: 49586800
A200: 185 | B200: 2014-12-15 | C200: 1157.719971 | D200: 1160.530029 | E200: 1138.130005 | F200: 1140.300049 | G200: 43619900 | H200: 1140.300049 | I200: 1 | J200: 1 | K200: 1157.72 | L200: 1160.53 | M200: 1138.13 | N200: 1140.3 | O200: 43619900
... 4300 more rows

Sheet CalculationsAndCharts
A1: ApirinePercentageTrueRange
A2: =InputPriceData!A1 -> Russell 2000 (^RUT) -WCB (Daily)
A4: User Charting Controls
A5: Data Control
A6: =InputPriceData!$B$10 -> 7058 | B6: Available Input Data Rows | E6: Earliest: | F6: =OFFSET(InputPriceData!B15,CalculationsAndCharts!A6,0,1,1) -> 1987-09-10
B7: Use Close Adjusted: | C7: TRUE | E7: Latest: | F7: =OFFSET(InputPriceData!B15,1,0,1,1) -> 2015-09-09
A8: =MIN(A6-A11,COUNTA(B33:B9983)) -> 2500 | B8: Logically Available for Calc / Plot | E8: $ Change: | F8: =InputPriceData!I4 -> -3.396606
A10: Price Chart Windowing Controls | F10: Y-axis Range
A11: 3810 | B11: Input Data Offset (Pan) | E11: Max High+ | F11: =CEILING(MAX(OFFSET($E$33,0,0,$A$12,1))+2*F14,0.1) -> 635.1
A12: 256 | B12: Data Points to Plot (Zoom) | E12: Min Low- | F12: =FLOOR(MIN(OFFSET($F$33,0,0,$A$12,1))-2*F14,0.1) -> 385.4
B13: First: | C13: =OFFSET(B32,A12,0,1,1) -> 1999-07-14 | E13: White space %: | F13: 0.05
B14: ="Last: "&OFFSET(InputPriceData!P15,1+A11,0,1,1) -> Last: | C14: =B33 -> 2000-07-17 | E14: Allowance: | F14: =FLOOR((CEILING(MAX(OFFSET($E$33,0,0,$A$12,1)),1)-FLOOR(MIN(OFFSET($F$33,0,0,$A$12,1)),1))*F13,0.01) -> 10.45
A15: User Controls for Indicator Calculations
A16: 14 | B16: <== Wilder MA Period
C17: Wilder MA Coefficients
C18: Alpha: | D18: =(A16-1)/A16 -> 0.9285714286 | E18: 1-Alpha: | F18: =1-D18 -> 0.07142857143
A23: Help! I would like to plot data
A24: From | B24: 1999-07-14 | C24: =OFFSET(InputPriceData!$A$15,MATCH(B24,OFFSET(InputPriceData!B15,1,0,InputPriceData!$B$10,1),0),0,1,1)-C25 -> 256 | E24: 237
A25: To | B25: 2000-07-17 | C25: =OFFSET(InputPriceData!$A$15,MATCH(B25,OFFSET(InputPriceData!$B$15,1,0,InputPriceData!$B$10,1),0),0,1,1)-1 -> 3810 | E25: =$A$12-$E$24+1 -> 20
H28: @ Cursor => | I28: =OFFSET(A32,$E$25,0,1,1)&"(RR)" -> 20(RR) | J28: =OFFSET($B$32,E25,0,1,1) -> 2000-06-19 | K28: =TEXT(OFFSET(D32,$E$25,0,1,1),"#,##0.00")&"(o)" -> 513.74(o) | L28: =TEXT(OFFSET(E32,$E$25,0,1,1),"#,##0.00")&"(h)" -> 522.79(h) | M28: =TEXT(OFFSET(F32,$E$25,0,1,1),"#,##0.00")&"(l)" -> 510.05(l) | N28: =TEXT(OFFSET(G32,$E$25,0,1,1),"#,##0.00")&"(c)" -> 522.79(c)
E29: Cursor =>
D30: Price Source Column Index | Y30: ATR Cursor | AC30: APTR Cursor
A31: Rel Row | D31: 0 | E31: 1 | F31: 2 | G31: 3 | H31: H - L | I31: ABS ( H - Cp ) | J31: ABS (L - Cp) | K31: True Range (TR) | L31: ="ATR(" &$A$16& ")" -> ATR(14) | M31: Midpoint of H - L | N31: Midpoint of H - Cp | O31: Midpoint of L - Cp | P31: Midpoint Ndx | Q31: Percent TR Numerator | R31: Percent TR Divisor | S31: Percent True Range | T31: ="APTR(" &$A$16 & ")" -> APTR(14)
B32: Date | C32: Volume | D32: Open | E32: High | F32: Low | G32: Close | Y32: =MAX(OFFSET(L33,0,0,$A$12,1)) -> 20.68441181 | Z32: =MIN(OFFSET(L33,0,0,$A$12,1)) -> 3.785120908 | AA32: Price Chart Cursor | AC32: =MAX(OFFSET(T33,0,0,$A$12,1)) -> 4.043135875 | AD32: =MIN(OFFSET(T33,0,0,$A$12,1)) -> 0.8681929889
A33: 1 | B33: =OFFSET(InputPriceData!B$15,CalculationsAndCharts!$A33+$A$11,0,1,1) -> 2000-07-17 | C33: =OFFSET(InputPriceData!G$15,CalculationsAndCharts!$A33+$A$11,IF($C$7,8,0),1,1) -> 9060000 | D33: =OFFSET(InputPriceData!C$15,CalculationsAndCharts!$A33+$A$11,IF($C$7,8,0),1,1) -> 542.63 | E33: =OFFSET(InputPriceData!D$15,CalculationsAndCharts!$A33+$A$11,IF($C$7,8,0),1,1) -> 545.71 | F33: =OFFSET(InputPriceData!E$15,CalculationsAndCharts!$A33+$A$11,IF($C$7,8,0),1,1) -> 541.55 | G33: =OFFSET(InputPriceData!F$15,CalculationsAndCharts!$A33+$A$11,IF($C$7,8,0),1,1) -> 545.18 | H33: =E33-F33 -> 4.16 | I33: =IF(A33>=$A$8,0,ABS(E33-G34)) -> 3.08 | J33: =IF(A33>=$A$8,0,ABS(F33-G34)) -> 1.08 | K33: =MAX(H33:J33) -> 4.16 | L33: =IF(A33>$A$8,0,IF(A33>=($A$8-$A$16),AVERAGE(OFFSET(K33,0,0,($A$8-A33+1),1)),(L34*$D$18)+K33*$F$18)) -> 8.137246923 | M33: =AVERAGE(E33:F33) -> 543.63 | N33: =AVERAGE(E33,G34) -> 544.17 | O33: =AVERAGE(F33,G34) -> 542.09 | P33: =IF(K33=H33,0,IF(K33=I33,1,2)) -> 0 | Q33: =OFFSET(H33,0,P33,1,1) -> 4.16 | R33: =OFFSET(M33,0,P33,1,1) -> 543.63 | S33: =K33/R33*100 -> 0.7652263488 | T33: =IF(A33>$A$8,0,IF(A33>=($A$8-$A$16),AVERAGE(OFFSET(S33,0,0,($A$8-A33+1),1)),(T34*$D$18)+S33*$F$18)) -> 1.581648597 | Y33: =$E$25 -> 20 | Z33: =Y32 -> 20.68441181 | AA33: =$E$25 -> 20 | AB33: =$F$11 -> 635.1 | AC33: =$E$25 -> 20 | AD33: =AC32 -> 4.043135875
A34: 2 | B34: =OFFSET(InputPriceData!B$15,CalculationsAndCharts!$A34+$A$11,0,1,1) -> 2000-07-14 | C34: =OFFSET(InputPriceData!G$15,CalculationsAndCharts!$A34+$A$11,IF($C$7,8,0),1,1) -> 9606000 | D34: =OFFSET(InputPriceData!C$15,CalculationsAndCharts!$A34+$A$11,IF($C$7,8,0),1,1) -> 542.76 | E34: =OFFSET(InputPriceData!D$15,CalculationsAndCharts!$A34+$A$11,IF($C$7,8,0),1,1) -> 543.84 | F34: =OFFSET(InputPriceData!E$15,CalculationsAndCharts!$A34+$A$11,IF($C$7,8,0),1,1) -> 539.51 | G34: =OFFSET(InputPriceData!F$15,CalculationsAndCharts!$A34+$A$11,IF($C$7,8,0),1,1) -> 542.63 | H34: 4.33 | I34: 1.08 | J34: 3.25 | K34: 4.33 | L34: =IF(A34>$A$8,0,IF(A34>=($A$8-$A$16),AVERAGE(OFFSET(K34,0,0,($A$8-A34+1),1)),(L35*$D$18)+K34*$F$18)) -> 8.443188994 | M34: 541.675 | N34: 543.3 | O34: 541.135 | P34: 0 | Q34: 4.33 | R34: 541.675 | S34: 0.7993723173 | T34: 1.644450308 | Y34: =$E$25 -> 20 | Z34: 0 | AA34: =$E$25 -> 20 | AB34: =$F$12 -> 385.4 | AC34: =$E$25 -> 20 | AD34: 0
A35: 3 | B35: =OFFSET(InputPriceData!B$15,CalculationsAndCharts!$A35+$A$11,0,1,1) -> 2000-07-13 | C35: =OFFSET(InputPriceData!G$15,CalculationsAndCharts!$A35+$A$11,IF($C$7,8,0),1,1) -> 10268000 | D35: =OFFSET(InputPriceData!C$15,CalculationsAndCharts!$A35+$A$11,IF($C$7,8,0),1,1) -> 540.25 | E35: =OFFSET(InputPriceData!D$15,CalculationsAndCharts!$A35+$A$11,IF($C$7,8,0),1,1) -> 542.76 | F35: =OFFSET(InputPriceData!E$15,CalculationsAndCharts!$A35+$A$11,IF($C$7,8,0),1,1) -> 540.11 | G35: =OFFSET(InputPriceData!F$15,CalculationsAndCharts!$A35+$A$11,IF($C$7,8,0),1,1) -> 542.76 | H35: 2.65 | I35: 2.51 | J35: 0.14 | K35: 2.65 | L35: 8.759588147 | M35: 541.435 | N35: 541.505 | O35: 540.18 | P35: 0 | Q35: 2.65 | R35: 541.435 | S35: 0.489440099 | T35: 1.709456307
A36: 4 | B36: =OFFSET(InputPriceData!B$15,CalculationsAndCharts!$A36+$A$11,0,1,1) -> 2000-07-12 | C36: =OFFSET(InputPriceData!G$15,CalculationsAndCharts!$A36+$A$11,IF($C$7,8,0),1,1) -> 10012000 | D36: =OFFSET(InputPriceData!C$15,CalculationsAndCharts!$A36+$A$11,IF($C$7,8,0),1,1) -> 529.74 | E36: =OFFSET(InputPriceData!D$15,CalculationsAndCharts!$A36+$A$11,IF($C$7,8,0),1,1) -> 540.26 | F36: =OFFSET(InputPriceData!E$15,CalculationsAndCharts!$A36+$A$11,IF($C$7,8,0),1,1) -> 529.74 | G36: =OFFSET(InputPriceData!F$15,CalculationsAndCharts!$A36+$A$11,IF($C$7,8,0),1,1) -> 540.25 | H36: 10.52 | I36: 10.52 | J36: 0 | K36: 10.52 | L36: 9.229556466 | M36: 535 | N36: 535 | O36: 529.74 | P36: 0 | Q36: 10.52 | R36: 535 | S36: 1.96635514 | T36: 1.803303708
A37: 5 | B37: =OFFSET(InputPriceData!B$15,CalculationsAndCharts!$A37+$A$11,0,1,1) -> 2000-07-11 | C37: =OFFSET(InputPriceData!G$15,CalculationsAndCharts!$A37+$A$11,IF($C$7,8,0),1,1) -> 9805000 | D37: =OFFSET(InputPriceData!C$15,CalculationsAndCharts!$A37+$A$11,IF($C$7,8,0),1,1) -> 530.83 | E37: =OFFSET(InputPriceData!D$15,CalculationsAndCharts!$A37+$A$11,IF($C$7,8,0),1,1) -> 533.26 | F37: =OFFSET(InputPriceData!E$15,CalculationsAndCharts!$A37+$A$11,IF($C$7,8,0),1,1) -> 529.04 | G37: =OFFSET(InputPriceData!F$15,CalculationsAndCharts!$A37+$A$11,IF($C$7,8,0),1,1) -> 529.74 | H37: 4.22 | I37: 2.43 | J37: 1.79 | K37: 4.22 | L37: 9.130291579 | M37: 531.15 | N37: 532.045 | O37: 529.935 | P37: 0 | Q37: 4.22 | R37: 531.15 | S37: 0.7945024946 | T37: 1.79076129
A38: 6 | B38: =OFFSET(InputPriceData!B$15,CalculationsAndCharts!$A38+$A$11,0,1,1) -> 2000-07-10 | C38: =OFFSET(InputPriceData!G$15,CalculationsAndCharts!$A38+$A$11,IF($C$7,8,0),1,1) -> 8387000 | D38: =OFFSET(InputPriceData!C$15,CalculationsAndCharts!$A38+$A$11,IF($C$7,8,0),1,1) -> 528.22 | E38: =OFFSET(InputPriceData!D$15,CalculationsAndCharts!$A38+$A$11,IF($C$7,8,0),1,1) -> 532.18 | F38: =OFFSET(InputPriceData!E$15,CalculationsAndCharts!$A38+$A$11,IF($C$7,8,0),1,1) -> 527.75 | G38: =OFFSET(InputPriceData!F$15,CalculationsAndCharts!$A38+$A$11,IF($C$7,8,0),1,1) -> 530.83 | H38: 4.43 | I38: 3.96 | J38: 0.47 | K38: 4.43 | L38: 9.508006316 | M38: 529.965 | N38: 530.2 | O38: 527.985 | P38: 0 | Q38: 4.43 | R38: 529.965 | S38: 0.8359042578 | T38: 1.867396582
A39: 7 | B39: =OFFSET(InputPriceData!B$15,CalculationsAndCharts!$A39+$A$11,0,1,1) -> 2000-07-07 | C39: =OFFSET(InputPriceData!G$15,CalculationsAndCharts!$A39+$A$11,IF($C$7,8,0),1,1) -> 9317000 | D39: =OFFSET(InputPriceData!C$15,CalculationsAndCharts!$A39+$A$11,IF($C$7,8,0),1,1) -> 523.3 | E39: =OFFSET(InputPriceData!D$15,CalculationsAndCharts!$A39+$A$11,IF($C$7,8,0),1,1) -> 528.65 | F39: =OFFSET(InputPriceData!E$15,CalculationsAndCharts!$A39+$A$11,IF($C$7,8,0),1,1) -> 523.3 | G39: =OFFSET(InputPriceData!F$15,CalculationsAndCharts!$A39+$A$11,IF($C$7,8,0),1,1) -> 528.22 | H39: 5.35 | I39: 5.33 | J39: 0.02 | K39: 5.35 | L39: 9.898622186 | M39: 525.975 | N39: 525.985 | O39: 523.31 | P39: 0 | Q39: 5.35 | R39: 525.975 | S39: 1.01715861 | T39: 1.946742145
A40: 8 | B40: =OFFSET(InputPriceData!B$15,CalculationsAndCharts!$A40+$A$11,0,1,1) -> 2000-07-06 | C40: =OFFSET(InputPriceData!G$15,CalculationsAndCharts!$A40+$A$11,IF($C$7,8,0),1,1) -> 9473000 | D40: =OFFSET(InputPriceData!C$15,CalculationsAndCharts!$A40+$A$11,IF($C$7,8,0),1,1) -> 518.28 | E40: =OFFSET(InputPriceData!D$15,CalculationsAndCharts!$A40+$A$11,IF($C$7,8,0),1,1) -> 523.32 | F40: =OFFSET(InputPriceData!E$15,CalculationsAndCharts!$A40+$A$11,IF($C$7,8,0),1,1) -> 513.66 | G40: =OFFSET(InputPriceData!F$15,CalculationsAndCharts!$A40+$A$11,IF($C$7,8,0),1,1) -> 523.32 | H40: 9.66 | I40: 5.07 | J40: 4.59 | K40: 9.66 | L40: 10.2485162 | M40: 518.49 | N40: 520.785 | O40: 515.955 | P40: 0 | Q40: 9.66 | R40: 518.49 | S40: 1.863102471 | T40: 2.018248571
A41: 9 | B41: =OFFSET(InputPriceData!B$15,CalculationsAndCharts!$A41+$A$11,0,1,1) -> 2000-07-05 | C41: =OFFSET(InputPriceData!G$15,CalculationsAndCharts!$A41+$A$11,IF($C$7,8,0),1,1) -> 10193000 | D41: =OFFSET(InputPriceData!C$15,CalculationsAndCharts!$A41+$A$11,IF($C$7,8,0),1,1) -> 524.02 | E41: =OFFSET(InputPriceData!D$15,CalculationsAndCharts!$A41+$A$11,IF($C$7,8,0),1,1) -> 524.02 | F41: =OFFSET(InputPriceData!E$15,CalculationsAndCharts!$A41+$A$11,IF($C$7,8,0),1,1) -> 517.5 | G41: =OFFSET(InputPriceData!F$15,CalculationsAndCharts!$A41+$A$11,IF($C$7,8,0),1,1) -> 518.25 | H41: 6.52 | I41: 0.02 | J41: 6.54 | K41: 6.54 | L41: 10.29378668 | M41: 520.76 | N41: 524.03 | O41: 520.77 | P41: 2 | Q41: 6.54 | R41: 520.77 | S41: 1.255832709 | T41: 2.030182886
A42: 10 | B42: =OFFSET(InputPriceData!B$15,CalculationsAndCharts!$A42+$A$11,0,1,1) -> 2000-07-03 | C42: =OFFSET(InputPriceData!G$15,CalculationsAndCharts!$A42+$A$11,IF($C$7,8,0),1,1) -> 4519000 | D42: =OFFSET(InputPriceData!C$15,CalculationsAndCharts!$A42+$A$11,IF($C$7,8,0),1,1) -> 517.24 | E42: =OFFSET(InputPriceData!D$15,CalculationsAndCharts!$A42+$A$11,IF($C$7,8,0),1,1) -> 524.21 | F42: =OFFSET(InputPriceData!E$15,CalculationsAndCharts!$A42+$A$11,IF($C$7,8,0),1,1) -> 517.1 | G42: =OFFSET(InputPriceData!F$15,CalculationsAndCharts!$A42+$A$11,IF($C$7,8,0),1,1) -> 524.04 | H42: 7.11 | I42: 6.98 | J42: 0.13 | K42: 7.11 | L42: 10.5825395 | M42: 520.655 | N42: 520.72 | O42: 517.165 | P42: 0 | Q42: 7.11 | R42: 520.655 | S42: 1.365587577 | T42: 2.089748285
A43: 11 | B43: =OFFSET(InputPriceData!B$15,CalculationsAndCharts!$A43+$A$11,0,1,1) -> 2000-06-30 | C43: =OFFSET(InputPriceData!G$15,CalculationsAndCharts!$A43+$A$11,IF($C$7,8,0),1,1) -> 14597000 | D43: =OFFSET(InputPriceData!C$15,CalculationsAndCharts!$A43+$A$11,IF($C$7,8,0),1,1) -> 512.58 | E43: =OFFSET(InputPriceData!D$15,CalculationsAndCharts!$A43+$A$11,IF($C$7,8,0),1,1) -> 517.24 | F43: =OFFSET(InputPriceData!E$15,CalculationsAndCharts!$A43+$A$11,IF($C$7,8,0),1,1) -> 509.92 | G43: =OFFSET(InputPriceData!F$15,CalculationsAndCharts!$A43+$A$11,IF($C$7,8,0),1,1) -> 517.23 | H43: 7.32 | I43: 4.66 | J43: 2.66 | K43: 7.32 | L43: 10.84965792 | M43: 513.58 | N43: 514.91 | O43: 511.25 | P43: 0 | Q43: 7.32 | R43: 513.58 | S43: 1.425289147 | T43: 2.145452954
A44: 12 | B44: =OFFSET(InputPriceData!B$15,CalculationsAndCharts!$A44+$A$11,0,1,1) -> 2000-06-29 | C44: =OFFSET(InputPriceData!G$15,CalculationsAndCharts!$A44+$A$11,IF($C$7,8,0),1,1) -> 11109000 | D44: =OFFSET(InputPriceData!C$15,CalculationsAndCharts!$A44+$A$11,IF($C$7,8,0),1,1) -> 520.99 | E44: =OFFSET(InputPriceData!D$15,CalculationsAndCharts!$A44+$A$11,IF($C$7,8,0),1,1) -> 520.99 | F44: =OFFSET(InputPriceData!E$15,CalculationsAndCharts!$A44+$A$11,IF($C$7,8,0),1,1) -> 511.3 | G44: =OFFSET(InputPriceData!F$15,CalculationsAndCharts!$A44+$A$11,IF($C$7,8,0),1,1) -> 512.58 | H44: 9.69 | I44: 0 | J44: 9.69 | K44: 9.69 | L44: 11.12117007 | M44: 516.145 | N44: 520.99 | O44: 516.145 | P44: 0 | Q44: 9.69 | R44: 516.145 | S44: 1.877379419 | T44: 2.20085017
A45: 13 | B45: =OFFSET(InputPriceData!B$15,CalculationsAndCharts!$A45+$A$11,0,1,1) -> 2000-06-28 | C45: =OFFSET(InputPriceData!G$15,CalculationsAndCharts!$A45+$A$11,IF($C$7,8,0),1,1) -> 10951000 | D45: =OFFSET(InputPriceData!C$15,CalculationsAndCharts!$A45+$A$11,IF($C$7,8,0),1,1) -> 508.08 | E45: =OFFSET(InputPriceData!D$15,CalculationsAndCharts!$A45+$A$11,IF($C$7,8,0),1,1) -> 521 | F45: =OFFSET(InputPriceData!E$15,CalculationsAndCharts!$A45+$A$11,IF($C$7,8,0),1,1) -> 508.08 | G45: =OFFSET(InputPriceData!F$15,CalculationsAndCharts!$A45+$A$11,IF($C$7,8,0),1,1) -> 520.99 | H45: 12.92 | I45: 12.92 | J45: 0 | K45: 12.92 | L45: 11.23126007 | M45: 514.54 | N45: 514.54 | O45: 508.08 | P45: 0 | Q45: 12.92 | R45: 514.54 | S45: 2.510980682 | T45: 2.225732536
A46: 14 | B46: =OFFSET(InputPriceData!B$15,CalculationsAndCharts!$A46+$A$11,0,1,1) -> 2000-06-27 | C46: =OFFSET(InputPriceData!G$15,CalculationsAndCharts!$A46+$A$11,IF($C$7,8,0),1,1) -> 10425000 | D46: =OFFSET(InputPriceData!C$15,CalculationsAndCharts!$A46+$A$11,IF($C$7,8,0),1,1) -> 516.36 | E46: =OFFSET(InputPriceData!D$15,CalculationsAndCharts!$A46+$A$11,IF($C$7,8,0),1,1) -> 518.57 | F46: =OFFSET(InputPriceData!E$15,CalculationsAndCharts!$A46+$A$11,IF($C$7,8,0),1,1) -> 507.88 | G46: =OFFSET(InputPriceData!F$15,CalculationsAndCharts!$A46+$A$11,IF($C$7,8,0),1,1) -> 508.08 | H46: 10.69 | I46: 2.21 | J46: 8.48 | K46: 10.69 | L46: 11.101357 | M46: 513.225 | N46: 517.465 | O46: 512.12 | P46: 0 | Q46: 10.69 | R46: 513.225 | S46: 2.082907107 | T46: 2.203790371
A47: 15 | B47: =OFFSET(InputPriceData!B$15,CalculationsAndCharts!$A47+$A$11,0,1,1) -> 2000-06-26 | C47: =OFFSET(InputPriceData!G$15,CalculationsAndCharts!$A47+$A$11,IF($C$7,8,0),1,1) -> 8890000 | D47: =OFFSET(InputPriceData!C$15,CalculationsAndCharts!$A47+$A$11,IF($C$7,8,0),1,1) -> 510.41 | E47: =OFFSET(InputPriceData!D$15,CalculationsAndCharts!$A47+$A$11,IF($C$7,8,0),1,1) -> 516.37 | F47: =OFFSET(InputPriceData!E$15,CalculationsAndCharts!$A47+$A$11,IF($C$7,8,0),1,1) -> 509.23 | G47: =OFFSET(InputPriceData!F$15,CalculationsAndCharts!$A47+$A$11,IF($C$7,8,0),1,1) -> 516.36 | H47: 7.14 | I47: 5.96 | J47: 1.18 | K47: 7.14 | L47: 11.13299985 | M47: 512.8 | N47: 513.39 | O47: 509.82 | P47: 0 | Q47: 7.14 | R47: 512.8 | S47: 1.392355694 | T47: 2.213089084
A48: 16 | B48: =OFFSET(InputPriceData!B$15,CalculationsAndCharts!$A48+$A$11,0,1,1) -> 2000-06-23 | C48: =OFFSET(InputPriceData!G$15,CalculationsAndCharts!$A48+$A$11,IF($C$7,8,0),1,1) -> 8476000 | D48: =OFFSET(InputPriceData!C$15,CalculationsAndCharts!$A48+$A$11,IF($C$7,8,0),1,1) -> 515.01 | E48: =OFFSET(InputPriceData!D$15,CalculationsAndCharts!$A48+$A$11,IF($C$7,8,0),1,1) -> 518.22 | F48: =OFFSET(InputPriceData!E$15,CalculationsAndCharts!$A48+$A$11,IF($C$7,8,0),1,1) -> 508.22 | G48: =OFFSET(InputPriceData!F$15,CalculationsAndCharts!$A48+$A$11,IF($C$7,8,0),1,1) -> 510.41 | H48: 10 | I48: 3.21 | J48: 6.79 | K48: 10 | L48: 11.44015368 | M48: 513.22 | N48: 516.615 | O48: 511.615 | P48: 0 | Q48: 10 | R48: 513.22 | S48: 1.948482132 | T48: 2.276222421
A49: 17 | B49: =OFFSET(InputPriceData!B$15,CalculationsAndCharts!$A49+$A$11,0,1,1) -> 2000-06-22 | C49: =OFFSET(InputPriceData!G$15,CalculationsAndCharts!$A49+$A$11,IF($C$7,8,0),1,1) -> 10227000 | D49: =OFFSET(InputPriceData!C$15,CalculationsAndCharts!$A49+$A$11,IF($C$7,8,0),1,1) -> 527.61 | E49: =OFFSET(InputPriceData!D$15,CalculationsAndCharts!$A49+$A$11,IF($C$7,8,0),1,1) -> 530.41 | F49: =OFFSET(InputPriceData!E$15,CalculationsAndCharts!$A49+$A$11,IF($C$7,8,0),1,1) -> 515.01 | G49: =OFFSET(InputPriceData!F$15,CalculationsAndCharts!$A49+$A$11,IF($C$7,8,0),1,1) -> 515.01 | H49: 15.4 | I49: 2.8 | J49: 12.6 | K49: 15.4 | L49: 11.55093474 | M49: 522.71 | N49: 529.01 | O49: 521.31 | P49: 0 | Q49: 15.4 | R49: 522.71 | S49: 2.946184309 | T49: 2.301433213
A50: 18 | B50: =OFFSET(InputPriceData!B$15,CalculationsAndCharts!$A50+$A$11,0,1,1) -> 2000-06-21 | C50: =OFFSET(InputPriceData!G$15,CalculationsAndCharts!$A50+$A$11,IF($C$7,8,0),1,1) -> 10096000 | D50: =OFFSET(InputPriceData!C$15,CalculationsAndCharts!$A50+$A$11,IF($C$7,8,0),1,1) -> 525.69 | E50: =OFFSET(InputPriceData!D$15,CalculationsAndCharts!$A50+$A$11,IF($C$7,8,0),1,1) -> 528.44 | F50: =OFFSET(InputPriceData!E$15,CalculationsAndCharts!$A50+$A$11,IF($C$7,8,0),1,1) -> 522.17 | G50: =OFFSET(InputPriceData!F$15,CalculationsAndCharts!$A50+$A$11,IF($C$7,8,0),1,1) -> 527.61 | H50: 6.27 | I50: 2.75 | J50: 3.52 | K50: 6.27 | L50: 11.25485279 | M50: 525.305 | N50: 527.065 | O50: 523.93 | P50: 0 | Q50: 6.27 | R50: 525.305 | S50: 1.193592294 | T50: 2.251836974
A51: 19 | B51: =OFFSET(InputPriceData!B$15,CalculationsAndCharts!$A51+$A$11,0,1,1) -> 2000-06-20 | C51: =OFFSET(InputPriceData!G$15,CalculationsAndCharts!$A51+$A$11,IF($C$7,8,0),1,1) -> 10315000 | D51: =OFFSET(InputPriceData!C$15,CalculationsAndCharts!$A51+$A$11,IF($C$7,8,0),1,1) -> 522.77 | E51: =OFFSET(InputPriceData!D$15,CalculationsAndCharts!$A51+$A$11,IF($C$7,8,0),1,1) -> 526.98 | F51: =OFFSET(InputPriceData!E$15,CalculationsAndCharts!$A51+$A$11,IF($C$7,8,0),1,1) -> 520.75 | G51: =OFFSET(InputPriceData!F$15,CalculationsAndCharts!$A51+$A$11,IF($C$7,8,0),1,1) -> 525.69 | H51: 6.23 | I51: 4.19 | J51: 2.04 | K51: 6.23 | L51: 11.63830301 | M51: 523.865 | N51: 524.885 | O51: 521.77 | P51: 0 | Q51: 6.23 | R51: 523.865 | S51: 1.189237685 | T51: 2.333240411
A52: 20 | B52: =OFFSET(InputPriceData!B$15,CalculationsAndCharts!$A52+$A$11,0,1,1) -> 2000-06-19 | C52: =OFFSET(InputPriceData!G$15,CalculationsAndCharts!$A52+$A$11,IF($C$7,8,0),1,1) -> 9217000 | D52: =OFFSET(InputPriceData!C$15,CalculationsAndCharts!$A52+$A$11,IF($C$7,8,0),1,1) -> 513.74 | E52: =OFFSET(InputPriceData!D$15,CalculationsAndCharts!$A52+$A$11,IF($C$7,8,0),1,1) -> 522.79 | F52: =OFFSET(InputPriceData!E$15,CalculationsAndCharts!$A52+$A$11,IF($C$7,8,0),1,1) -> 510.05 | G52: =OFFSET(InputPriceData!F$15,CalculationsAndCharts!$A52+$A$11,IF($C$7,8,0),1,1) -> 522.79 | H52: 12.74 | I52: 9.05 | J52: 3.69 | K52: 12.74 | L52: 12.05432632 | M52: 516.42 | N52: 518.265 | O52: 511.895 | P52: 0 | Q52: 12.74 | R52: 516.42 | S52: 2.466984238 | T52: 2.421240621
A53: 21 | B53: =OFFSET(InputPriceData!B$15,CalculationsAndCharts!$A53+$A$11,0,1,1) -> 2000-06-16 | C53: =OFFSET(InputPriceData!G$15,CalculationsAndCharts!$A53+$A$11,IF($C$7,8,0),1,1) -> 12508000 | D53: =OFFSET(InputPriceData!C$15,CalculationsAndCharts!$A53+$A$11,IF($C$7,8,0),1,1) -> 512.25 | E53: =OFFSET(InputPriceData!D$15,CalculationsAndCharts!$A53+$A$11,IF($C$7,8,0),1,1) -> 514.94 | F53: =OFFSET(InputPriceData!E$15,CalculationsAndCharts!$A53+$A$11,IF($C$7,8,0),1,1) -> 510 | G53: =OFFSET(InputPriceData!F$15,CalculationsAndCharts!$A53+$A$11,IF($C$7,8,0),1,1) -> 513.74 | H53: 4.94 | I53: 2.69 | J53: 2.25 | K53: 4.94 | L53: 12.00158219 | M53: 512.47 | N53: 513.595 | O53: 511.125 | P53: 0 | Q53: 4.94 | R53: 512.47 | S53: 0.9639588659 | T53: 2.417721881
A54: 22 | B54: =OFFSET(InputPriceData!B$15,CalculationsAndCharts!$A54+$A$11,0,1,1) -> 2000-06-15 | C54: =OFFSET(InputPriceData!G$15,CalculationsAndCharts!$A54+$A$11,IF($C$7,8,0),1,1) -> 10114000 | D54: =OFFSET(InputPriceData!C$15,CalculationsAndCharts!$A54+$A$11,IF($C$7,8,0),1,1) -> 509.67 | E54: =OFFSET(InputPriceData!D$15,CalculationsAndCharts!$A54+$A$11,IF($C$7,8,0),1,1) -> 512.28 | F54: =OFFSET(InputPriceData!E$15,CalculationsAndCharts!$A54+$A$11,IF($C$7,8,0),1,1) -> 504.13 | G54: =OFFSET(InputPriceData!F$15,CalculationsAndCharts!$A54+$A$11,IF($C$7,8,0),1,1) -> 512.25 | H54: 8.15 | I54: 2.61 | J54: 5.54 | K54: 8.15 | L54: 12.54478082 | M54: 508.205 | N54: 510.975 | O54: 506.9 | P54: 0 | Q54: 8.15 | R54: 508.205 | S54: 1.603683553 | T54: 2.529549806
A55: 23 | B55: =OFFSET(InputPriceData!B$15,CalculationsAndCharts!$A55+$A$11,0,1,1) -> 2000-06-14 | C55: =OFFSET(InputPriceData!G$15,CalculationsAndCharts!$A55+$A$11,IF($C$7,8,0),1,1) -> 9297000 | D55: =OFFSET(InputPriceData!C$15,CalculationsAndCharts!$A55+$A$11,IF($C$7,8,0),1,1) -> 513.75 | E55: =OFFSET(InputPriceData!D$15,CalculationsAndCharts!$A55+$A$11,IF($C$7,8,0),1,1) -> 517.58 | F55: =OFFSET(InputPriceData!E$15,CalculationsAndCharts!$A55+$A$11,IF($C$7,8,0),1,1) -> 509.49 | G55: =OFFSET(InputPriceData!F$15,CalculationsAndCharts!$A55+$A$11,IF($C$7,8,0),1,1) -> 509.67 | H55: 8.09 | I55: 3.83 | J55: 4.26 | K55: 8.09 | L55: 12.88284088 | M55: 513.535 | N55: 515.665 | O55: 511.62 | P55: 0 | Q55: 8.09 | R55: 513.535 | S55: 1.575355136 | T55: 2.600770287
A56: 24 | B56: =OFFSET(InputPriceData!B$15,CalculationsAndCharts!$A56+$A$11,0,1,1) -> 2000-06-13 | C56: =OFFSET(InputPriceData!G$15,CalculationsAndCharts!$A56+$A$11,IF($C$7,8,0),1,1) -> 9359000 | D56: =OFFSET(InputPriceData!C$15,CalculationsAndCharts!$A56+$A$11,IF($C$7,8,0),1,1) -> 508.51 | E56: =OFFSET(InputPriceData!D$15,CalculationsAndCharts!$A56+$A$11,IF($C$7,8,0),1,1) -> 513.76 | F56: =OFFSET(InputPriceData!E$15,CalculationsAndCharts!$A56+$A$11,IF($C$7,8,0),1,1) -> 500.91 | G56: =OFFSET(InputPriceData!F$15,CalculationsAndCharts!$A56+$A$11,IF($C$7,8,0),1,1) -> 513.75 | H56: 12.85 | I56: 5.25 | J56: 7.6 | K56: 12.85 | L56: 13.25152095 | M56: 507.335 | N56: 511.135 | O56: 504.71 | P56: 0 | Q56: 12.85 | R56: 507.335 | S56: 2.53284319 | T56: 2.679648375
A57: 25 | B57: =OFFSET(InputPriceData!B$15,CalculationsAndCharts!$A57+$A$11,0,1,1) -> 2000-06-12 | C57: =OFFSET(InputPriceData!G$15,CalculationsAndCharts!$A57+$A$11,IF($C$7,8,0),1,1) -> 7741000 | D57: =OFFSET(InputPriceData!C$15,CalculationsAndCharts!$A57+$A$11,IF($C$7,8,0),1,1) -> 523.07 | E57: =OFFSET(InputPriceData!D$15,CalculationsAndCharts!$A57+$A$11,IF($C$7,8,0),1,1) -> 523.79 | F57: =OFFSET(InputPriceData!E$15,CalculationsAndCharts!$A57+$A$11,IF($C$7,8,0),1,1) -> 508.2 | G57: =OFFSET(InputPriceData!F$15,CalculationsAndCharts!$A57+$A$11,IF($C$7,8,0),1,1) -> 508.51 | H57: 15.59 | I57: 0.73 | J57: 14.86 | K57: 15.59 | L57: 13.28240718 | M57: 515.995 | N57: 523.425 | O57: 515.63 | P57: 0 | Q57: 15.59 | R57: 515.995 | S57: 3.021347106 | T57: 2.690941082
A58: 26 | B58: =OFFSET(InputPriceData!B$15,CalculationsAndCharts!$A58+$A$11,0,1,1) -> 2000-06-09 | C58: =OFFSET(InputPriceData!G$15,CalculationsAndCharts!$A58+$A$11,IF($C$7,8,0),1,1) -> 7860000 | D58: =OFFSET(InputPriceData!C$15,CalculationsAndCharts!$A58+$A$11,IF($C$7,8,0),1,1) -> 514.54 | E58: =OFFSET(InputPriceData!D$15,CalculationsAndCharts!$A58+$A$11,IF($C$7,8,0),1,1) -> 523.35 | F58: =OFFSET(InputPriceData!E$15,CalculationsAndCharts!$A58+$A$11,IF($C$7,8,0),1,1) -> 514.54 | G58: =OFFSET(InputPriceData!F$15,CalculationsAndCharts!$A58+$A$11,IF($C$7,8,0),1,1) -> 523.06 | H58: 8.81 | I58: 8.81 | J58: 0 | K58: 8.81 | L58: 13.10490004 | M58: 518.945 | N58: 518.945 | O58: 514.54 | P58: 0 | Q58: 8.81 | R58: 518.945 | S58: 1.697675091 | T58: 2.665525234
A59: 27 | B59: =OFFSET(InputPriceData!B$15,CalculationsAndCharts!$A59+$A$11,0,1,1) -> 2000-06-08 | C59: =OFFSET(InputPriceData!G$15,CalculationsAndCharts!$A59+$A$11,IF($C$7,8,0),1,1) -> 8543000 | D59: =OFFSET(InputPriceData!C$15,CalculationsAndCharts!$A59+$A$11,IF($C$7,8,0),1,1) -> 516.42 | E59: =OFFSET(InputPriceData!D$15,CalculationsAndCharts!$A59+$A$11,IF($C$7,8,0),1,1) -> 519.63 | F59: =OFFSET(InputPriceData!E$15,CalculationsAndCharts!$A59+$A$11,IF($C$7,8,0),1,1) -> 513.59 | G59: =OFFSET(InputPriceData!F$15,CalculationsAndCharts!$A59+$A$11,IF($C$7,8,0),1,1) -> 514.54 | H59: 6.04 | I59: 3.09 | J59: 2.95 | K59: 6.04 | L59: 13.43527696 | M59: 516.61 | N59: 518.085 | O59: 515.065 | P59: 0 | Q59: 6.04 | R59: 516.61 | S59: 1.169160489 | T59: 2.739975245
A60: 28 | B60: =OFFSET(InputPriceData!B$15,CalculationsAndCharts!$A60+$A$11,0,1,1) -> 2000-06-07 | C60: =OFFSET(InputPriceData!G$15,CalculationsAndCharts!$A60+$A$11,IF($C$7,8,0),1,1) -> 8546000 | D60: =OFFSET(InputPriceData!C$15,CalculationsAndCharts!$A60+$A$11,IF($C$7,8,0),1,1) -> 511.65 | E60: =OFFSET(InputPriceData!D$15,CalculationsAndCharts!$A60+$A$11,IF($C$7,8,0),1,1) -> 516.54 | F60: =OFFSET(InputPriceData!E$15,CalculationsAndCharts!$A60+$A$11,IF($C$7,8,0),1,1) -> 507.91 | G60: =OFFSET(InputPriceData!F$15,CalculationsAndCharts!$A60+$A$11,IF($C$7,8,0),1,1) -> 516.54 | H60: 8.63 | I60: 4.89 | J60: 3.74 | K60: 8.63 | L60: 14.00414442 | M60: 512.225 | N60: 514.095 | O60: 509.78 | P60: 0 | Q60: 8.63 | R60: 512.225 | S60: 1.684806482 | T60: 2.860807149
A61: 29 | B61: =OFFSET(InputPriceData!B$15,CalculationsAndCharts!$A61+$A$11,0,1,1) -> 2000-06-06 | C61: =OFFSET(InputPriceData!G$15,CalculationsAndCharts!$A61+$A$11,IF($C$7,8,0),1,1) -> 9501000 | D61: =OFFSET(InputPriceData!C$15,CalculationsAndCharts!$A61+$A$11,IF($C$7,8,0),1,1) -> 513.3 | E61: =OFFSET(InputPriceData!D$15,CalculationsAndCharts!$A61+$A$11,IF($C$7,8,0),1,1) -> 523.05 | F61: =OFFSET(InputPriceData!E$15,CalculationsAndCharts!$A61+$A$11,IF($C$7,8,0),1,1) -> 511.49 | G61: =OFFSET(InputPriceData!F$15,CalculationsAndCharts!$A61+$A$11,IF($C$7,8,0),1,1) -> 511.65 | H61: 11.56 | I61: 9.75 | J61: 1.81 | K61: 11.56 | L61: 14.41754014 | M61: 517.27 | N61: 518.175 | O61: 512.395 | P61: 0 | Q61: 11.56 | R61: 517.27 | S61: 2.234809674 | T61: 2.951268739
A62: 30 | B62: =OFFSET(InputPriceData!B$15,CalculationsAndCharts!$A62+$A$11,0,1,1) -> 2000-06-05 | C62: =OFFSET(InputPriceData!G$15,CalculationsAndCharts!$A62+$A$11,IF($C$7,8,0),1,1) -> 8386000 | D62: =OFFSET(InputPriceData!C$15,CalculationsAndCharts!$A62+$A$11,IF($C$7,8,0),1,1) -> 513.03 | E62: =OFFSET(InputPriceData!D$15,CalculationsAndCharts!$A62+$A$11,IF($C$7,8,0),1,1) -> 518.03 | F62: =OFFSET(InputPriceData!E$15,CalculationsAndCharts!$A62+$A$11,IF($C$7,8,0),1,1) -> 509.3 | G62: =OFFSET(InputPriceData!F$15,CalculationsAndCharts!$A62+$A$11,IF($C$7,8,0),1,1) -> 513.3 | H62: 8.73 | I62: 5 | J62: 3.73 | K62: 8.73 | L62: 14.63735092 | M62: 513.665 | N62: 515.53 | O62: 511.165 | P62: 0 | Q62: 8.73 | R62: 513.665 | S62: 1.699551264 | T62: 3.006380974
A63: 31 | B63: =OFFSET(InputPriceData!B$15,CalculationsAndCharts!$A63+$A$11,0,1,1) -> 2000-06-02 | C63: =OFFSET(InputPriceData!G$15,CalculationsAndCharts!$A63+$A$11,IF($C$7,8,0),1,1) -> 11624000 | D63: =OFFSET(InputPriceData!C$15,CalculationsAndCharts!$A63+$A$11,IF($C$7,8,0),1,1) -> 492.47 | E63: =OFFSET(InputPriceData!D$15,CalculationsAndCharts!$A63+$A$11,IF($C$7,8,0),1,1) -> 513.04 | F63: =OFFSET(InputPriceData!E$15,CalculationsAndCharts!$A63+$A$11,IF($C$7,8,0),1,1) -> 492.47 | G63: =OFFSET(InputPriceData!F$15,CalculationsAndCharts!$A63+$A$11,IF($C$7,8,0),1,1) -> 513.03 | H63: 20.57 | I63: 20.57 | J63: 0 | K63: 20.57 | L63: 15.09176253 | M63: 502.755 | N63: 502.755 | O63: 492.47 | P63: 0 | Q63: 20.57 | R63: 502.755 | S63: 4.091456077 | T63: 3.106906337
A64: 32 | B64: =OFFSET(InputPriceData!B$15,CalculationsAndCharts!$A64+$A$11,0,1,1) -> 2000-06-01 | C64: =OFFSET(InputPriceData!G$15,CalculationsAndCharts!$A64+$A$11,IF($C$7,8,0),1,1) -> 9601000 | D64: =OFFSET(InputPriceData!C$15,CalculationsAndCharts!$A64+$A$11,IF($C$7,8,0),1,1) -> 476.18 | E64: =OFFSET(InputPriceData!D$15,CalculationsAndCharts!$A64+$A$11,IF($C$7,8,0),1,1) -> 492.47 | F64: =OFFSET(InputPriceData!E$15,CalculationsAndCharts!$A64+$A$11,IF($C$7,8,0),1,1) -> 476.18 | G64: =OFFSET(InputPriceData!F$15,CalculationsAndCharts!$A64+$A$11,IF($C$7,8,0),1,1) -> 492.47 | H64: 16.29 | I64: 16.29 | J64: 0 | K64: 16.29 | L64: 14.67035965 | M64: 484.325 | N64: 484.325 | O64: 476.18 | P64: 0 | Q64: 16.29 | R64: 484.325 | S64: 3.363443968 | T64: 3.031171741
A65: 33 | B65: =OFFSET(InputPriceData!B$15,CalculationsAndCharts!$A65+$A$11,0,1,1) -> 2000-05-31 | C65: =OFFSET(InputPriceData!G$15,CalculationsAndCharts!$A65+$A$11,IF($C$7,8,0),1,1) -> 9605000 | D65: =OFFSET(InputPriceData!C$15,CalculationsAndCharts!$A65+$A$11,IF($C$7,8,0),1,1) -> 476.72 | E65: =OFFSET(InputPriceData!D$15,CalculationsAndCharts!$A65+$A$11,IF($C$7,8,0),1,1) -> 481.63 | F65: =OFFSET(InputPriceData!E$15,CalculationsAndCharts!$A65+$A$11,IF($C$7,8,0),1,1) -> 473.32 | G65: =OFFSET(InputPriceData!F$15,CalculationsAndCharts!$A65+$A$11,IF($C$7,8,0),1,1) -> 476.18 | H65: 8.31 | I65: 4.93 | J65: 3.38 | K65: 8.31 | L65: 14.54577193 | M65: 477.475 | N65: 479.165 | O65: 475.01 | P65: 0 | Q65: 8.31 | R65: 477.475 | S65: 1.740405257 | T65: 3.005612339
A66: 34 | B66: =OFFSET(InputPriceData!B$15,CalculationsAndCharts!$A66+$A$11,0,1,1) -> 2000-05-30 | C66: =OFFSET(InputPriceData!G$15,CalculationsAndCharts!$A66+$A$11,IF($C$7,8,0),1,1) -> 8442000 | D66: =OFFSET(InputPriceData!C$15,CalculationsAndCharts!$A66+$A$11,IF($C$7,8,0),1,1) -> 457.37 | E66: =OFFSET(InputPriceData!D$15,CalculationsAndCharts!$A66+$A$11,IF($C$7,8,0),1,1) -> 476.7 | F66: =OFFSET(InputPriceData!E$15,CalculationsAndCharts!$A66+$A$11,IF($C$7,8,0),1,1) -> 457.37 | G66: =OFFSET(InputPriceData!F$15,CalculationsAndCharts!$A66+$A$11,IF($C$7,8,0),1,1) -> 476.7 | H66: 19.33 | I66: 19.33 | J66: 0 | K66: 19.33 | L66: 15.0254467 | M66: 467.035 | N66: 467.035 | O66: 457.37 | P66: 0 | Q66: 19.33 | R66: 467.035 | S66: 4.138876101 | T66: 3.102935961
A67: 35 | B67: =OFFSET(InputPriceData!B$15,CalculationsAndCharts!$A67+$A$11,0,1,1) -> 2000-05-26 | C67: =OFFSET(InputPriceData!G$15,CalculationsAndCharts!$A67+$A$11,IF($C$7,8,0),1,1) -> 7226000 | D67: =OFFSET(InputPriceData!C$15,CalculationsAndCharts!$A67+$A$11,IF($C$7,8,0),1,1) -> 456.17 | E67: =OFFSET(InputPriceData!D$15,CalculationsAndCharts!$A67+$A$11,IF($C$7,8,0),1,1) -> 458.88 | F67: =OFFSET(InputPriceData!E$15,CalculationsAndCharts!$A67+$A$11,IF($C$7,8,0),1,1) -> 451.95 | G67: =OFFSET(InputPriceData!F$15,CalculationsAndCharts!$A67+$A$11,IF($C$7,8,0),1,1) -> 457.37 | H67: 6.93 | I67: 2.71 | J67: 4.22 | K67: 6.93 | L67: 14.69432721 | M67: 455.415 | N67: 457.525 | O67: 454.06 | P67: 0 | Q67: 6.93 | R67: 455.415 | S67: 1.521689009 | T67: 3.023248258
A68: 36 | B68: =OFFSET(InputPriceData!B$15,CalculationsAndCharts!$A68+$A$11,0,1,1) -> 2000-05-25 | C68: =OFFSET(InputPriceData!G$15,CalculationsAndCharts!$A68+$A$11,IF($C$7,8,0),1,1) -> 9845000 | D68: =OFFSET(InputPriceData!C$15,CalculationsAndCharts!$A68+$A$11,IF($C$7,8,0),1,1) -> 461.74 | E68: =OFFSET(InputPriceData!D$15,CalculationsAndCharts!$A68+$A$11,IF($C$7,8,0),1,1) -> 469.92 | F68: =OFFSET(InputPriceData!E$15,CalculationsAndCharts!$A68+$A$11,IF($C$7,8,0),1,1) -> 456.16 | G68: =OFFSET(InputPriceData!F$15,CalculationsAndCharts!$A68+$A$11,IF($C$7,8,0),1,1) -> 456.17 | H68: 13.76 | I68: 8.18 | J68: 5.58 | K68: 13.76 | L68: 15.29158315 | M68: 463.04 | N68: 465.83 | O68: 458.95 | P68: 0 | Q68: 13.76 | R68: 463.04 | S68: 2.971665515 | T68: 3.138752816
A69: 37 | B69: =OFFSET(InputPriceData!B$15,CalculationsAndCharts!$A69+$A$11,0,1,1) -> 2000-05-24 | C69: =OFFSET(InputPriceData!G$15,CalculationsAndCharts!$A69+$A$11,IF($C$7,8,0),1,1) -> 11523000 | D69: =OFFSET(InputPriceData!C$15,CalculationsAndCharts!$A69+$A$11,IF($C$7,8,0),1,1) -> 459.01 | E69: =OFFSET(InputPriceData!D$15,CalculationsAndCharts!$A69+$A$11,IF($C$7,8,0),1,1) -> 461.74 | F69: =OFFSET(InputPriceData!E$15,CalculationsAndCharts!$A69+$A$11,IF($C$7,8,0),1,1) -> 443.99 | G69: =OFFSET(InputPriceData!F$15,CalculationsAndCharts!$A69+$A$11,IF($C$7,8,0),1,1) -> 461.74 | H69: 17.75 | I69: 2.73 | J69: 15.02 | K69: 17.75 | L69: 15.40939724 | M69: 452.865 | N69: 460.375 | O69: 451.5 | P69: 0 | Q69: 17.75 | R69: 452.865 | S69: 3.919490356 | T69: 3.151605685
A70: 38 | B70: =OFFSET(InputPriceData!B$15,CalculationsAndCharts!$A70+$A$11,0,1,1) -> 2000-05-23 | C70: =OFFSET(InputPriceData!G$15,CalculationsAndCharts!$A70+$A$11,IF($C$7,8,0),1,1) -> 8699000 | D70: =OFFSET(InputPriceData!C$15,CalculationsAndCharts!$A70+$A$11,IF($C$7,8,0),1,1) -> 471.67 | E70: =OFFSET(InputPriceData!D$15,CalculationsAndCharts!$A70+$A$11,IF($C$7,8,0),1,1) -> 474.17 | F70: =OFFSET(InputPriceData!E$15,CalculationsAndCharts!$A70+$A$11,IF($C$7,8,0),1,1) -> 459.01 | G70: =OFFSET(InputPriceData!F$15,CalculationsAndCharts!$A70+$A$11,IF($C$7,8,0),1,1) -> 459.01 | H70: 15.16 | I70: 2.5 | J70: 12.66 | K70: 15.16 | L70: 15.22935087 | M70: 466.59 | N70: 472.92 | O70: 465.34 | P70: 0 | Q70: 15.16 | R70: 466.59 | S70: 3.24910521 | T70: 3.092537633
A71: 39 | B71: =OFFSET(InputPriceData!B$15,CalculationsAndCharts!$A71+$A$11,0,1,1) -> 2000-05-22 | C71: =OFFSET(InputPriceData!G$15,CalculationsAndCharts!$A71+$A$11,IF($C$7,8,0),1,1) -> 8690000 | D71: =OFFSET(InputPriceData!C$15,CalculationsAndCharts!$A71+$A$11,IF($C$7,8,0),1,1) -> 479.7 | E71: =OFFSET(InputPriceData!D$15,CalculationsAndCharts!$A71+$A$11,IF($C$7,8,0),1,1) -> 480.59 | F71: =OFFSET(InputPriceData!E$15,CalculationsAndCharts!$A71+$A$11,IF($C$7,8,0),1,1) -> 458.21 | G71: =OFFSET(InputPriceData!F$15,CalculationsAndCharts!$A71+$A$11,IF($C$7,8,0),1,1) -> 471.67 | H71: 22.38 | I71: 0.89 | J71: 21.49 | K71: 22.38 | L71: 15.23468556 | M71: 469.4 | N71: 480.145 | O71: 468.955 | P71: 0 | Q71: 22.38 | R71: 469.4 | S71: 4.767788666 | T71: 3.080493973
A72: 40 | B72: =OFFSET(InputPriceData!B$15,CalculationsAndCharts!$A72+$A$11,0,1,1) -> 2000-05-19 | C72: =OFFSET(InputPriceData!G$15,CalculationsAndCharts!$A72+$A$11,IF($C$7,8,0),1,1) -> 8537000 | D72: =OFFSET(InputPriceData!C$15,CalculationsAndCharts!$A72+$A$11,IF($C$7,8,0),1,1) -> 490.95 | E72: =OFFSET(InputPriceData!D$15,CalculationsAndCharts!$A72+$A$11,IF($C$7,8,0),1,1) -> 490.95 | F72: =OFFSET(InputPriceData!E$15,CalculationsAndCharts!$A72+$A$11,IF($C$7,8,0),1,1) -> 477.73 | G72: =OFFSET(InputPriceData!F$15,CalculationsAndCharts!$A72+$A$11,IF($C$7,8,0),1,1) -> 479.7 | H72: 13.22 | I72: 0 | J72: 13.22 | K72: 13.22 | L72: 14.68504598 | M72: 484.34 | N72: 490.95 | O72: 484.34 | P72: 0 | Q72: 13.22 | R72: 484.34 | S72: 2.72948755 | T72: 2.950702074
A73: 41 | B73: =OFFSET(InputPriceData!B$15,CalculationsAndCharts!$A73+$A$11,0,1,1) -> 2000-05-18 | C73: =OFFSET(InputPriceData!G$15,CalculationsAndCharts!$A73+$A$11,IF($C$7,8,0),1,1) -> 8079000 | D73: =OFFSET(InputPriceData!C$15,CalculationsAndCharts!$A73+$A$11,IF($C$7,8,0),1,1) -> 499.66 | E73: =OFFSET(InputPriceData!D$15,CalculationsAndCharts!$A73+$A$11,IF($C$7,8,0),1,1) -> 501.51 | F73: =OFFSET(InputPriceData!E$15,CalculationsAndCharts!$A73+$A$11,IF($C$7,8,0),1,1) -> 490.95 | G73: =OFFSET(InputPriceData!F$15,CalculationsAndCharts!$A73+$A$11,IF($C$7,8,0),1,1) -> 490.95 | H73: 10.56 | I73: 1.85 | J73: 8.71 | K73: 10.56 | L73: 14.79774183 | M73: 496.23 | N73: 500.585 | O73: 495.305 | P73: 0 | Q73: 10.56 | R73: 496.23 | S73: 2.128045463 | T73: 2.967718576
A74: 42 | B74: =OFFSET(InputPriceData!B$15,CalculationsAndCharts!$A74+$A$11,0,1,1) -> 2000-05-17 | C74: =OFFSET(InputPriceData!G$15,CalculationsAndCharts!$A74+$A$11,IF($C$7,8,0),1,1) -> 8205000 | D74: =OFFSET(InputPriceData!C$15,CalculationsAndCharts!$A74+$A$11,IF($C$7,8,0),1,1) -> 505.98 | E74: =OFFSET(InputPriceData!D$15,CalculationsAndCharts!$A74+$A$11,IF($C$7,8,0),1,1) -> 505.98 | F74: =OFFSET(InputPriceData!E$15,CalculationsAndCharts!$A74+$A$11,IF($C$7,8,0),1,1) -> 497.57 | G74: =OFFSET(InputPriceData!F$15,CalculationsAndCharts!$A74+$A$11,IF($C$7,8,0),1,1) -> 499.66 | H74: 8.41 | I74: 0 | J74: 8.41 | K74: 8.41 | L74: 15.12372197 | M74: 501.775 | N74: 505.98 | O74: 501.775 | P74: 0 | Q74: 8.41 | R74: 501.775 | S74: 1.676050022 | T74: 3.032308815
A75: 43 | B75: =OFFSET(InputPriceData!B$15,CalculationsAndCharts!$A75+$A$11,0,1,1) -> 2000-05-16 | C75: =OFFSET(InputPriceData!G$15,CalculationsAndCharts!$A75+$A$11,IF($C$7,8,0),1,1) -> 9555000 | D75: =OFFSET(InputPriceData!C$15,CalculationsAndCharts!$A75+$A$11,IF($C$7,8,0),1,1) -> 497.81 | E75: =OFFSET(InputPriceData!D$15,CalculationsAndCharts!$A75+$A$11,IF($C$7,8,0),1,1) -> 507.52 | F75: =OFFSET(InputPriceData!E$15,CalculationsAndCharts!$A75+$A$11,IF($C$7,8,0),1,1) -> 497.81 | G75: =OFFSET(InputPriceData!F$15,CalculationsAndCharts!$A75+$A$11,IF($C$7,8,0),1,1) -> 505.98 | H75: 9.71 | I75: 9.71 | J75: 0 | K75: 9.71 | L75: 15.64016212 | M75: 502.665 | N75: 502.665 | O75: 497.81 | P75: 0 | Q75: 9.71 | R75: 502.665 | S75: 1.931704018 | T75: 3.136636415
A76: 44 | B76: =OFFSET(InputPriceData!B$15,CalculationsAndCharts!$A76+$A$11,0,1,1) -> 2000-05-15 | C76: =OFFSET(InputPriceData!G$15,CalculationsAndCharts!$A76+$A$11,IF($C$7,8,0),1,1) -> 8546000 | D76: =OFFSET(InputPriceData!C$15,CalculationsAndCharts!$A76+$A$11,IF($C$7,8,0),1,1) -> 490.94 | E76: =OFFSET(InputPriceData!D$15,CalculationsAndCharts!$A76+$A$11,IF($C$7,8,0),1,1) -> 497.81 | F76: =OFFSET(InputPriceData!E$15,CalculationsAndCharts!$A76+$A$11,IF($C$7,8,0),1,1) -> 483.73 | G76: =OFFSET(InputPriceData!F$15,CalculationsAndCharts!$A76+$A$11,IF($C$7,8,0),1,1) -> 497.81 | H76: 14.08 | I76: 6.87 | J76: 7.21 | K76: 14.08 | L76: 16.09632844 | M76: 490.77 | N76: 494.375 | O76: 487.335 | P76: 0 | Q76: 14.08 | R76: 490.77 | S76: 2.86896102 | T76: 3.229323522
A77: 45 | B77: =OFFSET(InputPriceData!B$15,CalculationsAndCharts!$A77+$A$11,0,1,1) -> 2000-05-12 | C77: =OFFSET(InputPriceData!G$15,CalculationsAndCharts!$A77+$A$11,IF($C$7,8,0),1,1) -> 8582000 | D77: =OFFSET(InputPriceData!C$15,CalculationsAndCharts!$A77+$A$11,IF($C$7,8,0),1,1) -> 489.39 | E77: =OFFSET(InputPriceData!D$15,CalculationsAndCharts!$A77+$A$11,IF($C$7,8,0),1,1) -> 498.27 | F77: =OFFSET(InputPriceData!E$15,CalculationsAndCharts!$A77+$A$11,IF($C$7,8,0),1,1) -> 489.39 | G77: =OFFSET(InputPriceData!F$15,CalculationsAndCharts!$A77+$A$11,IF($C$7,8,0),1,1) -> 490.94 | H77: 8.88 | I77: 8.88 | J77: 0 | K77: 8.88 | L77: 16.25143063 | M77: 493.83 | N77: 493.83 | O77: 489.39 | P77: 0 | Q77: 8.88 | R77: 493.83 | S77: 1.79818966 | T77: 3.257043715
A78: 46 | B78: =OFFSET(InputPriceData!B$15,CalculationsAndCharts!$A78+$A$11,0,1,1) -> 2000-05-11 | C78: =OFFSET(InputPriceData!G$15,CalculationsAndCharts!$A78+$A$11,IF($C$7,8,0),1,1) -> 9536000 | D78: =OFFSET(InputPriceData!C$15,CalculationsAndCharts!$A78+$A$11,IF($C$7,8,0),1,1) -> 474.28 | E78: =OFFSET(InputPriceData!D$15,CalculationsAndCharts!$A78+$A$11,IF($C$7,8,0),1,1) -> 489.39 | F78: =OFFSET(InputPriceData!E$15,CalculationsAndCharts!$A78+$A$11,IF($C$7,8,0),1,1) -> 474.28 | G78: =OFFSET(InputPriceData!F$15,CalculationsAndCharts!$A78+$A$11,IF($C$7,8,0),1,1) -> 489.39 | H78: 15.11 | I78: 15.11 | J78: 0 | K78: 15.11 | L78: 16.81846375 | M78: 481.835 | N78: 481.835 | O78: 474.28 | P78: 0 | Q78: 15.11 | R78: 481.835 | S78: 3.135928274 | T78: 3.369263257
A79: 47 | B79: =OFFSET(InputPriceData!B$15,CalculationsAndCharts!$A79+$A$11,0,1,1) -> 2000-05-10 | C79: =OFFSET(InputPriceData!G$15,CalculationsAndCharts!$A79+$A$11,IF($C$7,8,0),1,1) -> 10064000 | D79: =OFFSET(InputPriceData!C$15,CalculationsAndCharts!$A79+$A$11,IF($C$7,8,0),1,1) -> 490.86 | E79: =OFFSET(InputPriceData!D$15,CalculationsAndCharts!$A79+$A$11,IF($C$7,8,0),1,1) -> 490.86 | F79: =OFFSET(InputPriceData!E$15,CalculationsAndCharts!$A79+$A$11,IF($C$7,8,0),1,1) -> 470.57 | G79: =OFFSET(InputPriceData!F$15,CalculationsAndCharts!$A79+$A$11,IF($C$7,8,0),1,1) -> 474.28 | H79: 20.29 | I79: 0 | J79: 20.29 | K79: 20.29 | L79: 16.94988404 | M79: 480.715 | N79: 490.86 | O79: 480.715 | P79: 0 | Q79: 20.29 | R79: 480.715 | S79: 4.220796106 | T79: 3.387212102
A80: 48 | B80: =OFFSET(InputPriceData!B$15,CalculationsAndCharts!$A80+$A$11,0,1,1) -> 2000-05-09 | C80: =OFFSET(InputPriceData!G$15,CalculationsAndCharts!$A80+$A$11,IF($C$7,8,0),1,1) -> 8966000 | D80: =OFFSET(InputPriceData!C$15,CalculationsAndCharts!$A80+$A$11,IF($C$7,8,0),1,1) -> 500.08 | E80: =OFFSET(InputPriceData!D$15,CalculationsAndCharts!$A80+$A$11,IF($C$7,8,0),1,1) -> 504.07 | F80: =OFFSET(InputPriceData!E$15,CalculationsAndCharts!$A80+$A$11,IF($C$7,8,0),1,1) -> 486.82 | G80: =OFFSET(InputPriceData!F$15,CalculationsAndCharts!$A80+$A$11,IF($C$7,8,0),1,1) -> 490.86 | H80: 17.25 | I80: 3.99 | J80: 13.26 | K80: 17.25 | L80: 16.69295204 | M80: 495.445 | N80: 502.075 | O80: 493.45 | P80: 0 | Q80: 17.25 | R80: 495.445 | S80: 3.481718455 | T80: 3.323090256
A81: 49 | B81: =OFFSET(InputPriceData!B$15,CalculationsAndCharts!$A81+$A$11,0,1,1) -> 2000-05-08 | C81: =OFFSET(InputPriceData!G$15,CalculationsAndCharts!$A81+$A$11,IF($C$7,8,0),1,1) -> 7876000 | D81: =OFFSET(InputPriceData!C$15,CalculationsAndCharts!$A81+$A$11,IF($C$7,8,0),1,1) -> 512.84 | E81: =OFFSET(InputPriceData!D$15,CalculationsAndCharts!$A81+$A$11,IF($C$7,8,0),1,1) -> 512.84 | F81: =OFFSET(InputPriceData!E$15,CalculationsAndCharts!$A81+$A$11,IF($C$7,8,0),1,1) -> 499.6 | G81: =OFFSET(InputPriceData!F$15,CalculationsAndCharts!$A81+$A$11,IF($C$7,8,0),1,1) -> 500.08 | H81: 13.24 | I81: 0 | J81: 13.24 | K81: 13.24 | L81: 16.6501022 | M81: 506.22 | N81: 512.84 | O81: 506.22 | P81: 0 | Q81: 13.24 | R81: 506.22 | S81: 2.615463632 | T81: 3.310888087
A82: 50 | B82: =OFFSET(InputPriceData!B$15,CalculationsAndCharts!$A82+$A$11,0,1,1) -> 2000-05-05 | C82: =OFFSET(InputPriceData!G$15,CalculationsAndCharts!$A82+$A$11,IF($C$7,8,0),1,1) -> 8055000 | D82: =OFFSET(InputPriceData!C$15,CalculationsAndCharts!$A82+$A$11,IF($C$7,8,0),1,1) -> 501.91 | E82: =OFFSET(InputPriceData!D$15,CalculationsAndCharts!$A82+$A$11,IF($C$7,8,0),1,1) -> 512.84 | F82: =OFFSET(InputPriceData!E$15,CalculationsAndCharts!$A82+$A$11,IF($C$7,8,0),1,1) -> 499.73 | G82: =OFFSET(InputPriceData!F$15,CalculationsAndCharts!$A82+$A$11,IF($C$7,8,0),1,1) -> 512.84 | H82: 13.11 | I82: 10.93 | J82: 2.18 | K82: 13.11 | L82: 16.91241775 | M82: 506.285 | N82: 507.375 | O82: 500.82 | P82: 0 | Q82: 13.11 | R82: 506.285 | S82: 2.589450606 | T82: 3.364382275
A83: 51 | B83: =OFFSET(InputPriceData!B$15,CalculationsAndCharts!$A83+$A$11,0,1,1) -> 2000-05-04 | C83: =OFFSET(InputPriceData!G$15,CalculationsAndCharts!$A83+$A$11,IF($C$7,8,0),1,1) -> 9258000 | D83: =OFFSET(InputPriceData!C$15,CalculationsAndCharts!$A83+$A$11,IF($C$7,8,0),1,1) -> 495.59 | E83: =OFFSET(InputPriceData!D$15,CalculationsAndCharts!$A83+$A$11,IF($C$7,8,0),1,1) -> 502.63 | F83: =OFFSET(InputPriceData!E$15,CalculationsAndCharts!$A83+$A$11,IF($C$7,8,0),1,1) -> 495.52 | G83: =OFFSET(InputPriceData!F$15,CalculationsAndCharts!$A83+$A$11,IF($C$7,8,0),1,1) -> 501.91 | H83: 7.11 | I83: 7.07 | J83: 0.04 | K83: 7.11 | L83: 17.20491143 | M83: 499.075 | N83: 499.095 | O83: 495.54 | P83: 0 | Q83: 7.11 | R83: 499.075 | S83: 1.424635576 | T83: 3.423992404
A84: 52 | B84: =OFFSET(InputPriceData!B$15,CalculationsAndCharts!$A84+$A$11,0,1,1) -> 2000-05-03 | C84: =OFFSET(InputPriceData!G$15,CalculationsAndCharts!$A84+$A$11,IF($C$7,8,0),1,1) -> 9916000 | D84: =OFFSET(InputPriceData!C$15,CalculationsAndCharts!$A84+$A$11,IF($C$7,8,0),1,1) -> 505.35 | E84: =OFFSET(InputPriceData!D$15,CalculationsAndCharts!$A84+$A$11,IF($C$7,8,0),1,1) -> 505.35 | F84: =OFFSET(InputPriceData!E$15,CalculationsAndCharts!$A84+$A$11,IF($C$7,8,0),1,1) -> 487.33 | G84: =OFFSET(InputPriceData!F$15,CalculationsAndCharts!$A84+$A$11,IF($C$7,8,0),1,1) -> 495.56 | H84: 18.02 | I84: 0 | J84: 18.02 | K84: 18.02 | L84: 17.98144307 | M84: 496.34 | N84: 505.35 | O84: 496.34 | P84: 0 | Q84: 18.02 | R84: 496.34 | S84: 3.630575815 | T84: 3.577789083
A85: 53 | B85: =OFFSET(InputPriceData!B$15,CalculationsAndCharts!$A85+$A$11,0,1,1) -> 2000-05-02 | C85: =OFFSET(InputPriceData!G$15,CalculationsAndCharts!$A85+$A$11,IF($C$7,8,0),1,1) -> 10115000 | D85: =OFFSET(InputPriceData!C$15,CalculationsAndCharts!$A85+$A$11,IF($C$7,8,0),1,1) -> 518.93 | E85: =OFFSET(InputPriceData!D$15,CalculationsAndCharts!$A85+$A$11,IF($C$7,8,0),1,1) -> 520.32 | F85: =OFFSET(InputPriceData!E$15,CalculationsAndCharts!$A85+$A$11,IF($C$7,8,0),1,1) -> 504.97 | G85: =OFFSET(InputPriceData!F$15,CalculationsAndCharts!$A85+$A$11,IF($C$7,8,0),1,1) -> 505.35 | H85: 15.35 | I85: 1.39 | J85: 13.96 | K85: 15.35 | L85: 17.97847716 | M85: 512.645 | N85: 519.625 | O85: 511.95 | P85: 0 | Q85: 15.35 | R85: 512.645 | S85: 2.994274791 | T85: 3.573728565
A86: 54 | B86: =OFFSET(InputPriceData!B$15,CalculationsAndCharts!$A86+$A$11,0,1,1) -> 2000-05-01 | C86: =OFFSET(InputPriceData!G$15,CalculationsAndCharts!$A86+$A$11,IF($C$7,8,0),1,1) -> 9663000 | D86: =OFFSET(InputPriceData!C$15,CalculationsAndCharts!$A86+$A$11,IF($C$7,8,0),1,1) -> 506.25 | E86: =OFFSET(InputPriceData!D$15,CalculationsAndCharts!$A86+$A$11,IF($C$7,8,0),1,1) -> 519.63 | F86: =OFFSET(InputPriceData!E$15,CalculationsAndCharts!$A86+$A$11,IF($C$7,8,0),1,1) -> 506.25 | G86: =OFFSET(InputPriceData!F$15,CalculationsAndCharts!$A86+$A$11,IF($C$7,8,0),1,1) -> 518.93 | H86: 13.38 | I86: 13.38 | J86: 0 | K86: 13.38 | L86: 18.18066771 | M86: 512.94 | N86: 512.94 | O86: 506.25 | P86: 0 | Q86: 13.38 | R86: 512.94 | S86: 2.608492221 | T86: 3.618301932
A87: 55 | B87: =OFFSET(InputPriceData!B$15,CalculationsAndCharts!$A87+$A$11,0,1,1) -> 2000-04-28 | C87: =OFFSET(InputPriceData!G$15,CalculationsAndCharts!$A87+$A$11,IF($C$7,8,0),1,1) -> 9846000 | D87: =OFFSET(InputPriceData!C$15,CalculationsAndCharts!$A87+$A$11,IF($C$7,8,0),1,1) -> 494.56 | E87: =OFFSET(InputPriceData!D$15,CalculationsAndCharts!$A87+$A$11,IF($C$7,8,0),1,1) -> 506.25 | F87: =OFFSET(InputPriceData!E$15,CalculationsAndCharts!$A87+$A$11,IF($C$7,8,0),1,1) -> 494.56 | G87: =OFFSET(InputPriceData!F$15,CalculationsAndCharts!$A87+$A$11,IF($C$7,8,0),1,1) -> 506.25 | H87: 11.69 | I87: 11.67 | J87: 0.02 | K87: 11.69 | L87: 18.54994984 | M87: 500.405 | N87: 500.415 | O87: 494.57 | P87: 0 | Q87: 11.69 | R87: 500.405 | S87: 2.336107753 | T87: 3.695979602
A88: 56 | B88: =OFFSET(InputPriceData!B$15,CalculationsAndCharts!$A88+$A$11,0,1,1) -> 2000-04-27 | C88: =OFFSET(InputPriceData!G$15,CalculationsAndCharts!$A88+$A$11,IF($C$7,8,0),1,1) -> 11110000 | D88: =OFFSET(InputPriceData!C$15,CalculationsAndCharts!$A88+$A$11,IF($C$7,8,0),1,1) -> 484.24 | E88: =OFFSET(InputPriceData!D$15,CalculationsAndCharts!$A88+$A$11,IF($C$7,8,0),1,1) -> 494.58 | F88: =OFFSET(InputPriceData!E$15,CalculationsAndCharts!$A88+$A$11,IF($C$7,8,0),1,1) -> 473.76 | G88: =OFFSET(InputPriceData!F$15,CalculationsAndCharts!$A88+$A$11,IF($C$7,8,0),1,1) -> 494.58 | H88: 20.82 | I88: 10.34 | J88: 10.48 | K88: 20.82 | L88: 19.07763829 | M88: 484.17 | N88: 489.41 | O88: 479 | P88: 0 | Q88: 20.82 | R88: 484.17 | S88: 4.300142512 | T88: 3.800585129
A89: 57 | B89: =OFFSET(InputPriceData!B$15,CalculationsAndCharts!$A89+$A$11,0,1,1) -> 2000-04-26 | C89: =OFFSET(InputPriceData!G$15,CalculationsAndCharts!$A89+$A$11,IF($C$7,8,0),1,1) -> 9996000 | D89: =OFFSET(InputPriceData!C$15,CalculationsAndCharts!$A89+$A$11,IF($C$7,8,0),1,1) -> 489.02 | E89: =OFFSET(InputPriceData!D$15,CalculationsAndCharts!$A89+$A$11,IF($C$7,8,0),1,1) -> 495.02 | F89: =OFFSET(InputPriceData!E$15,CalculationsAndCharts!$A89+$A$11,IF($C$7,8,0),1,1) -> 483.58 | G89: =OFFSET(InputPriceData!F$15,CalculationsAndCharts!$A89+$A$11,IF($C$7,8,0),1,1) -> 484.24 | H89: 11.44 | I89: 5.99 | J89: 5.45 | K89: 11.44 | L89: 18.94361046 | M89: 489.3 | N89: 492.025 | O89: 486.305 | P89: 0 | Q89: 11.44 | R89: 489.3 | S89: 2.338033926 | T89: 3.762157638
A90: 58 | B90: =OFFSET(InputPriceData!B$15,CalculationsAndCharts!$A90+$A$11,0,1,1) -> 2000-04-25 | C90: =OFFSET(InputPriceData!G$15,CalculationsAndCharts!$A90+$A$11,IF($C$7,8,0),1,1) -> 10711000 | D90: =OFFSET(InputPriceData!C$15,CalculationsAndCharts!$A90+$A$11,IF($C$7,8,0),1,1) -> 468.54 | E90: =OFFSET(InputPriceData!D$15,CalculationsAndCharts!$A90+$A$11,IF($C$7,8,0),1,1) -> 489.03 | F90: =OFFSET(InputPriceData!E$15,CalculationsAndCharts!$A90+$A$11,IF($C$7,8,0),1,1) -> 468.54 | G90: =OFFSET(InputPriceData!F$15,CalculationsAndCharts!$A90+$A$11,IF($C$7,8,0),1,1) -> 489.03 | H90: 20.49 | I90: 20.49 | J90: 0 | K90: 20.49 | L90: 19.52081127 | M90: 478.785 | N90: 478.785 | O90: 468.54 | P90: 0 | Q90: 20.49 | R90: 478.785 | S90: 4.279582694 | T90: 3.871705616
A91: 59 | B91: =OFFSET(InputPriceData!B$15,CalculationsAndCharts!$A91+$A$11,0,1,1) -> 2000-04-24 | C91: =OFFSET(InputPriceData!G$15,CalculationsAndCharts!$A91+$A$11,IF($C$7,8,0),1,1) -> 8687000 | D91: =OFFSET(InputPriceData!C$15,CalculationsAndCharts!$A91+$A$11,IF($C$7,8,0),1,1) -> 481.84 | E91: =OFFSET(InputPriceData!D$15,CalculationsAndCharts!$A91+$A$11,IF($C$7,8,0),1,1) -> 481.84 | F91: =OFFSET(InputPriceData!E$15,CalculationsAndCharts!$A91+$A$11,IF($C$7,8,0),1,1) -> 460.9 | G91: =OFFSET(InputPriceData!F$15,CalculationsAndCharts!$A91+$A$11,IF($C$7,8,0),1,1) -> 468.54 | H91: 20.94 | I91: 0 | J91: 20.94 | K91: 20.94 | L91: 19.44625829 | M91: 471.37 | N91: 481.84 | O91: 471.37 | P91: 0 | Q91: 20.94 | R91: 471.37 | S91: 4.442370113 | T91: 3.840330456
A92: 60 | B92: =OFFSET(InputPriceData!B$15,CalculationsAndCharts!$A92+$A$11,0,1,1) -> 2000-04-20 | C92: =OFFSET(InputPriceData!G$15,CalculationsAndCharts!$A92+$A$11,IF($C$7,8,0),1,1) -> 8962000 | D92: =OFFSET(InputPriceData!C$15,CalculationsAndCharts!$A92+$A$11,IF($C$7,8,0),1,1) -> 486.23 | E92: =OFFSET(InputPriceData!D$15,CalculationsAndCharts!$A92+$A$11,IF($C$7,8,0),1,1) -> 489.46 | F92: =OFFSET(InputPriceData!E$15,CalculationsAndCharts!$A92+$A$11,IF($C$7,8,0),1,1) -> 478.41 | G92: =OFFSET(InputPriceData!F$15,CalculationsAndCharts!$A92+$A$11,IF($C$7,8,0),1,1) -> 481.84 | H92: 11.05 | I92: 3.23 | J92: 7.82 | K92: 11.05 | L92: 19.33135508 | M92: 483.935 | N92: 487.845 | O92: 482.32 | P92: 0 | Q92: 11.05 | R92: 483.935 | S92: 2.283364501 | T92: 3.794019714
A93: 61 | B93: =OFFSET(InputPriceData!B$15,CalculationsAndCharts!$A93+$A$11,0,1,1) -> 2000-04-19 | C93: =OFFSET(InputPriceData!G$15,CalculationsAndCharts!$A93+$A$11,IF($C$7,8,0),1,1) -> 10014000 | D93: =OFFSET(InputPriceData!C$15,CalculationsAndCharts!$A93+$A$11,IF($C$7,8,0),1,1) -> 486.09 | E93: =OFFSET(InputPriceData!D$15,CalculationsAndCharts!$A93+$A$11,IF($C$7,8,0),1,1) -> 493.79 | F93: =OFFSET(InputPriceData!E$15,CalculationsAndCharts!$A93+$A$11,IF($C$7,8,0),1,1) -> 483.13 | G93: =OFFSET(InputPriceData!F$15,CalculationsAndCharts!$A93+$A$11,IF($C$7,8,0),1,1) -> 486.23 | H93: 10.66 | I93: 7.7 | J93: 2.96 | K93: 10.66 | L93: 19.9683824 | M93: 488.46 | N93: 489.94 | O93: 484.61 | P93: 0 | Q93: 10.66 | R93: 488.46 | S93: 2.182369078 | T93: 3.910223961
A94: 62 | B94: =OFFSET(InputPriceData!B$15,CalculationsAndCharts!$A94+$A$11,0,1,1) -> 2000-04-18 | C94: =OFFSET(InputPriceData!G$15,CalculationsAndCharts!$A94+$A$11,IF($C$7,8,0),1,1) -> 11094000 | D94: =OFFSET(InputPriceData!C$15,CalculationsAndCharts!$A94+$A$11,IF($C$7,8,0),1,1) -> 459.26 | E94: =OFFSET(InputPriceData!D$15,CalculationsAndCharts!$A94+$A$11,IF($C$7,8,0),1,1) -> 486.09 | F94: =OFFSET(InputPriceData!E$15,CalculationsAndCharts!$A94+$A$11,IF($C$7,8,0),1,1) -> 459.26 | G94: =OFFSET(InputPriceData!F$15,CalculationsAndCharts!$A94+$A$11,IF($C$7,8,0),1,1) -> 486.09 | H94: 26.83 | I94: 26.83 | J94: 0 | K94: 26.83 | L94: 20.68441181 | M94: 472.675 | N94: 472.675 | O94: 459.26 | P94: 0 | Q94: 26.83 | R94: 472.675 | S94: 5.67620458 | T94: 4.043135875
A95: 63 | B95: =OFFSET(InputPriceData!B$15,CalculationsAndCharts!$A95+$A$11,0,1,1) -> 2000-04-17 | C95: =OFFSET(InputPriceData!G$15,CalculationsAndCharts!$A95+$A$11,IF($C$7,8,0),1,1) -> 12047000 | D95: =OFFSET(InputPriceData!C$15,CalculationsAndCharts!$A95+$A$11,IF($C$7,8,0),1,1) -> 453.67 | E95: =OFFSET(InputPriceData!D$15,CalculationsAndCharts!$A95+$A$11,IF($C$7,8,0),1,1) -> 459.26 | F95: =OFFSET(InputPriceData!E$15,CalculationsAndCharts!$A95+$A$11,IF($C$7,8,0),1,1) -> 441.56 | G95: =OFFSET(InputPriceData!F$15,CalculationsAndCharts!$A95+$A$11,IF($C$7,8,0),1,1) -> 459.26 | H95: 17.7 | I95: 5.54 | J95: 12.16 | K95: 17.7 | L95: 20.21167426 | M95: 450.41 | N95: 456.49 | O95: 447.64 | P95: 0 | Q95: 17.7 | R95: 450.41 | S95: 3.929752892 | T95: 3.917515205
A96: 64 | B96: =OFFSET(InputPriceData!B$15,CalculationsAndCharts!$A96+$A$11,0,1,1) -> 2000-04-14 | C96: =OFFSET(InputPriceData!G$15,CalculationsAndCharts!$A96+$A$11,IF($C$7,8,0),1,1) -> 12797000 | D96: =OFFSET(InputPriceData!C$15,CalculationsAndCharts!$A96+$A$11,IF($C$7,8,0),1,1) -> 489.23 | E96: =OFFSET(InputPriceData!D$15,CalculationsAndCharts!$A96+$A$11,IF($C$7,8,0),1,1) -> 489.23 | F96: =OFFSET(InputPriceData!E$15,CalculationsAndCharts!$A96+$A$11,IF($C$7,8,0),1,1) -> 450.19 | G96: =OFFSET(InputPriceData!F$15,CalculationsAndCharts!$A96+$A$11,IF($C$7,8,0),1,1) -> 453.72 | H96: 39.04 | I96: 0.01 | J96: 39.03 | K96: 39.04 | L96: 20.40487997 | M96: 469.71 | N96: 489.225 | O96: 469.705 | P96: 0 | Q96: 39.04 | R96: 469.71 | S96: 8.311511358 | T96: 3.916573845
A97: 65 | B97: =OFFSET(InputPriceData!B$15,CalculationsAndCharts!$A97+$A$11,0,1,1) -> 2000-04-13 | C97: =OFFSET(InputPriceData!G$15,CalculationsAndCharts!$A97+$A$11,IF($C$7,8,0),1,1) -> 10320000 | D97: =OFFSET(InputPriceData!C$15,CalculationsAndCharts!$A97+$A$11,IF($C$7,8,0),1,1) -> 493.44 | E97: =OFFSET(InputPriceData!D$15,CalculationsAndCharts!$A97+$A$11,IF($C$7,8,0),1,1) -> 502.51 | F97: =OFFSET(InputPriceData!E$15,CalculationsAndCharts!$A97+$A$11,IF($C$7,8,0),1,1) -> 488.94 | G97: =OFFSET(InputPriceData!F$15,CalculationsAndCharts!$A97+$A$11,IF($C$7,8,0),1,1) -> 489.22 | H97: =E97-F97 -> 13.57 | I97: =IF(A97>=$A$8,0,ABS(E97-G98)) -> 9.07 | J97: =IF(A97>=$A$8,0,ABS(F97-G98)) -> 4.5 | K97: =MAX(H97:J97) -> 13.57 | L97: 18.9714092 | M97: =AVERAGE(E97:F97) -> 495.725 | N97: =AVERAGE(E97,G98) -> 497.975 | O97: =AVERAGE(F97,G98) -> 491.19 | P97: =IF(K97=H97,0,IF(K97=I97,1,2)) -> 0 | Q97: =OFFSET(H97,0,P97,1,1) -> 13.57 | R97: =OFFSET(M97,0,P97,1,1) -> 495.725 | S97: =K97/R97*100 -> 2.737404811 | T97: =IF(A97>$A$8,0,IF(A97>=($A$8-$A$16),AVERAGE(OFFSET(S97,0,0,($A$8-A97+1),1)),(T98*$D$18)+S97*$F$18)) -> 3.578501728
A98: 66 | B98: =OFFSET(InputPriceData!B$15,CalculationsAndCharts!$A98+$A$11,0,1,1) -> 2000-04-12 | C98: =OFFSET(InputPriceData!G$15,CalculationsAndCharts!$A98+$A$11,IF($C$7,8,0),1,1) -> 11759000 | D98: =OFFSET(InputPriceData!C$15,CalculationsAndCharts!$A98+$A$11,IF($C$7,8,0),1,1) -> 510.14 | E98: =OFFSET(InputPriceData!D$15,CalculationsAndCharts!$A98+$A$11,IF($C$7,8,0),1,1) -> 513.05 | F98: =OFFSET(InputPriceData!E$15,CalculationsAndCharts!$A98+$A$11,IF($C$7,8,0),1,1) -> 493.44 | G98: =OFFSET(InputPriceData!F$15,CalculationsAndCharts!$A98+$A$11,IF($C$7,8,0),1,1) -> 493.44 | H98: 19.61 | I98: 2.92 | J98: 16.69 | K98: 19.61 | L98: =IF(A98>$A$8,0,IF(A98>=($A$8-$A$16),AVERAGE(OFFSET(K98,0,0,($A$8-A98+1),1)),(L99*$D$18)+K98*$F$18)) -> 19.38690221 | M98: 503.245 | N98: 511.59 | O98: 501.785 | P98: 0 | Q98: 19.61 | R98: 503.245 | S98: 3.89671035 | T98: 3.643201491
A99: 67 | B99: =OFFSET(InputPriceData!B$15,CalculationsAndCharts!$A99+$A$11,0,1,1) -> 2000-04-11 | C99: =OFFSET(InputPriceData!G$15,CalculationsAndCharts!$A99+$A$11,IF($C$7,8,0),1,1) -> 9714000 | D99: =OFFSET(InputPriceData!C$15,CalculationsAndCharts!$A99+$A$11,IF($C$7,8,0),1,1) -> 518.66 | E99: =OFFSET(InputPriceData!D$15,CalculationsAndCharts!$A99+$A$11,IF($C$7,8,0),1,1) -> 519.24 | F99: =OFFSET(InputPriceData!E$15,CalculationsAndCharts!$A99+$A$11,IF($C$7,8,0),1,1) -> 502.46 | G99: =OFFSET(InputPriceData!F$15,CalculationsAndCharts!$A99+$A$11,IF($C$7,8,0),1,1) -> 510.13 | H99: 16.78 | I99: 0.58 | J99: 16.2 | K99: 16.78 | L99: 19.36974085 | M99: 510.85 | N99: 518.95 | O99: 510.56 | P99: 0 | Q99: 16.78 | R99: 510.85 | S99: 3.284721543 | T99: 3.62370081
A100: 68 | B100: =OFFSET(InputPriceData!B$15,CalculationsAndCharts!$A100+$A$11,0,1,1) -> 2000-04-10 | C100: =OFFSET(InputPriceData!G$15,CalculationsAndCharts!$A100+$A$11,IF($C$7,8,0),1,1) -> 8537000 | D100: =OFFSET(InputPriceData!C$15,CalculationsAndCharts!$A100+$A$11,IF($C$7,8,0),1,1) -> 542.99 | E100: =OFFSET(InputPriceData!D$15,CalculationsAndCharts!$A100+$A$11,IF($C$7,8,0),1,1) -> 545.9 | F100: =OFFSET(InputPriceData!E$15,CalculationsAndCharts!$A100+$A$11,IF($C$7,8,0),1,1) -> 518.66 | G100: =OFFSET(InputPriceData!F$15,CalculationsAndCharts!$A100+$A$11,IF($C$7,8,0),1,1) -> 518.66 | H100: 27.24 | I100: 2.91 | J100: 24.33 | K100: 27.24 | L100: 19.56895168 | M100: 532.28 | N100: 544.445 | O100: 530.825 | P100: 0 | Q100: 27.24 | R100: 532.28 | S100: 5.117607274 | T100: 3.649776138
A101: 69 | B101: =OFFSET(InputPriceData!B$15,CalculationsAndCharts!$A101+$A$11,0,1,1) -> 2000-04-07 | C101: =OFFSET(InputPriceData!G$15,CalculationsAndCharts!$A101+$A$11,IF($C$7,8,0),1,1) -> 8916000 | D101: =OFFSET(InputPriceData!C$15,CalculationsAndCharts!$A101+$A$11,IF($C$7,8,0),1,1) -> 532.5 | E101: =OFFSET(InputPriceData!D$15,CalculationsAndCharts!$A101+$A$11,IF($C$7,8,0),1,1) -> 542.99 | F101: =OFFSET(InputPriceData!E$15,CalculationsAndCharts!$A101+$A$11,IF($C$7,8,0),1,1) -> 532.5 | G101: =OFFSET(InputPriceData!F$15,CalculationsAndCharts!$A101+$A$11,IF($C$7,8,0),1,1) -> 542.99 | H101: 10.49 | I101: 10.49 | J101: 0 | K101: 10.49 | L101: 18.97887104 | M101: 537.745 | N101: 537.745 | O101: 532.5 | P101: 0 | Q101: 10.49 | R101: 537.745 | S101: 1.950738733 | T101: 3.53686605
A102: 70 | B102: =OFFSET(InputPriceData!B$15,CalculationsAndCharts!$A102+$A$11,0,1,1) -> 2000-04-06 | C102: =OFFSET(InputPriceData!G$15,CalculationsAndCharts!$A102+$A$11,IF($C$7,8,0),1,1) -> 10080000 | D102: =OFFSET(InputPriceData!C$15,CalculationsAndCharts!$A102+$A$11,IF($C$7,8,0),1,1) -> 517.99 | E102: =OFFSET(InputPriceData!D$15,CalculationsAndCharts!$A102+$A$11,IF($C$7,8,0),1,1) -> 535.68 | F102: =OFFSET(InputPriceData!E$15,CalculationsAndCharts!$A102+$A$11,IF($C$7,8,0),1,1) -> 517.99 | G102: =OFFSET(InputPriceData!F$15,CalculationsAndCharts!$A102+$A$11,IF($C$7,8,0),1,1) -> 532.5 | H102: 17.69 | I102: 17.64 | J102: 0.05 | K102: 17.69 | L102: 19.63186112 | M102: 526.835 | N102: 526.86 | O102: 518.015 | P102: 0 | Q102: 17.69 | R102: 526.835 | S102: 3.357787543 | T102: 3.658875844
A103: 71 | B103: =OFFSET(InputPriceData!B$15,CalculationsAndCharts!$A103+$A$11,0,1,1) -> 2000-04-05 | C103: =OFFSET(InputPriceData!G$15,CalculationsAndCharts!$A103+$A$11,IF($C$7,8,0),1,1) -> 11103000 | D103: =OFFSET(InputPriceData!C$15,CalculationsAndCharts!$A103+$A$11,IF($C$7,8,0),1,1) -> 506.12 | E103: =OFFSET(InputPriceData!D$15,CalculationsAndCharts!$A103+$A$11,IF($C$7,8,0),1,1) -> 526.13 | F103: =OFFSET(InputPriceData!E$15,CalculationsAndCharts!$A103+$A$11,IF($C$7,8,0),1,1) -> 494.59 | G103: =OFFSET(InputPriceData!F$15,CalculationsAndCharts!$A103+$A$11,IF($C$7,8,0),1,1) -> 518.04 | H103: 31.54 | I103: 20.01 | J103: 11.53 | K103: 31.54 | L103: 19.78123505 | M103: 510.36 | N103: 516.125 | O103: 500.355 | P103: 0 | Q103: 31.54 | R103: 510.36 | S103: 6.179951407 | T103: 3.682036483
A104: 72 | B104: =OFFSET(InputPriceData!B$15,CalculationsAndCharts!$A104+$A$11,0,1,1) -> 2000-04-04 | C104: =OFFSET(InputPriceData!G$15,CalculationsAndCharts!$A104+$A$11,IF($C$7,8,0),1,1) -> 15154600 | D104: =OFFSET(InputPriceData!C$15,CalculationsAndCharts!$A104+$A$11,IF($C$7,8,0),1,1) -> 516.01 | E104: =OFFSET(InputPriceData!D$15,CalculationsAndCharts!$A104+$A$11,IF($C$7,8,0),1,1) -> 520.13 | F104: =OFFSET(InputPriceData!E$15,CalculationsAndCharts!$A104+$A$11,IF($C$7,8,0),1,1) -> 464.08 | G104: =OFFSET(InputPriceData!F$15,CalculationsAndCharts!$A104+$A$11,IF($C$7,8,0),1,1) -> 506.12 | H104: 56.05 | I104: 4.09 | J104: 51.96 | K104: 56.05 | L104: 18.87671467 | M104: 492.105 | N104: 518.085 | O104: 490.06 | P104: 0 | Q104: 56.05 | R104: 492.105 | S104: 11.38984566 | T104: 3.489889181
A105: 73 | B105: =OFFSET(InputPriceData!B$15,CalculationsAndCharts!$A105+$A$11,0,1,1) -> 2000-04-03 | C105: =OFFSET(InputPriceData!G$15,CalculationsAndCharts!$A105+$A$11,IF($C$7,8,0),1,1) -> 10217000 | D105: =OFFSET(InputPriceData!C$15,CalculationsAndCharts!$A105+$A$11,IF($C$7,8,0),1,1) -> 539.02 | E105: =OFFSET(InputPriceData!D$15,CalculationsAndCharts!$A105+$A$11,IF($C$7,8,0),1,1) -> 539.47 | F105: =OFFSET(InputPriceData!E$15,CalculationsAndCharts!$A105+$A$11,IF($C$7,8,0),1,1) -> 515.56 | G105: =OFFSET(InputPriceData!F$15,CalculationsAndCharts!$A105+$A$11,IF($C$7,8,0),1,1) -> 516.04 | H105: 23.91 | I105: 0.38 | J105: 23.53 | K105: 23.91 | L105: 16.01723119 | M105: 527.515 | N105: 539.28 | O105: 527.325 | P105: 0 | Q105: 23.91 | R105: 527.515 | S105: 4.532572533 | T105: 2.88220022
A106: 74 | B106: =OFFSET(InputPriceData!B$15,CalculationsAndCharts!$A106+$A$11,0,1,1) -> 2000-03-31 | C106: =OFFSET(InputPriceData!G$15,CalculationsAndCharts!$A106+$A$11,IF($C$7,8,0),1,1) -> 12274000 | D106: =OFFSET(InputPriceData!C$15,CalculationsAndCharts!$A106+$A$11,IF($C$7,8,0),1,1) -> 531.57 | E106: =OFFSET(InputPriceData!D$15,CalculationsAndCharts!$A106+$A$11,IF($C$7,8,0),1,1) -> 544.32 | F106: =OFFSET(InputPriceData!E$15,CalculationsAndCharts!$A106+$A$11,IF($C$7,8,0),1,1) -> 526.93 | G106: =OFFSET(InputPriceData!F$15,CalculationsAndCharts!$A106+$A$11,IF($C$7,8,0),1,1) -> 539.09 | H106: 17.39 | I106: 12.75 | J106: 4.64 | K106: 17.39 | L106: 15.41009512 | M106: 535.625 | N106: 537.945 | O106: 529.25 | P106: 0 | Q106: 17.39 | R106: 535.625 | S106: 3.246674446 | T106: 2.755248504
A107: 75 | B107: =OFFSET(InputPriceData!B$15,CalculationsAndCharts!$A107+$A$11,0,1,1) -> 2000-03-30 | C107: =OFFSET(InputPriceData!G$15,CalculationsAndCharts!$A107+$A$11,IF($C$7,8,0),1,1) -> 11934000 | D107: =OFFSET(InputPriceData!C$15,CalculationsAndCharts!$A107+$A$11,IF($C$7,8,0),1,1) -> 543 | E107: =OFFSET(InputPriceData!D$15,CalculationsAndCharts!$A107+$A$11,IF($C$7,8,0),1,1) -> 545.89 | F107: =OFFSET(InputPriceData!E$15,CalculationsAndCharts!$A107+$A$11,IF($C$7,8,0),1,1) -> 524.27 | G107: =OFFSET(InputPriceData!F$15,CalculationsAndCharts!$A107+$A$11,IF($C$7,8,0),1,1) -> 531.57 | H107: 21.62 | I107: 2.89 | J107: 18.73 | K107: 21.62 | L107: 15.25779475 | M107: 535.08 | N107: 544.445 | O107: 533.635 | P107: 0 | Q107: 21.62 | R107: 535.08 | S107: 4.040517306 | T107: 2.717446509
A108: 76 | B108: =OFFSET(InputPriceData!B$15,CalculationsAndCharts!$A108+$A$11,0,1,1) -> 2000-03-29 | C108: =OFFSET(InputPriceData!G$15,CalculationsAndCharts!$A108+$A$11,IF($C$7,8,0),1,1) -> 10619000 | D108: =OFFSET(InputPriceData!C$15,CalculationsAndCharts!$A108+$A$11,IF($C$7,8,0),1,1) -> 559.04 | E108: =OFFSET(InputPriceData!D$15,CalculationsAndCharts!$A108+$A$11,IF($C$7,8,0),1,1) -> 561.77 | F108: =OFFSET(InputPriceData!E$15,CalculationsAndCharts!$A108+$A$11,IF($C$7,8,0),1,1) -> 541.36 | G108: =OFFSET(InputPriceData!F$15,CalculationsAndCharts!$A108+$A$11,IF($C$7,8,0),1,1) -> 543 | H108: 20.41 | I108: 2.73 | J108: 17.68 | K108: 20.41 | L108: 14.76839434 | M108: 551.565 | N108: 560.405 | O108: 550.2 | P108: 0 | Q108: 20.41 | R108: 551.565 | S108: 3.700379828 | T108: 2.615671832
A109: 77 | B109: =OFFSET(InputPriceData!B$15,CalculationsAndCharts!$A109+$A$11,0,1,1) -> 2000-03-28 | C109: =OFFSET(InputPriceData!G$15,CalculationsAndCharts!$A109+$A$11,IF($C$7,8,0),1,1) -> 9591000 | D109: =OFFSET(InputPriceData!C$15,CalculationsAndCharts!$A109+$A$11,IF($C$7,8,0),1,1) -> 573.65 | E109: =OFFSET(InputPriceData!D$15,CalculationsAndCharts!$A109+$A$11,IF($C$7,8,0),1,1) -> 573.65 | F109: =OFFSET(InputPriceData!E$15,CalculationsAndCharts!$A109+$A$11,IF($C$7,8,0),1,1) -> 559.04 | G109: =OFFSET(InputPriceData!F$15,CalculationsAndCharts!$A109+$A$11,IF($C$7,8,0),1,1) -> 559.04 | H109: 14.61 | I109: 0 | J109: 14.61 | K109: 14.61 | L109: 14.33442468 | M109: 566.345 | N109: 573.65 | O109: 566.345 | P109: 0 | Q109: 14.61 | R109: 566.345 | S109: 2.579699653 | T109: 2.532232755
A110: 78 | B110: =OFFSET(InputPriceData!B$15,CalculationsAndCharts!$A110+$A$11,0,1,1) -> 2000-03-27 | C110: =OFFSET(InputPriceData!G$15,CalculationsAndCharts!$A110+$A$11,IF($C$7,8,0),1,1) -> 9010000 | D110: =OFFSET(InputPriceData!C$15,CalculationsAndCharts!$A110+$A$11,IF($C$7,8,0),1,1) -> 574.01 | E110: =OFFSET(InputPriceData!D$15,CalculationsAndCharts!$A110+$A$11,IF($C$7,8,0),1,1) -> 577.8 | F110: =OFFSET(InputPriceData!E$15,CalculationsAndCharts!$A110+$A$11,IF($C$7,8,0),1,1) -> 572.64 | G110: =OFFSET(InputPriceData!F$15,CalculationsAndCharts!$A110+$A$11,IF($C$7,8,0),1,1) -> 573.65 | H110: 5.16 | I110: 3.79 | J110: 1.37 | K110: 5.16 | L110: 14.31322658 | M110: 575.22 | N110: 575.905 | O110: 573.325 | P110: 0 | Q110: 5.16 | R110: 575.22 | S110: 0.8970480859 | T110: 2.528581455
A111: 79 | B111: =OFFSET(InputPriceData!B$15,CalculationsAndCharts!$A111+$A$11,0,1,1) -> 2000-03-24 | C111: =OFFSET(InputPriceData!G$15,CalculationsAndCharts!$A111+$A$11,IF($C$7,8,0),1,1) -> 10522000 | D111: =OFFSET(InputPriceData!C$15,CalculationsAndCharts!$A111+$A$11,IF($C$7,8,0),1,1) -> 573.79 | E111: =OFFSET(InputPriceData!D$15,CalculationsAndCharts!$A111+$A$11,IF($C$7,8,0),1,1) -> 583.27 | F111: =OFFSET(InputPriceData!E$15,CalculationsAndCharts!$A111+$A$11,IF($C$7,8,0),1,1) -> 571.2 | G111: =OFFSET(InputPriceData!F$15,CalculationsAndCharts!$A111+$A$11,IF($C$7,8,0),1,1) -> 574.01 | H111: 12.07 | I111: 9.48 | J111: 2.59 | K111: 12.07 | L111: 15.01732093 | M111: 577.235 | N111: 578.53 | O111: 572.495 | P111: 0 | Q111: 12.07 | R111: 577.235 | S111: 2.091002798 | T111: 2.654084022
A112: 80 | B112: =OFFSET(InputPriceData!B$15,CalculationsAndCharts!$A112+$A$11,0,1,1) -> 2000-03-23 | C112: =OFFSET(InputPriceData!G$15,CalculationsAndCharts!$A112+$A$11,IF($C$7,8,0),1,1) -> 10783000 | D112: =OFFSET(InputPriceData!C$15,CalculationsAndCharts!$A112+$A$11,IF($C$7,8,0),1,1) -> 571.19 | E112: =OFFSET(InputPriceData!D$15,CalculationsAndCharts!$A112+$A$11,IF($C$7,8,0),1,1) -> 577.91 | F112: =OFFSET(InputPriceData!E$15,CalculationsAndCharts!$A112+$A$11,IF($C$7,8,0),1,1) -> 571.19 | G112: =OFFSET(InputPriceData!F$15,CalculationsAndCharts!$A112+$A$11,IF($C$7,8,0),1,1) -> 573.79 | H112: 6.72 | I112: 6.72 | J112: 0 | K112: 6.72 | L112: 15.24403792 | M112: 574.55 | N112: 574.55 | O112: 571.19 | P112: 0 | Q112: 6.72 | R112: 574.55 | S112: 1.169611 | T112: 2.697397963
A113: 81 | B113: =OFFSET(InputPriceData!B$15,CalculationsAndCharts!$A113+$A$11,0,1,1) -> 2000-03-22 | C113: =OFFSET(InputPriceData!G$15,CalculationsAndCharts!$A113+$A$11,IF($C$7,8,0),1,1) -> 10750000 | D113: =OFFSET(InputPriceData!C$15,CalculationsAndCharts!$A113+$A$11,IF($C$7,8,0),1,1) -> 552.79 | E113: =OFFSET(InputPriceData!D$15,CalculationsAndCharts!$A113+$A$11,IF($C$7,8,0),1,1) -> 571.24 | F113: =OFFSET(InputPriceData!E$15,CalculationsAndCharts!$A113+$A$11,IF($C$7,8,0),1,1) -> 552.79 | G113: =OFFSET(InputPriceData!F$15,CalculationsAndCharts!$A113+$A$11,IF($C$7,8,0),1,1) -> 571.19 | H113: 18.45 | I113: 18.45 | J113: 0 | K113: 18.45 | L113: 15.89973315 | M113: 562.015 | N113: 562.015 | O113: 552.79 | P113: 0 | Q113: 18.45 | R113: 562.015 | S113: 3.282830529 | T113: 2.814920037
A114: 82 | B114: =OFFSET(InputPriceData!B$15,CalculationsAndCharts!$A114+$A$11,0,1,1) -> 2000-03-21 | C114: =OFFSET(InputPriceData!G$15,CalculationsAndCharts!$A114+$A$11,IF($C$7,8,0),1,1) -> 10659000 | D114: =OFFSET(InputPriceData!C$15,CalculationsAndCharts!$A114+$A$11,IF($C$7,8,0),1,1) -> 549.2 | E114: =OFFSET(InputPriceData!D$15,CalculationsAndCharts!$A114+$A$11,IF($C$7,8,0),1,1) -> 552.79 | F114: =OFFSET(InputPriceData!E$15,CalculationsAndCharts!$A114+$A$11,IF($C$7,8,0),1,1) -> 530.87 | G114: =OFFSET(InputPriceData!F$15,CalculationsAndCharts!$A114+$A$11,IF($C$7,8,0),1,1) -> 552.79 | H114: 21.92 | I114: 3.59 | J114: 18.33 | K114: 21.92 | L114: 15.70355877 | M114: 541.83 | N114: 550.995 | O114: 540.035 | P114: 0 | Q114: 21.92 | R114: 541.83 | S114: 4.045549342 | T114: 2.778926922
A115: 83 | B115: =OFFSET(InputPriceData!B$15,CalculationsAndCharts!$A115+$A$11,0,1,1) -> 2000-03-20 | C115: =OFFSET(InputPriceData!G$15,CalculationsAndCharts!$A115+$A$11,IF($C$7,8,0),1,1) -> 9208000 | D115: =OFFSET(InputPriceData!C$15,CalculationsAndCharts!$A115+$A$11,IF($C$7,8,0),1,1) -> 574.79 | E115: =OFFSET(InputPriceData!D$15,CalculationsAndCharts!$A115+$A$11,IF($C$7,8,0),1,1) -> 574.79 | F115: =OFFSET(InputPriceData!E$15,CalculationsAndCharts!$A115+$A$11,IF($C$7,8,0),1,1) -> 548.82 | G115: =OFFSET(InputPriceData!F$15,CalculationsAndCharts!$A115+$A$11,IF($C$7,8,0),1,1) -> 549.2 | H115: 25.97 | I115: 0.02 | J115: 25.95 | K115: 25.97 | L115: 15.22537099 | M115: 561.805 | N115: 574.78 | O115: 561.795 | P115: 0 | Q115: 25.97 | R115: 561.805 | S115: 4.622600368 | T115: 2.681494428
A116: 84 | B116: =OFFSET(InputPriceData!B$15,CalculationsAndCharts!$A116+$A$11,0,1,1) -> 2000-03-17 | C116: =OFFSET(InputPriceData!G$15,CalculationsAndCharts!$A116+$A$11,IF($C$7,8,0),1,1) -> 12951000 | D116: =OFFSET(InputPriceData!C$15,CalculationsAndCharts!$A116+$A$11,IF($C$7,8,0),1,1) -> 574.24 | E116: =OFFSET(InputPriceData!D$15,CalculationsAndCharts!$A116+$A$11,IF($C$7,8,0),1,1) -> 576.58 | F116: =OFFSET(InputPriceData!E$15,CalculationsAndCharts!$A116+$A$11,IF($C$7,8,0),1,1) -> 567.37 | G116: =OFFSET(InputPriceData!F$15,CalculationsAndCharts!$A116+$A$11,IF($C$7,8,0),1,1) -> 574.77 | H116: 9.21 | I116: 2.34 | J116: 6.87 | K116: 9.21 | L116: 14.39886106 | M116: 571.975 | N116: 575.41 | O116: 570.805 | P116: 0 | Q116: 9.21 | R116: 571.975 | S116: 1.610210236 | T116: 2.532178586
A117: 85 | B117: =OFFSET(InputPriceData!B$15,CalculationsAndCharts!$A117+$A$11,0,1,1) -> 2000-03-16 | C117: =OFFSET(InputPriceData!G$15,CalculationsAndCharts!$A117+$A$11,IF($C$7,8,0),1,1) -> 14823000 | D117: =OFFSET(InputPriceData!C$15,CalculationsAndCharts!$A117+$A$11,IF($C$7,8,0),1,1) -> 558.88 | E117: =OFFSET(InputPriceData!D$15,CalculationsAndCharts!$A117+$A$11,IF($C$7,8,0),1,1) -> 574.24 | F117: =OFFSET(InputPriceData!E$15,CalculationsAndCharts!$A117+$A$11,IF($C$7,8,0),1,1) -> 546.22 | G117: =OFFSET(InputPriceData!F$15,CalculationsAndCharts!$A117+$A$11,IF($C$7,8,0),1,1) -> 574.24 | H117: 28.02 | I117: 15.37 | J117: 12.65 | K117: 28.02 | L117: 14.79800422 | M117: 560.23 | N117: 566.555 | O117: 552.545 | P117: 0 | Q117: 28.02 | R117: 560.23 | S117: 5.001517234 | T117: 2.603099229
A118: 86 | B118: =OFFSET(InputPriceData!B$15,CalculationsAndCharts!$A118+$A$11,0,1,1) -> 2000-03-15 | C118: =OFFSET(InputPriceData!G$15,CalculationsAndCharts!$A118+$A$11,IF($C$7,8,0),1,1) -> 13028000 | D118: =OFFSET(InputPriceData!C$15,CalculationsAndCharts!$A118+$A$11,IF($C$7,8,0),1,1) -> 572.99 | E118: =OFFSET(InputPriceData!D$15,CalculationsAndCharts!$A118+$A$11,IF($C$7,8,0),1,1) -> 576.48 | F118: =OFFSET(InputPriceData!E$15,CalculationsAndCharts!$A118+$A$11,IF($C$7,8,0),1,1) -> 556.43 | G118: =OFFSET(InputPriceData!F$15,CalculationsAndCharts!$A118+$A$11,IF($C$7,8,0),1,1) -> 558.87 | H118: 20.05 | I118: 3.49 | J118: 16.56 | K118: 20.05 | L118: 13.78092762 | M118: 566.455 | N118: 574.735 | O118: 564.71 | P118: 0 | Q118: 20.05 | R118: 566.455 | S118: 3.539557423 | T118: 2.418605536
A119: 87 | B119: =OFFSET(InputPriceData!B$15,CalculationsAndCharts!$A119+$A$11,0,1,1) -> 2000-03-14 | C119: =OFFSET(InputPriceData!G$15,CalculationsAndCharts!$A119+$A$11,IF($C$7,8,0),1,1) -> 10940000 | D119: =OFFSET(InputPriceData!C$15,CalculationsAndCharts!$A119+$A$11,IF($C$7,8,0),1,1) -> 590.14 | E119: =OFFSET(InputPriceData!D$15,CalculationsAndCharts!$A119+$A$11,IF($C$7,8,0),1,1) -> 600.53 | F119: =OFFSET(InputPriceData!E$15,CalculationsAndCharts!$A119+$A$11,IF($C$7,8,0),1,1) -> 572.56 | G119: =OFFSET(InputPriceData!F$15,CalculationsAndCharts!$A119+$A$11,IF($C$7,8,0),1,1) -> 572.99 | H119: 27.97 | I119: 10.39 | J119: 17.58 | K119: 27.97 | L119: 13.29869129 | M119: 586.545 | N119: 595.335 | O119: 581.35 | P119: 0 | Q119: 27.97 | R119: 586.545 | S119: 4.76860258 | T119: 2.332378468
A120: 88 | B120: =OFFSET(InputPriceData!B$15,CalculationsAndCharts!$A120+$A$11,0,1,1) -> 2000-03-13 | C120: =OFFSET(InputPriceData!G$15,CalculationsAndCharts!$A120+$A$11,IF($C$7,8,0),1,1) -> 10161000 | D120: =OFFSET(InputPriceData!C$15,CalculationsAndCharts!$A120+$A$11,IF($C$7,8,0),1,1) -> 603.81 | E120: =OFFSET(InputPriceData!D$15,CalculationsAndCharts!$A120+$A$11,IF($C$7,8,0),1,1) -> 603.81 | F120: =OFFSET(InputPriceData!E$15,CalculationsAndCharts!$A120+$A$11,IF($C$7,8,0),1,1) -> 582.92 | G120: =OFFSET(InputPriceData!F$15,CalculationsAndCharts!$A120+$A$11,IF($C$7,8,0),1,1) -> 590.14 | H120: 20.89 | I120: 0 | J120: 20.89 | K120: 20.89 | L120: 12.17012908 | M120: 593.365 | N120: 603.81 | O120: 593.365 | P120: 0 | Q120: 20.89 | R120: 593.365 | S120: 3.52059862 | T120: 2.144976613
A121: 89 | B121: =OFFSET(InputPriceData!B$15,CalculationsAndCharts!$A121+$A$11,0,1,1) -> 2000-03-10 | C121: =OFFSET(InputPriceData!G$15,CalculationsAndCharts!$A121+$A$11,IF($C$7,8,0),1,1) -> 11388000 | D121: =OFFSET(InputPriceData!C$15,CalculationsAndCharts!$A121+$A$11,IF($C$7,8,0),1,1) -> 606.11 | E121: =OFFSET(InputPriceData!D$15,CalculationsAndCharts!$A121+$A$11,IF($C$7,8,0),1,1) -> 614.16 | F121: =OFFSET(InputPriceData!E$15,CalculationsAndCharts!$A121+$A$11,IF($C$7,8,0),1,1) -> 603.8 | G121: =OFFSET(InputPriceData!F$15,CalculationsAndCharts!$A121+$A$11,IF($C$7,8,0),1,1) -> 603.81 | H121: 10.36 | I121: 8.11 | J121: 2.25 | K121: 10.36 | L121: 11.49936978 | M121: 608.98 | N121: 610.105 | O121: 604.925 | P121: 0 | Q121: 10.36 | R121: 608.98 | S121: 1.701205294 | T121: 2.039159536
A122: 90 | B122: =OFFSET(InputPriceData!B$15,CalculationsAndCharts!$A122+$A$11,0,1,1) -> 2000-03-09 | C122: =OFFSET(InputPriceData!G$15,CalculationsAndCharts!$A122+$A$11,IF($C$7,8,0),1,1) -> 11230000 | D122: =OFFSET(InputPriceData!C$15,CalculationsAndCharts!$A122+$A$11,IF($C$7,8,0),1,1) -> 594.74 | E122: =OFFSET(InputPriceData!D$15,CalculationsAndCharts!$A122+$A$11,IF($C$7,8,0),1,1) -> 606.05 | F122: =OFFSET(InputPriceData!E$15,CalculationsAndCharts!$A122+$A$11,IF($C$7,8,0),1,1) -> 591.7 | G122: =OFFSET(InputPriceData!F$15,CalculationsAndCharts!$A122+$A$11,IF($C$7,8,0),1,1) -> 606.05 | H122: 14.35 | I122: 11.37 | J122: 2.98 | K122: 14.35 | L122: 11.5870136 | M122: 598.875 | N122: 600.365 | O122: 593.19 | P122: 0 | Q122: 14.35 | R122: 598.875 | S122: 2.396159466 | T122: 2.065156016
A123: 91 | B123: =OFFSET(InputPriceData!B$15,CalculationsAndCharts!$A123+$A$11,0,1,1) -> 2000-03-08 | C123: =OFFSET(InputPriceData!G$15,CalculationsAndCharts!$A123+$A$11,IF($C$7,8,0),1,1) -> 12030000 | D123: =OFFSET(InputPriceData!C$15,CalculationsAndCharts!$A123+$A$11,IF($C$7,8,0),1,1) -> 595.47 | E123: =OFFSET(InputPriceData!D$15,CalculationsAndCharts!$A123+$A$11,IF($C$7,8,0),1,1) -> 600.39 | F123: =OFFSET(InputPriceData!E$15,CalculationsAndCharts!$A123+$A$11,IF($C$7,8,0),1,1) -> 579.16 | G123: =OFFSET(InputPriceData!F$15,CalculationsAndCharts!$A123+$A$11,IF($C$7,8,0),1,1) -> 594.68 | H123: 21.23 | I123: 4.92 | J123: 16.31 | K123: 21.23 | L123: 11.37447619 | M123: 589.775 | N123: 597.93 | O123: 587.315 | P123: 0 | Q123: 21.23 | R123: 589.775 | S123: 3.599677843 | T123: 2.039694212
A124: 92 | B124: =OFFSET(InputPriceData!B$15,CalculationsAndCharts!$A124+$A$11,0,1,1) -> 2000-03-07 | C124: =OFFSET(InputPriceData!G$15,CalculationsAndCharts!$A124+$A$11,IF($C$7,8,0),1,1) -> 13141000 | D124: =OFFSET(InputPriceData!C$15,CalculationsAndCharts!$A124+$A$11,IF($C$7,8,0),1,1) -> 601.62 | E124: =OFFSET(InputPriceData!D$15,CalculationsAndCharts!$A124+$A$11,IF($C$7,8,0),1,1) -> 606.87 | F124: =OFFSET(InputPriceData!E$15,CalculationsAndCharts!$A124+$A$11,IF($C$7,8,0),1,1) -> 595.15 | G124: =OFFSET(InputPriceData!F$15,CalculationsAndCharts!$A124+$A$11,IF($C$7,8,0),1,1) -> 595.47 | H124: 11.72 | I124: 5.23 | J124: 6.49 | K124: 11.72 | L124: 10.61635897 | M124: 601.01 | N124: 604.255 | O124: 598.395 | P124: 0 | Q124: 11.72 | R124: 601.01 | S124: 1.950050748 | T124: 1.919695471
A125: 93 | B125: =OFFSET(InputPriceData!B$15,CalculationsAndCharts!$A125+$A$11,0,1,1) -> 2000-03-06 | C125: =OFFSET(InputPriceData!G$15,CalculationsAndCharts!$A125+$A$11,IF($C$7,8,0),1,1) -> 10290000 | D125: =OFFSET(InputPriceData!C$15,CalculationsAndCharts!$A125+$A$11,IF($C$7,8,0),1,1) -> 598.19 | E125: =OFFSET(InputPriceData!D$15,CalculationsAndCharts!$A125+$A$11,IF($C$7,8,0),1,1) -> 604.01 | F125: =OFFSET(InputPriceData!E$15,CalculationsAndCharts!$A125+$A$11,IF($C$7,8,0),1,1) -> 598.19 | G125: =OFFSET(InputPriceData!F$15,CalculationsAndCharts!$A125+$A$11,IF($C$7,8,0),1,1) -> 601.64 | H125: 5.82 | I125: 6.13 | J125: 0.31 | K125: 6.13 | L125: 10.53146351 | M125: 601.1 | N125: 600.945 | O125: 598.035 | P125: 1 | Q125: 6.13 | R125: 600.945 | S125: 1.020060072 | T125: 1.91736045
A126: 94 | B126: =OFFSET(InputPriceData!B$15,CalculationsAndCharts!$A126+$A$11,0,1,1) -> 2000-03-03 | C126: =OFFSET(InputPriceData!G$15,CalculationsAndCharts!$A126+$A$11,IF($C$7,8,0),1,1) -> 11503000 | D126: =OFFSET(InputPriceData!C$15,CalculationsAndCharts!$A126+$A$11,IF($C$7,8,0),1,1) -> 583.91 | E126: =OFFSET(InputPriceData!D$15,CalculationsAndCharts!$A126+$A$11,IF($C$7,8,0),1,1) -> 597.88 | F126: =OFFSET(InputPriceData!E$15,CalculationsAndCharts!$A126+$A$11,IF($C$7,8,0),1,1) -> 583.91 | G126: =OFFSET(InputPriceData!F$15,CalculationsAndCharts!$A126+$A$11,IF($C$7,8,0),1,1) -> 597.88 | H126: 13.97 | I126: 13.84 | J126: 0.13 | K126: 13.97 | L126: 10.87003763 | M126: 590.895 | N126: 590.96 | O126: 583.975 | P126: 0 | Q126: 13.97 | R126: 590.895 | S126: 2.364210223 | T126: 1.986383556
A127: 95 | B127: =OFFSET(InputPriceData!B$15,CalculationsAndCharts!$A127+$A$11,0,1,1) -> 2000-03-02 | C127: =OFFSET(InputPriceData!G$15,CalculationsAndCharts!$A127+$A$11,IF($C$7,8,0),1,1) -> 11986000 | D127: =OFFSET(InputPriceData!C$15,CalculationsAndCharts!$A127+$A$11,IF($C$7,8,0),1,1) -> 588.35 | E127: =OFFSET(InputPriceData!D$15,CalculationsAndCharts!$A127+$A$11,IF($C$7,8,0),1,1) -> 591.41 | F127: =OFFSET(InputPriceData!E$15,CalculationsAndCharts!$A127+$A$11,IF($C$7,8,0),1,1) -> 579.8 | G127: =OFFSET(InputPriceData!F$15,CalculationsAndCharts!$A127+$A$11,IF($C$7,8,0),1,1) -> 584.04 | H127: 11.61 | I127: 3.06 | J127: 8.55 | K127: 11.61 | L127: 10.63157898 | M127: 585.605 | N127: 589.88 | O127: 584.075 | P127: 0 | Q127: 11.61 | R127: 585.605 | S127: 1.98256504 | T127: 1.957319966
A128: 96 | B128: =OFFSET(InputPriceData!B$15,CalculationsAndCharts!$A128+$A$11,0,1,1) -> 2000-03-01 | C128: =OFFSET(InputPriceData!G$15,CalculationsAndCharts!$A128+$A$11,IF($C$7,8,0),1,1) -> 12741000 | D128: =OFFSET(InputPriceData!C$15,CalculationsAndCharts!$A128+$A$11,IF($C$7,8,0),1,1) -> 577.71 | E128: =OFFSET(InputPriceData!D$15,CalculationsAndCharts!$A128+$A$11,IF($C$7,8,0),1,1) -> 589.38 | F128: =OFFSET(InputPriceData!E$15,CalculationsAndCharts!$A128+$A$11,IF($C$7,8,0),1,1) -> 577.71 | G128: =OFFSET(InputPriceData!F$15,CalculationsAndCharts!$A128+$A$11,IF($C$7,8,0),1,1) -> 588.35 | H128: 11.67 | I128: 11.67 | J128: 0 | K128: 11.67 | L128: 10.55631583 | M128: 583.545 | N128: 583.545 | O128: 577.71 | P128: 0 | Q128: 11.67 | R128: 583.545 | S128: 1.99984577 | T128: 1.955378037
A129: 97 | B129: =OFFSET(InputPriceData!B$15,CalculationsAndCharts!$A129+$A$11,0,1,1) -> 2000-02-29 | C129: =OFFSET(InputPriceData!G$15,CalculationsAndCharts!$A129+$A$11,IF($C$7,8,0),1,1) -> 12043000 | D129: =OFFSET(InputPriceData!C$15,CalculationsAndCharts!$A129+$A$11,IF($C$7,8,0),1,1) -> 557.68 | E129: =OFFSET(InputPriceData!D$15,CalculationsAndCharts!$A129+$A$11,IF($C$7,8,0),1,1) -> 577.72 | F129: =OFFSET(InputPriceData!E$15,CalculationsAndCharts!$A129+$A$11,IF($C$7,8,0),1,1) -> 557.68 | G129: =OFFSET(InputPriceData!F$15,CalculationsAndCharts!$A129+$A$11,IF($C$7,8,0),1,1) -> 577.71 | H129: 20.04 | I129: 20.04 | J129: 0 | K129: 20.04 | L129: 10.47064781 | M129: 567.7 | N129: 567.7 | O129: 557.68 | P129: 0 | Q129: 20.04 | R129: 567.7 | S129: 3.530033468 | T129: 1.951957442
A130: 98 | B130: =OFFSET(InputPriceData!B$15,CalculationsAndCharts!$A130+$A$11,0,1,1) -> 2000-02-28 | C130: =OFFSET(InputPriceData!G$15,CalculationsAndCharts!$A130+$A$11,IF($C$7,8,0),1,1) -> 10265000 | D130: =OFFSET(InputPriceData!C$15,CalculationsAndCharts!$A130+$A$11,IF($C$7,8,0),1,1) -> 556.74 | E130: =OFFSET(InputPriceData!D$15,CalculationsAndCharts!$A130+$A$11,IF($C$7,8,0),1,1) -> 559.81 | F130: =OFFSET(InputPriceData!E$15,CalculationsAndCharts!$A130+$A$11,IF($C$7,8,0),1,1) -> 548.13 | G130: =OFFSET(InputPriceData!F$15,CalculationsAndCharts!$A130+$A$11,IF($C$7,8,0),1,1) -> 557.68 | H130: 11.68 | I130: 3.07 | J130: 8.61 | K130: 11.68 | L130: 9.734543799 | M130: 553.97 | N130: 558.275 | O130: 552.435 | P130: 0 | Q130: 11.68 | R130: 553.97 | S130: 2.108417423 | T130: 1.830566979
A131: 99 | B131: =OFFSET(InputPriceData!B$15,CalculationsAndCharts!$A131+$A$11,0,1,1) -> 2000-02-25 | C131: =OFFSET(InputPriceData!G$15,CalculationsAndCharts!$A131+$A$11,IF($C$7,8,0),1,1) -> 10652000 | D131: =OFFSET(InputPriceData!C$15,CalculationsAndCharts!$A131+$A$11,IF($C$7,8,0),1,1) -> 554.04 | E131: =OFFSET(InputPriceData!D$15,CalculationsAndCharts!$A131+$A$11,IF($C$7,8,0),1,1) -> 561.05 | F131: =OFFSET(InputPriceData!E$15,CalculationsAndCharts!$A131+$A$11,IF($C$7,8,0),1,1) -> 554.04 | G131: =OFFSET(InputPriceData!F$15,CalculationsAndCharts!$A131+$A$11,IF($C$7,8,0),1,1) -> 556.74 | H131: 7.01 | I131: 7.01 | J131: 0 | K131: 7.01 | L131: 9.584893322 | M131: 557.545 | N131: 557.545 | O131: 554.04 | P131: 0 | Q131: 7.01 | R131: 557.545 | S131: 1.257297617 | T131: 1.809193867
A132: 100 | B132: =OFFSET(InputPriceData!B$15,CalculationsAndCharts!$A132+$A$11,0,1,1) -> 2000-02-24 | C132: =OFFSET(InputPriceData!G$15,CalculationsAndCharts!$A132+$A$11,IF($C$7,8,0),1,1) -> 12150000 | D132: =OFFSET(InputPriceData!C$15,CalculationsAndCharts!$A132+$A$11,IF($C$7,8,0),1,1) -> 549.91 | E132: =OFFSET(InputPriceData!D$15,CalculationsAndCharts!$A132+$A$11,IF($C$7,8,0),1,1) -> 556.24 | F132: =OFFSET(InputPriceData!E$15,CalculationsAndCharts!$A132+$A$11,IF($C$7,8,0),1,1) -> 547.33 | G132: =OFFSET(InputPriceData!F$15,CalculationsAndCharts!$A132+$A$11,IF($C$7,8,0),1,1) -> 554.04 | H132: 8.91 | I132: 6.33 | J132: 2.58 | K132: 8.91 | L132: 9.78296204 | M132: 551.785 | N132: 553.075 | O132: 548.62 | P132: 0 | Q132: 8.91 | R132: 551.785 | S132: 1.614759372 | T132: 1.851647425
A133: 101 | B133: =OFFSET(InputPriceData!B$15,CalculationsAndCharts!$A133+$A$11,0,1,1) -> 2000-02-23 | C133: =OFFSET(InputPriceData!G$15,CalculationsAndCharts!$A133+$A$11,IF($C$7,8,0),1,1) -> 9937000 | D133: =OFFSET(InputPriceData!C$15,CalculationsAndCharts!$A133+$A$11,IF($C$7,8,0),1,1) -> 540.95 | E133: =OFFSET(InputPriceData!D$15,CalculationsAndCharts!$A133+$A$11,IF($C$7,8,0),1,1) -> 549.93 | F133: =OFFSET(InputPriceData!E$15,CalculationsAndCharts!$A133+$A$11,IF($C$7,8,0),1,1) -> 540.95 | G133: =OFFSET(InputPriceData!F$15,CalculationsAndCharts!$A133+$A$11,IF($C$7,8,0),1,1) -> 549.91 | H133: 8.98 | I133: 8.98 | J133: 0 | K133: 8.98 | L133: 9.850112966 | M133: 545.44 | N133: 545.44 | O133: 540.95 | P133: 0 | Q133: 8.98 | R133: 545.44 | S133: 1.646377237 | T133: 1.869869583
A134: 102 | B134: =OFFSET(InputPriceData!B$15,CalculationsAndCharts!$A134+$A$11,0,1,1) -> 2000-02-22 | C134: =OFFSET(InputPriceData!G$15,CalculationsAndCharts!$A134+$A$11,IF($C$7,8,0),1,1) -> 9800000 | D134: =OFFSET(InputPriceData!C$15,CalculationsAndCharts!$A134+$A$11,IF($C$7,8,0),1,1) -> 545.68 | E134: =OFFSET(InputPriceData!D$15,CalculationsAndCharts!$A134+$A$11,IF($C$7,8,0),1,1) -> 547.55 | F134: =OFFSET(InputPriceData!E$15,CalculationsAndCharts!$A134+$A$11,IF($C$7,8,0),1,1) -> 531.4 | G134: =OFFSET(InputPriceData!F$15,CalculationsAndCharts!$A134+$A$11,IF($C$7,8,0),1,1) -> 540.95 | H134: 16.15 | I134: 1.87 | J134: 14.28 | K134: 16.15 | L134: 9.917044732 | M134: 539.475 | N134: 546.615 | O134: 538.54 | P134: 0 | Q134: 16.15 | R134: 539.475 | S134: 2.993651235 | T134: 1.887061302
A135: 103 | B135: =OFFSET(InputPriceData!B$15,CalculationsAndCharts!$A135+$A$11,0,1,1) -> 2000-02-18 | C135: =OFFSET(InputPriceData!G$15,CalculationsAndCharts!$A135+$A$11,IF($C$7,8,0),1,1) -> 10423000 | D135: =OFFSET(InputPriceData!C$15,CalculationsAndCharts!$A135+$A$11,IF($C$7,8,0),1,1) -> 558.42 | E135: =OFFSET(InputPriceData!D$15,CalculationsAndCharts!$A135+$A$11,IF($C$7,8,0),1,1) -> 560.35 | F135: =OFFSET(InputPriceData!E$15,CalculationsAndCharts!$A135+$A$11,IF($C$7,8,0),1,1) -> 544.33 | G135: =OFFSET(InputPriceData!F$15,CalculationsAndCharts!$A135+$A$11,IF($C$7,8,0),1,1) -> 545.68 | H135: 16.02 | I135: 1.93 | J135: 14.09 | K135: 16.02 | L135: 9.437586635 | M135: 552.34 | N135: 559.385 | O135: 551.375 | P135: 0 | Q135: 16.02 | R135: 552.34 | S135: 2.900387443 | T135: 1.801938999
A136: 104 | B136: =OFFSET(InputPriceData!B$15,CalculationsAndCharts!$A136+$A$11,0,1,1) -> 2000-02-17 | C136: =OFFSET(InputPriceData!G$15,CalculationsAndCharts!$A136+$A$11,IF($C$7,8,0),1,1) -> 10348000 | D136: =OFFSET(InputPriceData!C$15,CalculationsAndCharts!$A136+$A$11,IF($C$7,8,0),1,1) -> 547.76 | E136: =OFFSET(InputPriceData!D$15,CalculationsAndCharts!$A136+$A$11,IF($C$7,8,0),1,1) -> 559.08 | F136: =OFFSET(InputPriceData!E$15,CalculationsAndCharts!$A136+$A$11,IF($C$7,8,0),1,1) -> 547.76 | G136: =OFFSET(InputPriceData!F$15,CalculationsAndCharts!$A136+$A$11,IF($C$7,8,0),1,1) -> 558.42 | H136: 11.32 | I136: 11.32 | J136: 0 | K136: 11.32 | L136: 8.931247145 | M136: 553.42 | N136: 553.42 | O136: 547.76 | P136: 0 | Q136: 11.32 | R136: 553.42 | S136: 2.045462759 | T136: 1.717442965
A137: 105 | B137: =OFFSET(InputPriceData!B$15,CalculationsAndCharts!$A137+$A$11,0,1,1) -> 2000-02-16 | C137: =OFFSET(InputPriceData!G$15,CalculationsAndCharts!$A137+$A$11,IF($C$7,8,0),1,1) -> 10188000 | D137: =OFFSET(InputPriceData!C$15,CalculationsAndCharts!$A137+$A$11,IF($C$7,8,0),1,1) -> 540.24 | E137: =OFFSET(InputPriceData!D$15,CalculationsAndCharts!$A137+$A$11,IF($C$7,8,0),1,1) -> 549.68 | F137: =OFFSET(InputPriceData!E$15,CalculationsAndCharts!$A137+$A$11,IF($C$7,8,0),1,1) -> 540.24 | G137: =OFFSET(InputPriceData!F$15,CalculationsAndCharts!$A137+$A$11,IF($C$7,8,0),1,1) -> 547.76 | H137: 9.44 | I137: 9.44 | J137: 0 | K137: 9.44 | L137: 8.747496926 | M137: 544.96 | N137: 544.96 | O137: 540.24 | P137: 0 | Q137: 9.44 | R137: 544.96 | S137: 1.732237228 | T137: 1.692210674
A138: 106 | B138: =OFFSET(InputPriceData!B$15,CalculationsAndCharts!$A138+$A$11,0,1,1) -> 2000-02-15 | C138: =OFFSET(InputPriceData!G$15,CalculationsAndCharts!$A138+$A$11,IF($C$7,8,0),1,1) -> 10921000 | D138: =OFFSET(InputPriceData!C$15,CalculationsAndCharts!$A138+$A$11,IF($C$7,8,0),1,1) -> 539.98 | E138: =OFFSET(InputPriceData!D$15,CalculationsAndCharts!$A138+$A$11,IF($C$7,8,0),1,1) -> 540.36 | F138: =OFFSET(InputPriceData!E$15,CalculationsAndCharts!$A138+$A$11,IF($C$7,8,0),1,1) -> 533.08 | G138: =OFFSET(InputPriceData!F$15,CalculationsAndCharts!$A138+$A$11,IF($C$7,8,0),1,1) -> 540.24 | H138: 7.28 | I138: 0.42 | J138: 6.86 | K138: 7.28 | L138: 8.694227458 | M138: 536.72 | N138: 540.15 | O138: 536.51 | P138: 0 | Q138: 7.28 | R138: 536.72 | S138: 1.356386943 | T138: 1.689131708
A139: 107 | B139: =OFFSET(InputPriceData!B$15,CalculationsAndCharts!$A139+$A$11,0,1,1) -> 2000-02-14 | C139: =OFFSET(InputPriceData!G$15,CalculationsAndCharts!$A139+$A$11,IF($C$7,8,0),1,1) -> 9273000 | D139: =OFFSET(InputPriceData!C$15,CalculationsAndCharts!$A139+$A$11,IF($C$7,8,0),1,1) -> 537.1 | E139: =OFFSET(InputPriceData!D$15,CalculationsAndCharts!$A139+$A$11,IF($C$7,8,0),1,1) -> 539.94 | F139: =OFFSET(InputPriceData!E$15,CalculationsAndCharts!$A139+$A$11,IF($C$7,8,0),1,1) -> 533.51 | G139: =OFFSET(InputPriceData!F$15,CalculationsAndCharts!$A139+$A$11,IF($C$7,8,0),1,1) -> 539.94 | H139: 6.43 | I139: 2.84 | J139: 3.59 | K139: 6.43 | L139: 8.803014186 | M139: 536.725 | N139: 538.52 | O139: 535.305 | P139: 0 | Q139: 6.43 | R139: 536.725 | S139: 1.198006428 | T139: 1.714727459
A140: 108 | B140: =OFFSET(InputPriceData!B$15,CalculationsAndCharts!$A140+$A$11,0,1,1) -> 2000-02-11 | C140: =OFFSET(InputPriceData!G$15,CalculationsAndCharts!$A140+$A$11,IF($C$7,8,0),1,1) -> 10257000 | D140: =OFFSET(InputPriceData!C$15,CalculationsAndCharts!$A140+$A$11,IF($C$7,8,0),1,1) -> 542.21 | E140: =OFFSET(InputPriceData!D$15,CalculationsAndCharts!$A140+$A$11,IF($C$7,8,0),1,1) -> 544.02 | F140: =OFFSET(InputPriceData!E$15,CalculationsAndCharts!$A140+$A$11,IF($C$7,8,0),1,1) -> 534.64 | G140: =OFFSET(InputPriceData!F$15,CalculationsAndCharts!$A140+$A$11,IF($C$7,8,0),1,1) -> 537.1 | H140: 9.38 | I140: 1.81 | J140: 7.57 | K140: 9.38 | L140: 8.985553739 | M140: 539.33 | N140: 543.115 | O140: 538.425 | P140: 0 | Q140: 9.38 | R140: 539.33 | S140: 1.739194927 | T140: 1.754475231
A141: 109 | B141: =OFFSET(InputPriceData!B$15,CalculationsAndCharts!$A141+$A$11,0,1,1) -> 2000-02-10 | C141: =OFFSET(InputPriceData!G$15,CalculationsAndCharts!$A141+$A$11,IF($C$7,8,0),1,1) -> 10588000 | D141: =OFFSET(InputPriceData!C$15,CalculationsAndCharts!$A141+$A$11,IF($C$7,8,0),1,1) -> 536.01 | E141: =OFFSET(InputPriceData!D$15,CalculationsAndCharts!$A141+$A$11,IF($C$7,8,0),1,1) -> 542.21 | F141: =OFFSET(InputPriceData!E$15,CalculationsAndCharts!$A141+$A$11,IF($C$7,8,0),1,1) -> 536.01 | G141: =OFFSET(InputPriceData!F$15,CalculationsAndCharts!$A141+$A$11,IF($C$7,8,0),1,1) -> 542.21 | H141: 6.2 | I141: 6.21 | J141: 0.01 | K141: 6.21 | L141: 8.955211718 | M141: 539.11 | N141: 539.105 | O141: 536.005 | P141: 1 | Q141: 6.21 | R141: 539.105 | S141: 1.151909183 | T141: 1.755650638
A142: 110 | B142: =OFFSET(InputPriceData!B$15,CalculationsAndCharts!$A142+$A$11,0,1,1) -> 2000-02-09 | C142: =OFFSET(InputPriceData!G$15,CalculationsAndCharts!$A142+$A$11,IF($C$7,8,0),1,1) -> 10505000 | D142: =OFFSET(InputPriceData!C$15,CalculationsAndCharts!$A142+$A$11,IF($C$7,8,0),1,1) -> 537.51 | E142: =OFFSET(InputPriceData!D$15,CalculationsAndCharts!$A142+$A$11,IF($C$7,8,0),1,1) -> 541.43 | F142: =OFFSET(InputPriceData!E$15,CalculationsAndCharts!$A142+$A$11,IF($C$7,8,0),1,1) -> 534.9 | G142: =OFFSET(InputPriceData!F$15,CalculationsAndCharts!$A142+$A$11,IF($C$7,8,0),1,1) -> 536 | H142: 6.53 | I142: 3.94 | J142: 2.59 | K142: 6.53 | L142: 9.166381851 | M142: 538.165 | N142: 539.46 | O142: 536.195 | P142: 0 | Q142: 6.53 | R142: 538.165 | S142: 1.213382513 | T142: 1.802092289
A143: 111 | B143: =OFFSET(InputPriceData!B$15,CalculationsAndCharts!$A143+$A$11,0,1,1) -> 2000-02-08 | C143: =OFFSET(InputPriceData!G$15,CalculationsAndCharts!$A143+$A$11,IF($C$7,8,0),1,1) -> 10477000 | D143: =OFFSET(InputPriceData!C$15,CalculationsAndCharts!$A143+$A$11,IF($C$7,8,0),1,1) -> 532.39 | E143: =OFFSET(InputPriceData!D$15,CalculationsAndCharts!$A143+$A$11,IF($C$7,8,0),1,1) -> 539.15 | F143: =OFFSET(InputPriceData!E$15,CalculationsAndCharts!$A143+$A$11,IF($C$7,8,0),1,1) -> 532.39 | G143: =OFFSET(InputPriceData!F$15,CalculationsAndCharts!$A143+$A$11,IF($C$7,8,0),1,1) -> 537.49 | H143: 6.76 | I143: 6.76 | J143: 0 | K143: 6.76 | L143: 9.369180455 | M143: 535.77 | N143: 535.77 | O143: 532.39 | P143: 0 | Q143: 6.76 | R143: 535.77 | S143: 1.261735446 | T143: 1.847377656
A144: 112 | B144: =OFFSET(InputPriceData!B$15,CalculationsAndCharts!$A144+$A$11,0,1,1) -> 2000-02-07 | C144: =OFFSET(InputPriceData!G$15,CalculationsAndCharts!$A144+$A$11,IF($C$7,8,0),1,1) -> 9181000 | D144: =OFFSET(InputPriceData!C$15,CalculationsAndCharts!$A144+$A$11,IF($C$7,8,0),1,1) -> 525.52 | E144: =OFFSET(InputPriceData!D$15,CalculationsAndCharts!$A144+$A$11,IF($C$7,8,0),1,1) -> 532.4 | F144: =OFFSET(InputPriceData!E$15,CalculationsAndCharts!$A144+$A$11,IF($C$7,8,0),1,1) -> 525.52 | G144: =OFFSET(InputPriceData!F$15,CalculationsAndCharts!$A144+$A$11,IF($C$7,8,0),1,1) -> 532.39 | H144: 6.88 | I144: 6.88 | J144: 0 | K144: 6.88 | L144: 9.569886643 | M144: 528.96 | N144: 528.96 | O144: 525.52 | P144: 0 | Q144: 6.88 | R144: 528.96 | S144: 1.300665457 | T144: 1.892427057
A145: 113 | B145: =OFFSET(InputPriceData!B$15,CalculationsAndCharts!$A145+$A$11,0,1,1) -> 2000-02-04 | C145: =OFFSET(InputPriceData!G$15,CalculationsAndCharts!$A145+$A$11,IF($C$7,8,0),1,1) -> 10451000 | D145: =OFFSET(InputPriceData!C$15,CalculationsAndCharts!$A145+$A$11,IF($C$7,8,0),1,1) -> 521.63 | E145: =OFFSET(InputPriceData!D$15,CalculationsAndCharts!$A145+$A$11,IF($C$7,8,0),1,1) -> 527.29 | F145: =OFFSET(InputPriceData!E$15,CalculationsAndCharts!$A145+$A$11,IF($C$7,8,0),1,1) -> 521.63 | G145: =OFFSET(InputPriceData!F$15,CalculationsAndCharts!$A145+$A$11,IF($C$7,8,0),1,1) -> 525.52 | H145: 5.66 | I145: 5.66 | J145: 0 | K145: 5.66 | L145: 9.776801001 | M145: 524.46 | N145: 524.46 | O145: 521.63 | P145: 0 | Q145: 5.66 | R145: 524.46 | S145: 1.079205278 | T145: 1.93794718
A146: 114 | B146: =OFFSET(InputPriceData!B$15,CalculationsAndCharts!$A146+$A$11,0,1,1) -> 2000-02-03 | C146: =OFFSET(InputPriceData!G$15,CalculationsAndCharts!$A146+$A$11,IF($C$7,8,0),1,1) -> 11465000 | D146: =OFFSET(InputPriceData!C$15,CalculationsAndCharts!$A146+$A$11,IF($C$7,8,0),1,1) -> 509.89 | E146: =OFFSET(InputPriceData!D$15,CalculationsAndCharts!$A146+$A$11,IF($C$7,8,0),1,1) -> 521.63 | F146: =OFFSET(InputPriceData!E$15,CalculationsAndCharts!$A146+$A$11,IF($C$7,8,0),1,1) -> 509.89 | G146: =OFFSET(InputPriceData!F$15,CalculationsAndCharts!$A146+$A$11,IF($C$7,8,0),1,1) -> 521.63 | H146: 11.74 | I146: 11.74 | J146: 0 | K146: 11.74 | L146: 10.093478 | M146: 515.76 | N146: 515.76 | O146: 509.89 | P146: 0 | Q146: 11.74 | R146: 515.76 | S146: 2.276252521 | T146: 2.00400425
A147: 115 | B147: =OFFSET(InputPriceData!B$15,CalculationsAndCharts!$A147+$A$11,0,1,1) -> 2000-02-02 | C147: =OFFSET(InputPriceData!G$15,CalculationsAndCharts!$A147+$A$11,IF($C$7,8,0),1,1) -> 10386000 | D147: =OFFSET(InputPriceData!C$15,CalculationsAndCharts!$A147+$A$11,IF($C$7,8,0),1,1) -> 503.75 | E147: =OFFSET(InputPriceData!D$15,CalculationsAndCharts!$A147+$A$11,IF($C$7,8,0),1,1) -> 511.46 | F147: =OFFSET(InputPriceData!E$15,CalculationsAndCharts!$A147+$A$11,IF($C$7,8,0),1,1) -> 503.75 | G147: =OFFSET(InputPriceData!F$15,CalculationsAndCharts!$A147+$A$11,IF($C$7,8,0),1,1) -> 509.89 | H147: 7.71 | I147: 7.71 | J147: 0 | K147: 7.71 | L147: 9.966822462 | M147: 507.605 | N147: 507.605 | O147: 503.75 | P147: 0 | Q147: 7.71 | R147: 507.605 | S147: 1.518897568 | T147: 1.983062075
A148: 116 | B148: =OFFSET(InputPriceData!B$15,CalculationsAndCharts!$A148+$A$11,0,1,1) -> 2000-02-01 | C148: =OFFSET(InputPriceData!G$15,CalculationsAndCharts!$A148+$A$11,IF($C$7,8,0),1,1) -> 9810000 | D148: =OFFSET(InputPriceData!C$15,CalculationsAndCharts!$A148+$A$11,IF($C$7,8,0),1,1) -> 496.23 | E148: =OFFSET(InputPriceData!D$15,CalculationsAndCharts!$A148+$A$11,IF($C$7,8,0),1,1) -> 503.75 | F148: =OFFSET(InputPriceData!E$15,CalculationsAndCharts!$A148+$A$11,IF($C$7,8,0),1,1) -> 492.65 | G148: =OFFSET(InputPriceData!F$15,CalculationsAndCharts!$A148+$A$11,IF($C$7,8,0),1,1) -> 503.75 | H148: 11.1 | I148: 7.52 | J148: 3.58 | K148: 11.1 | L148: 10.14042419 | M148: 498.2 | N148: 499.99 | O148: 494.44 | P148: 0 | Q148: 11.1 | R148: 498.2 | S148: 2.228020875 | T148: 2.018767037
A149: 117 | B149: =OFFSET(InputPriceData!B$15,CalculationsAndCharts!$A149+$A$11,0,1,1) -> 2000-01-31 | C149: =OFFSET(InputPriceData!G$15,CalculationsAndCharts!$A149+$A$11,IF($C$7,8,0),1,1) -> 9938000 | D149: =OFFSET(InputPriceData!C$15,CalculationsAndCharts!$A149+$A$11,IF($C$7,8,0),1,1) -> 504.62 | E149: =OFFSET(InputPriceData!D$15,CalculationsAndCharts!$A149+$A$11,IF($C$7,8,0),1,1) -> 504.62 | F149: =OFFSET(InputPriceData!E$15,CalculationsAndCharts!$A149+$A$11,IF($C$7,8,0),1,1) -> 488.53 | G149: =OFFSET(InputPriceData!F$15,CalculationsAndCharts!$A149+$A$11,IF($C$7,8,0),1,1) -> 496.23 | H149: 16.09 | I149: 0 | J149: 16.09 | K149: 16.09 | L149: 10.06661067 | M149: 496.575 | N149: 504.62 | O149: 496.575 | P149: 0 | Q149: 16.09 | R149: 496.575 | S149: 3.240195338 | T149: 2.002670588
A150: 118 | B150: =OFFSET(InputPriceData!B$15,CalculationsAndCharts!$A150+$A$11,0,1,1) -> 2000-01-28 | C150: =OFFSET(InputPriceData!G$15,CalculationsAndCharts!$A150+$A$11,IF($C$7,8,0),1,1) -> 10958000 | D150: =OFFSET(InputPriceData!C$15,CalculationsAndCharts!$A150+$A$11,IF($C$7,8,0),1,1) -> 517.02 | E150: =OFFSET(InputPriceData!D$15,CalculationsAndCharts!$A150+$A$11,IF($C$7,8,0),1,1) -> 517.11 | F150: =OFFSET(InputPriceData!E$15,CalculationsAndCharts!$A150+$A$11,IF($C$7,8,0),1,1) -> 503.06 | G150: =OFFSET(InputPriceData!F$15,CalculationsAndCharts!$A150+$A$11,IF($C$7,8,0),1,1) -> 504.62 | H150: 14.05 | I150: 0.09 | J150: 13.96 | K150: 14.05 | L150: 9.603273025 | M150: 510.085 | N150: 517.065 | O150: 510.04 | P150: 0 | Q150: 14.05 | R150: 510.085 | S150: 2.754442887 | T150: 1.907476376
A151: 119 | B151: =OFFSET(InputPriceData!B$15,CalculationsAndCharts!$A151+$A$11,0,1,1) -> 2000-01-27 | C151: =OFFSET(InputPriceData!G$15,CalculationsAndCharts!$A151+$A$11,IF($C$7,8,0),1,1) -> 11295000 | D151: =OFFSET(InputPriceData!C$15,CalculationsAndCharts!$A151+$A$11,IF($C$7,8,0),1,1) -> 521.04 | E151: =OFFSET(InputPriceData!D$15,CalculationsAndCharts!$A151+$A$11,IF($C$7,8,0),1,1) -> 526.02 | F151: =OFFSET(InputPriceData!E$15,CalculationsAndCharts!$A151+$A$11,IF($C$7,8,0),1,1) -> 513.73 | G151: =OFFSET(InputPriceData!F$15,CalculationsAndCharts!$A151+$A$11,IF($C$7,8,0),1,1) -> 517.02 | H151: 12.29 | I151: 4.98 | J151: 7.31 | K151: 12.29 | L151: 9.261217104 | M151: 519.875 | N151: 523.53 | O151: 517.385 | P151: 0 | Q151: 12.29 | R151: 519.875 | S151: 2.364029815 | T151: 1.842325106
A152: 120 | B152: =OFFSET(InputPriceData!B$15,CalculationsAndCharts!$A152+$A$11,0,1,1) -> 2000-01-26 | C152: =OFFSET(InputPriceData!G$15,CalculationsAndCharts!$A152+$A$11,IF($C$7,8,0),1,1) -> 11173000 | D152: =OFFSET(InputPriceData!C$15,CalculationsAndCharts!$A152+$A$11,IF($C$7,8,0),1,1) -> 521.59 | E152: =OFFSET(InputPriceData!D$15,CalculationsAndCharts!$A152+$A$11,IF($C$7,8,0),1,1) -> 524.39 | F152: =OFFSET(InputPriceData!E$15,CalculationsAndCharts!$A152+$A$11,IF($C$7,8,0),1,1) -> 520.36 | G152: =OFFSET(InputPriceData!F$15,CalculationsAndCharts!$A152+$A$11,IF($C$7,8,0),1,1) -> 521.04 | H152: 4.03 | I152: 2.8 | J152: 1.23 | K152: 4.03 | L152: 9.028233804 | M152: 522.375 | N152: 522.99 | O152: 520.975 | P152: 0 | Q152: 4.03 | R152: 522.375 | S152: 0.7714764298 | T152: 1.802193975
A153: 121 | B153: =OFFSET(InputPriceData!B$15,CalculationsAndCharts!$A153+$A$11,0,1,1) -> 2000-01-25 | C153: =OFFSET(InputPriceData!G$15,CalculationsAndCharts!$A153+$A$11,IF($C$7,8,0),1,1) -> 10737000 | D153: =OFFSET(InputPriceData!C$15,CalculationsAndCharts!$A153+$A$11,IF($C$7,8,0),1,1) -> 522.96 | E153: =OFFSET(InputPriceData!D$15,CalculationsAndCharts!$A153+$A$11,IF($C$7,8,0),1,1) -> 525.27 | F153: =OFFSET(InputPriceData!E$15,CalculationsAndCharts!$A153+$A$11,IF($C$7,8,0),1,1) -> 513.69 | G153: =OFFSET(InputPriceData!F$15,CalculationsAndCharts!$A153+$A$11,IF($C$7,8,0),1,1) -> 521.59 | H153: 11.58 | I153: 2.32 | J153: 9.26 | K153: 11.58 | L153: 9.412713328 | M153: 519.48 | N153: 524.11 | O153: 518.32 | P153: 0 | Q153: 11.58 | R153: 519.48 | S153: 2.229152229 | T153: 1.88147994
A154: 122 | B154: =OFFSET(InputPriceData!B$15,CalculationsAndCharts!$A154+$A$11,0,1,1) -> 2000-01-24 | C154: =OFFSET(InputPriceData!G$15,CalculationsAndCharts!$A154+$A$11,IF($C$7,8,0),1,1) -> 11158000 | D154: =OFFSET(InputPriceData!C$15,CalculationsAndCharts!$A154+$A$11,IF($C$7,8,0),1,1) -> 533.94 | E154: =OFFSET(InputPriceData!D$15,CalculationsAndCharts!$A154+$A$11,IF($C$7,8,0),1,1) -> 540.6 | F154: =OFFSET(InputPriceData!E$15,CalculationsAndCharts!$A154+$A$11,IF($C$7,8,0),1,1) -> 522.27 | G154: =OFFSET(InputPriceData!F$15,CalculationsAndCharts!$A154+$A$11,IF($C$7,8,0),1,1) -> 522.95 | H154: 18.33 | I154: 6.66 | J154: 11.67 | K154: 18.33 | L154: 9.245998968 | M154: 531.435 | N154: 537.27 | O154: 528.105 | P154: 0 | Q154: 18.33 | R154: 531.435 | S154: 3.449151825 | T154: 1.854735918
A155: 123 | B155: =OFFSET(InputPriceData!B$15,CalculationsAndCharts!$A155+$A$11,0,1,1) -> 2000-01-21 | C155: =OFFSET(InputPriceData!G$15,CalculationsAndCharts!$A155+$A$11,IF($C$7,8,0),1,1) -> 12098000 | D155: =OFFSET(InputPriceData!C$15,CalculationsAndCharts!$A155+$A$11,IF($C$7,8,0),1,1) -> 527.28 | E155: =OFFSET(InputPriceData!D$15,CalculationsAndCharts!$A155+$A$11,IF($C$7,8,0),1,1) -> 533.95 | F155: =OFFSET(InputPriceData!E$15,CalculationsAndCharts!$A155+$A$11,IF($C$7,8,0),1,1) -> 526.66 | G155: =OFFSET(InputPriceData!F$15,CalculationsAndCharts!$A155+$A$11,IF($C$7,8,0),1,1) -> 533.94 | H155: 7.29 | I155: 6.67 | J155: 0.62 | K155: 7.29 | L155: 8.547229658 | M155: 530.305 | N155: 530.615 | O155: 526.97 | P155: 0 | Q155: 7.29 | R155: 530.305 | S155: 1.374680608 | T155: 1.73208854
A156: 124 | B156: =OFFSET(InputPriceData!B$15,CalculationsAndCharts!$A156+$A$11,0,1,1) -> 2000-01-20 | C156: =OFFSET(InputPriceData!G$15,CalculationsAndCharts!$A156+$A$11,IF($C$7,8,0),1,1) -> 11007000 | D156: =OFFSET(InputPriceData!C$15,CalculationsAndCharts!$A156+$A$11,IF($C$7,8,0),1,1) -> 520.02 | E156: =OFFSET(InputPriceData!D$15,CalculationsAndCharts!$A156+$A$11,IF($C$7,8,0),1,1) -> 528.23 | F156: =OFFSET(InputPriceData!E$15,CalculationsAndCharts!$A156+$A$11,IF($C$7,8,0),1,1) -> 520.02 | G156: =OFFSET(InputPriceData!F$15,CalculationsAndCharts!$A156+$A$11,IF($C$7,8,0),1,1) -> 527.28 | H156: 8.21 | I156: 8.21 | J156: 0 | K156: 8.21 | L156: 8.643939632 | M156: 524.125 | N156: 524.125 | O156: 520.02 | P156: 0 | Q156: 8.21 | R156: 524.125 | S156: 1.566420224 | T156: 1.759581458
A157: 125 | B157: =OFFSET(InputPriceData!B$15,CalculationsAndCharts!$A157+$A$11,0,1,1) -> 2000-01-19 | C157: =OFFSET(InputPriceData!G$15,CalculationsAndCharts!$A157+$A$11,IF($C$7,8,0),1,1) -> 10878000 | D157: =OFFSET(InputPriceData!C$15,CalculationsAndCharts!$A157+$A$11,IF($C$7,8,0),1,1) -> 513.46 | E157: =OFFSET(InputPriceData!D$15,CalculationsAndCharts!$A157+$A$11,IF($C$7,8,0),1,1) -> 520.02 | F157: =OFFSET(InputPriceData!E$15,CalculationsAndCharts!$A157+$A$11,IF($C$7,8,0),1,1) -> 511.89 | G157: =OFFSET(InputPriceData!F$15,CalculationsAndCharts!$A157+$A$11,IF($C$7,8,0),1,1) -> 520.02 | H157: 8.13 | I157: 6.56 | J157: 1.57 | K157: 8.13 | L157: 8.677319604 | M157: 515.955 | N157: 516.74 | O157: 512.675 | P157: 0 | Q157: 8.13 | R157: 515.955 | S157: 1.575718813 | T157: 1.774440014
A158: 126 | B158: =OFFSET(InputPriceData!B$15,CalculationsAndCharts!$A158+$A$11,0,1,1) -> 2000-01-18 | C158: =OFFSET(InputPriceData!G$15,CalculationsAndCharts!$A158+$A$11,IF($C$7,8,0),1,1) -> 10567000 | D158: =OFFSET(InputPriceData!C$15,CalculationsAndCharts!$A158+$A$11,IF($C$7,8,0),1,1) -> 507.56 | E158: =OFFSET(InputPriceData!D$15,CalculationsAndCharts!$A158+$A$11,IF($C$7,8,0),1,1) -> 513.46 | F158: =OFFSET(InputPriceData!E$15,CalculationsAndCharts!$A158+$A$11,IF($C$7,8,0),1,1) -> 506.2 | G158: =OFFSET(InputPriceData!F$15,CalculationsAndCharts!$A158+$A$11,IF($C$7,8,0),1,1) -> 513.46 | H158: 7.26 | I158: 5.9 | J158: 1.36 | K158: 7.26 | L158: 8.719421112 | M158: 509.83 | N158: 510.51 | O158: 506.88 | P158: 0 | Q158: 7.26 | R158: 509.83 | S158: 1.42400408 | T158: 1.789726261
A159: 127 | B159: =OFFSET(InputPriceData!B$15,CalculationsAndCharts!$A159+$A$11,0,1,1) -> 2000-01-14 | C159: =OFFSET(InputPriceData!G$15,CalculationsAndCharts!$A159+$A$11,IF($C$7,8,0),1,1) -> 10859000 | D159: =OFFSET(InputPriceData!C$15,CalculationsAndCharts!$A159+$A$11,IF($C$7,8,0),1,1) -> 501.19 | E159: =OFFSET(InputPriceData!D$15,CalculationsAndCharts!$A159+$A$11,IF($C$7,8,0),1,1) -> 508.11 | F159: =OFFSET(InputPriceData!E$15,CalculationsAndCharts!$A159+$A$11,IF($C$7,8,0),1,1) -> 501.19 | G159: =OFFSET(InputPriceData!F$15,CalculationsAndCharts!$A159+$A$11,IF($C$7,8,0),1,1) -> 507.56 | H159: 6.92 | I159: 6.92 | J159: 0 | K159: 6.92 | L159: 8.831684274 | M159: 504.65 | N159: 504.65 | O159: 501.19 | P159: 0 | Q159: 6.92 | R159: 504.65 | S159: 1.371247399 | T159: 1.817858736
A160: 128 | B160: =OFFSET(InputPriceData!B$15,CalculationsAndCharts!$A160+$A$11,0,1,1) -> 2000-01-13 | C160: =OFFSET(InputPriceData!G$15,CalculationsAndCharts!$A160+$A$11,IF($C$7,8,0),1,1) -> 10304000 | D160: =OFFSET(InputPriceData!C$15,CalculationsAndCharts!$A160+$A$11,IF($C$7,8,0),1,1) -> 490.04 | E160: =OFFSET(InputPriceData!D$15,CalculationsAndCharts!$A160+$A$11,IF($C$7,8,0),1,1) -> 501.19 | F160: =OFFSET(InputPriceData!E$15,CalculationsAndCharts!$A160+$A$11,IF($C$7,8,0),1,1) -> 490.04 | G160: =OFFSET(InputPriceData!F$15,CalculationsAndCharts!$A160+$A$11,IF($C$7,8,0),1,1) -> 501.19 | H160: 11.15 | I160: 11.15 | J160: 0 | K160: 11.15 | L160: 8.978736911 | M160: 495.615 | N160: 495.615 | O160: 490.04 | P160: 0 | Q160: 11.15 | R160: 495.615 | S160: 2.249730133 | T160: 1.852213454
A161: 129 | B161: =OFFSET(InputPriceData!B$15,CalculationsAndCharts!$A161+$A$11,0,1,1) -> 2000-01-12 | C161: =OFFSET(InputPriceData!G$15,CalculationsAndCharts!$A161+$A$11,IF($C$7,8,0),1,1) -> 9746000 | D161: =OFFSET(InputPriceData!C$15,CalculationsAndCharts!$A161+$A$11,IF($C$7,8,0),1,1) -> 492.61 | E161: =OFFSET(InputPriceData!D$15,CalculationsAndCharts!$A161+$A$11,IF($C$7,8,0),1,1) -> 494.84 | F161: =OFFSET(InputPriceData!E$15,CalculationsAndCharts!$A161+$A$11,IF($C$7,8,0),1,1) -> 487.09 | G161: =OFFSET(InputPriceData!F$15,CalculationsAndCharts!$A161+$A$11,IF($C$7,8,0),1,1) -> 490.04 | H161: =E161-F161 -> 7.75 | I161: =IF(A161>=$A$8,0,ABS(E161-G162)) -> 2.23 | J161: =IF(A161>=$A$8,0,ABS(F161-G162)) -> 5.52 | K161: =MAX(H161:J161) -> 7.75 | L161: 8.811716673 | M161: =AVERAGE(E161:F161) -> 490.965 | N161: =AVERAGE(E161,G162) -> 493.725 | O161: =AVERAGE(F161,G162) -> 489.85 | P161: =IF(K161=H161,0,IF(K161=I161,1,2)) -> 0 | Q161: =OFFSET(H161,0,P161,1,1) -> 7.75 | R161: =OFFSET(M161,0,P161,1,1) -> 490.965 | S161: =K161/R161*100 -> 1.578523927 | T161: =IF(A161>$A$8,0,IF(A161>=($A$8-$A$16),AVERAGE(OFFSET(S161,0,0,($A$8-A161+1),1)),(T162*$D$18)+S161*$F$18)) -> 1.821635248
A162: 130 | B162: =OFFSET(InputPriceData!B$15,CalculationsAndCharts!$A162+$A$11,0,1,1) -> 2000-01-11 | C162: =OFFSET(InputPriceData!G$15,CalculationsAndCharts!$A162+$A$11,IF($C$7,8,0),1,1) -> 10140000 | D162: =OFFSET(InputPriceData!C$15,CalculationsAndCharts!$A162+$A$11,IF($C$7,8,0),1,1) -> 501.89 | E162: =OFFSET(InputPriceData!D$15,CalculationsAndCharts!$A162+$A$11,IF($C$7,8,0),1,1) -> 501.91 | F162: =OFFSET(InputPriceData!E$15,CalculationsAndCharts!$A162+$A$11,IF($C$7,8,0),1,1) -> 492.56 | G162: =OFFSET(InputPriceData!F$15,CalculationsAndCharts!$A162+$A$11,IF($C$7,8,0),1,1) -> 492.61 | H162: 9.35 | I162: 0.02 | J162: 9.33 | K162: 9.35 | L162: =IF(A162>$A$8,0,IF(A162>=($A$8-$A$16),AVERAGE(OFFSET(K162,0,0,($A$8-A162+1),1)),(L163*$D$18)+K162*$F$18)) -> 8.893387186 | M162: 497.235 | N162: 501.9 | O162: 497.225 | P162: 0 | Q162: 9.35 | R162: 497.235 | S162: 1.880398604 | T162: 1.840336119
A163: 131 | B163: =OFFSET(InputPriceData!B$15,CalculationsAndCharts!$A163+$A$11,0,1,1) -> 2000-01-10 | C163: =OFFSET(InputPriceData!G$15,CalculationsAndCharts!$A163+$A$11,IF($C$7,8,0),1,1) -> 10648000 | D163: =OFFSET(InputPriceData!C$15,CalculationsAndCharts!$A163+$A$11,IF($C$7,8,0),1,1) -> 488.31 | E163: =OFFSET(InputPriceData!D$15,CalculationsAndCharts!$A163+$A$11,IF($C$7,8,0),1,1) -> 505.96 | F163: =OFFSET(InputPriceData!E$15,CalculationsAndCharts!$A163+$A$11,IF($C$7,8,0),1,1) -> 488.31 | G163: =OFFSET(InputPriceData!F$15,CalculationsAndCharts!$A163+$A$11,IF($C$7,8,0),1,1) -> 501.89 | H163: 17.65 | I163: 17.65 | J163: 0 | K163: 17.65 | L163: 8.858263124 | M163: 497.135 | N163: 497.135 | O163: 488.31 | P163: 0 | Q163: 17.65 | R163: 497.135 | S163: 3.550343468 | T163: 1.83725439
A164: 132 | B164: =OFFSET(InputPriceData!B$15,CalculationsAndCharts!$A164+$A$11,0,1,1) -> 2000-01-07 | C164: =OFFSET(InputPriceData!G$15,CalculationsAndCharts!$A164+$A$11,IF($C$7,8,0),1,1) -> 12252000 | D164: =OFFSET(InputPriceData!C$15,CalculationsAndCharts!$A164+$A$11,IF($C$7,8,0),1,1) -> 475.34 | E164: =OFFSET(InputPriceData!D$15,CalculationsAndCharts!$A164+$A$11,IF($C$7,8,0),1,1) -> 488.31 | F164: =OFFSET(InputPriceData!E$15,CalculationsAndCharts!$A164+$A$11,IF($C$7,8,0),1,1) -> 475.34 | G164: =OFFSET(InputPriceData!F$15,CalculationsAndCharts!$A164+$A$11,IF($C$7,8,0),1,1) -> 488.31 | H164: 12.97 | I164: 12.97 | J164: 0 | K164: 12.97 | L164: 8.181975672 | M164: 481.825 | N164: 481.825 | O164: 475.34 | P164: 0 | Q164: 12.97 | R164: 481.825 | S164: 2.6918487 | T164: 1.705478307
A165: 133 | B165: =OFFSET(InputPriceData!B$15,CalculationsAndCharts!$A165+$A$11,0,1,1) -> 2000-01-06 | C165: =OFFSET(InputPriceData!G$15,CalculationsAndCharts!$A165+$A$11,IF($C$7,8,0),1,1) -> 10923000 | D165: =OFFSET(InputPriceData!C$15,CalculationsAndCharts!$A165+$A$11,IF($C$7,8,0),1,1) -> 478.83 | E165: =OFFSET(InputPriceData!D$15,CalculationsAndCharts!$A165+$A$11,IF($C$7,8,0),1,1) -> 480.19 | F165: =OFFSET(InputPriceData!E$15,CalculationsAndCharts!$A165+$A$11,IF($C$7,8,0),1,1) -> 474.4 | G165: =OFFSET(InputPriceData!F$15,CalculationsAndCharts!$A165+$A$11,IF($C$7,8,0),1,1) -> 475.34 | H165: 5.79 | I165: 1.36 | J165: 4.43 | K165: 5.79 | L165: 7.813666108 | M165: 477.295 | N165: 479.51 | O165: 476.615 | P165: 0 | Q165: 5.79 | R165: 477.295 | S165: 1.213086246 | T165: 1.629603661
A166: 134 | B166: =OFFSET(InputPriceData!B$15,CalculationsAndCharts!$A166+$A$11,0,1,1) -> 2000-01-05 | C166: =OFFSET(InputPriceData!G$15,CalculationsAndCharts!$A166+$A$11,IF($C$7,8,0),1,1) -> 10855000 | D166: =OFFSET(InputPriceData!C$15,CalculationsAndCharts!$A166+$A$11,IF($C$7,8,0),1,1) -> 478.38 | E166: =OFFSET(InputPriceData!D$15,CalculationsAndCharts!$A166+$A$11,IF($C$7,8,0),1,1) -> 479.48 | F166: =OFFSET(InputPriceData!E$15,CalculationsAndCharts!$A166+$A$11,IF($C$7,8,0),1,1) -> 467.56 | G166: =OFFSET(InputPriceData!F$15,CalculationsAndCharts!$A166+$A$11,IF($C$7,8,0),1,1) -> 478.83 | H166: 11.92 | I166: 1.1 | J166: 10.82 | K166: 11.92 | L166: 7.969332731 | M166: 473.52 | N166: 478.93 | O166: 472.97 | P166: 0 | Q166: 11.92 | R166: 473.52 | S166: 2.517317114 | T166: 1.661643462
A167: 135 | B167: =OFFSET(InputPriceData!B$15,CalculationsAndCharts!$A167+$A$11,0,1,1) -> 2000-01-04 | C167: =OFFSET(InputPriceData!G$15,CalculationsAndCharts!$A167+$A$11,IF($C$7,8,0),1,1) -> 10090000 | D167: =OFFSET(InputPriceData!C$15,CalculationsAndCharts!$A167+$A$11,IF($C$7,8,0),1,1) -> 497.05 | E167: =OFFSET(InputPriceData!D$15,CalculationsAndCharts!$A167+$A$11,IF($C$7,8,0),1,1) -> 497.05 | F167: =OFFSET(InputPriceData!E$15,CalculationsAndCharts!$A167+$A$11,IF($C$7,8,0),1,1) -> 478.2 | G167: =OFFSET(InputPriceData!F$15,CalculationsAndCharts!$A167+$A$11,IF($C$7,8,0),1,1) -> 478.38 | H167: 18.85 | I167: 0.63 | J167: 18.22 | K167: 18.85 | L167: 7.665435249 | M167: 487.625 | N167: 496.735 | O167: 487.31 | P167: 0 | Q167: 18.85 | R167: 487.625 | S167: 3.865675468 | T167: 1.595822412
A168: 136 | B168: =OFFSET(InputPriceData!B$15,CalculationsAndCharts!$A168+$A$11,0,1,1) -> 2000-01-03 | C168: =OFFSET(InputPriceData!G$15,CalculationsAndCharts!$A168+$A$11,IF($C$7,8,0),1,1) -> 9318000 | D168: =OFFSET(InputPriceData!C$15,CalculationsAndCharts!$A168+$A$11,IF($C$7,8,0),1,1) -> 504.76 | E168: =OFFSET(InputPriceData!D$15,CalculationsAndCharts!$A168+$A$11,IF($C$7,8,0),1,1) -> 510.96 | F168: =OFFSET(InputPriceData!E$15,CalculationsAndCharts!$A168+$A$11,IF($C$7,8,0),1,1) -> 489.95 | G168: =OFFSET(InputPriceData!F$15,CalculationsAndCharts!$A168+$A$11,IF($C$7,8,0),1,1) -> 496.42 | H168: 21.01 | I168: 6.21 | J168: 14.8 | K168: 21.01 | L168: 6.805084115 | M168: 500.455 | N168: 507.855 | O168: 497.35 | P168: 0 | Q168: 21.01 | R168: 500.455 | S168: 4.198179657 | T168: 1.421218331
A169: 137 | B169: =OFFSET(InputPriceData!B$15,CalculationsAndCharts!$A169+$A$11,0,1,1) -> 1999-12-31 | C169: =OFFSET(InputPriceData!G$15,CalculationsAndCharts!$A169+$A$11,IF($C$7,8,0),1,1) -> 3740500 | D169: =OFFSET(InputPriceData!C$15,CalculationsAndCharts!$A169+$A$11,IF($C$7,8,0),1,1) -> 496.59 | E169: =OFFSET(InputPriceData!D$15,CalculationsAndCharts!$A169+$A$11,IF($C$7,8,0),1,1) -> 504.75 | F169: =OFFSET(InputPriceData!E$15,CalculationsAndCharts!$A169+$A$11,IF($C$7,8,0),1,1) -> 495.65 | G169: =OFFSET(InputPriceData!F$15,CalculationsAndCharts!$A169+$A$11,IF($C$7,8,0),1,1) -> 504.75 | H169: 9.1 | I169: 8.16 | J169: 0.94 | K169: 9.1 | L169: 5.712398277 | M169: 500.2 | N169: 500.67 | O169: 496.12 | P169: 0 | Q169: 9.1 | R169: 500.2 | S169: 1.819272291 | T169: 1.207605921
A170: 138 | B170: =OFFSET(InputPriceData!B$15,CalculationsAndCharts!$A170+$A$11,0,1,1) -> 1999-12-30 | C170: =OFFSET(InputPriceData!G$15,CalculationsAndCharts!$A170+$A$11,IF($C$7,8,0),1,1) -> 5546800 | D170: =OFFSET(InputPriceData!C$15,CalculationsAndCharts!$A170+$A$11,IF($C$7,8,0),1,1) -> 497.02 | E170: =OFFSET(InputPriceData!D$15,CalculationsAndCharts!$A170+$A$11,IF($C$7,8,0),1,1) -> 499.27 | F170: =OFFSET(InputPriceData!E$15,CalculationsAndCharts!$A170+$A$11,IF($C$7,8,0),1,1) -> 495.87 | G170: =OFFSET(InputPriceData!F$15,CalculationsAndCharts!$A170+$A$11,IF($C$7,8,0),1,1) -> 496.59 | H170: 3.4 | I170: 2.26 | J170: 1.14 | K170: 3.4 | L170: 5.451813529 | M170: 497.57 | N170: 498.14 | O170: 496.44 | P170: 0 | Q170: 3.4 | R170: 497.57 | S170: 0.6833209398 | T170: 1.160554662
A171: 139 | B171: =OFFSET(InputPriceData!B$15,CalculationsAndCharts!$A171+$A$11,0,1,1) -> 1999-12-29 | C171: =OFFSET(InputPriceData!G$15,CalculationsAndCharts!$A171+$A$11,IF($C$7,8,0),1,1) -> 5678600 | D171: =OFFSET(InputPriceData!C$15,CalculationsAndCharts!$A171+$A$11,IF($C$7,8,0),1,1) -> 488.48 | E171: =OFFSET(InputPriceData!D$15,CalculationsAndCharts!$A171+$A$11,IF($C$7,8,0),1,1) -> 497.01 | F171: =OFFSET(InputPriceData!E$15,CalculationsAndCharts!$A171+$A$11,IF($C$7,8,0),1,1) -> 488.48 | G171: =OFFSET(InputPriceData!F$15,CalculationsAndCharts!$A171+$A$11,IF($C$7,8,0),1,1) -> 497.01 | H171: 8.53 | I171: 8.53 | J171: 0 | K171: 8.53 | L171: 5.609645339 | M171: 492.745 | N171: 492.745 | O171: 488.48 | P171: 0 | Q171: 8.53 | R171: 492.745 | S171: 1.73111853 | T171: 1.197264948
A172: 140 | B172: =OFFSET(InputPriceData!B$15,CalculationsAndCharts!$A172+$A$11,0,1,1) -> 1999-12-28 | C172: =OFFSET(InputPriceData!G$15,CalculationsAndCharts!$A172+$A$11,IF($C$7,8,0),1,1) -> 6554000 | D172: =OFFSET(InputPriceData!C$15,CalculationsAndCharts!$A172+$A$11,IF($C$7,8,0),1,1) -> 484.46 | E172: =OFFSET(InputPriceData!D$15,CalculationsAndCharts!$A172+$A$11,IF($C$7,8,0),1,1) -> 490.33 | F172: =OFFSET(InputPriceData!E$15,CalculationsAndCharts!$A172+$A$11,IF($C$7,8,0),1,1) -> 482.99 | G172: =OFFSET(InputPriceData!F$15,CalculationsAndCharts!$A172+$A$11,IF($C$7,8,0),1,1) -> 488.48 | H172: 7.34 | I172: 5.87 | J172: 1.47 | K172: 7.34 | L172: 5.385002673 | M172: 486.66 | N172: 487.395 | O172: 483.725 | P172: 0 | Q172: 7.34 | R172: 486.66 | S172: 1.508239839 | T172: 1.156199288
A173: 141 | B173: =OFFSET(InputPriceData!B$15,CalculationsAndCharts!$A173+$A$11,0,1,1) -> 1999-12-27 | C173: =OFFSET(InputPriceData!G$15,CalculationsAndCharts!$A173+$A$11,IF($C$7,8,0),1,1) -> 7226000 | D173: =OFFSET(InputPriceData!C$15,CalculationsAndCharts!$A173+$A$11,IF($C$7,8,0),1,1) -> 482.43 | E173: =OFFSET(InputPriceData!D$15,CalculationsAndCharts!$A173+$A$11,IF($C$7,8,0),1,1) -> 484.46 | F173: =OFFSET(InputPriceData!E$15,CalculationsAndCharts!$A173+$A$11,IF($C$7,8,0),1,1) -> 479.3 | G173: =OFFSET(InputPriceData!F$15,CalculationsAndCharts!$A173+$A$11,IF($C$7,8,0),1,1) -> 484.46 | H173: 5.16 | I173: 2.03 | J173: 3.13 | K173: 5.16 | L173: 5.234618263 | M173: 481.88 | N173: 483.445 | O173: 480.865 | P173: 0 | Q173: 5.16 | R173: 481.88 | S173: 1.07080601 | T173: 1.129119245
A174: 142 | B174: =OFFSET(InputPriceData!B$15,CalculationsAndCharts!$A174+$A$11,0,1,1) -> 1999-12-23 | C174: =OFFSET(InputPriceData!G$15,CalculationsAndCharts!$A174+$A$11,IF($C$7,8,0),1,1) -> 7286000 | D174: =OFFSET(InputPriceData!C$15,CalculationsAndCharts!$A174+$A$11,IF($C$7,8,0),1,1) -> 477.94 | E174: =OFFSET(InputPriceData!D$15,CalculationsAndCharts!$A174+$A$11,IF($C$7,8,0),1,1) -> 484.17 | F174: =OFFSET(InputPriceData!E$15,CalculationsAndCharts!$A174+$A$11,IF($C$7,8,0),1,1) -> 477.94 | G174: =OFFSET(InputPriceData!F$15,CalculationsAndCharts!$A174+$A$11,IF($C$7,8,0),1,1) -> 482.43 | H174: 6.23 | I174: 6.23 | J174: 0 | K174: 6.23 | L174: 5.24035813 | M174: 481.055 | N174: 481.055 | O174: 477.94 | P174: 0 | Q174: 6.23 | R174: 481.055 | S174: 1.29507021 | T174: 1.133604879
A175: 143 | B175: =OFFSET(InputPriceData!B$15,CalculationsAndCharts!$A175+$A$11,0,1,1) -> 1999-12-22 | C175: =OFFSET(InputPriceData!G$15,CalculationsAndCharts!$A175+$A$11,IF($C$7,8,0),1,1) -> 8500000 | D175: =OFFSET(InputPriceData!C$15,CalculationsAndCharts!$A175+$A$11,IF($C$7,8,0),1,1) -> 475.79 | E175: =OFFSET(InputPriceData!D$15,CalculationsAndCharts!$A175+$A$11,IF($C$7,8,0),1,1) -> 478.51 | F175: =OFFSET(InputPriceData!E$15,CalculationsAndCharts!$A175+$A$11,IF($C$7,8,0),1,1) -> 474.14 | G175: =OFFSET(InputPriceData!F$15,CalculationsAndCharts!$A175+$A$11,IF($C$7,8,0),1,1) -> 477.94 | H175: 4.37 | I175: 2.72 | J175: 1.65 | K175: 4.37 | L175: 5.164231832 | M175: 476.325 | N175: 477.15 | O175: 474.965 | P175: 0 | Q175: 4.37 | R175: 476.325 | S175: 0.917440823 | T175: 1.121184469
A176: 144 | B176: =OFFSET(InputPriceData!B$15,CalculationsAndCharts!$A176+$A$11,0,1,1) -> 1999-12-21 | C176: =OFFSET(InputPriceData!G$15,CalculationsAndCharts!$A176+$A$11,IF($C$7,8,0),1,1) -> 9635000 | D176: =OFFSET(InputPriceData!C$15,CalculationsAndCharts!$A176+$A$11,IF($C$7,8,0),1,1) -> 467.19 | E176: =OFFSET(InputPriceData!D$15,CalculationsAndCharts!$A176+$A$11,IF($C$7,8,0),1,1) -> 475.79 | F176: =OFFSET(InputPriceData!E$15,CalculationsAndCharts!$A176+$A$11,IF($C$7,8,0),1,1) -> 467.12 | G176: =OFFSET(InputPriceData!F$15,CalculationsAndCharts!$A176+$A$11,IF($C$7,8,0),1,1) -> 475.79 | H176: 8.67 | I176: 8.6 | J176: 0.07 | K176: 8.67 | L176: 5.225326588 | M176: 471.455 | N176: 471.49 | O176: 467.155 | P176: 0 | Q176: 8.67 | R176: 471.455 | S176: 1.838987814 | T176: 1.136857057
A177: 145 | B177: =OFFSET(InputPriceData!B$15,CalculationsAndCharts!$A177+$A$11,0,1,1) -> 1999-12-20 | C177: =OFFSET(InputPriceData!G$15,CalculationsAndCharts!$A177+$A$11,IF($C$7,8,0),1,1) -> 9046000 | D177: =OFFSET(InputPriceData!C$15,CalculationsAndCharts!$A177+$A$11,IF($C$7,8,0),1,1) -> 466.21 | E177: =OFFSET(InputPriceData!D$15,CalculationsAndCharts!$A177+$A$11,IF($C$7,8,0),1,1) -> 469.84 | F177: =OFFSET(InputPriceData!E$15,CalculationsAndCharts!$A177+$A$11,IF($C$7,8,0),1,1) -> 466.21 | G177: =OFFSET(InputPriceData!F$15,CalculationsAndCharts!$A177+$A$11,IF($C$7,8,0),1,1) -> 467.19 | H177: 3.63 | I177: 3.63 | J177: 0 | K177: 3.63 | L177: 4.960351711 | M177: 468.025 | N177: 468.025 | O177: 466.21 | P177: 0 | Q177: 3.63 | R177: 468.025 | S177: 0.775599594 | T177: 1.082846999
A178: 146 | B178: =OFFSET(InputPriceData!B$15,CalculationsAndCharts!$A178+$A$11,0,1,1) -> 1999-12-17 | C178: =OFFSET(InputPriceData!G$15,CalculationsAndCharts!$A178+$A$11,IF($C$7,8,0),1,1) -> 13498000 | D178: =OFFSET(InputPriceData!C$15,CalculationsAndCharts!$A178+$A$11,IF($C$7,8,0),1,1) -> 465.26 | E178: =OFFSET(InputPriceData!D$15,CalculationsAndCharts!$A178+$A$11,IF($C$7,8,0),1,1) -> 469.21 | F178: =OFFSET(InputPriceData!E$15,CalculationsAndCharts!$A178+$A$11,IF($C$7,8,0),1,1) -> 465.26 | G178: =OFFSET(InputPriceData!F$15,CalculationsAndCharts!$A178+$A$11,IF($C$7,8,0),1,1) -> 466.21 | H178: 3.95 | I178: 3.95 | J178: 0 | K178: 3.95 | L178: 5.062686458 | M178: 467.235 | N178: 467.235 | O178: 465.26 | P178: 0 | Q178: 3.95 | R178: 467.235 | S178: 0.8453989962 | T178: 1.106481414
A179: 147 | B179: =OFFSET(InputPriceData!B$15,CalculationsAndCharts!$A179+$A$11,0,1,1) -> 1999-12-16 | C179: =OFFSET(InputPriceData!G$15,CalculationsAndCharts!$A179+$A$11,IF($C$7,8,0),1,1) -> 10703000 | D179: =OFFSET(InputPriceData!C$15,CalculationsAndCharts!$A179+$A$11,IF($C$7,8,0),1,1) -> 461.32 | E179: =OFFSET(InputPriceData!D$15,CalculationsAndCharts!$A179+$A$11,IF($C$7,8,0),1,1) -> 465.26 | F179: =OFFSET(InputPriceData!E$15,CalculationsAndCharts!$A179+$A$11,IF($C$7,8,0),1,1) -> 461.32 | G179: =OFFSET(InputPriceData!F$15,CalculationsAndCharts!$A179+$A$11,IF($C$7,8,0),1,1) -> 465.26 | H179: 3.94 | I179: 3.94 | J179: 0 | K179: 3.94 | L179: 5.148277723 | M179: 463.29 | N179: 463.29 | O179: 461.32 | P179: 0 | Q179: 3.94 | R179: 463.29 | S179: 0.8504392497 | T179: 1.126564677
A180: 148 | B180: =OFFSET(InputPriceData!B$15,CalculationsAndCharts!$A180+$A$11,0,1,1) -> 1999-12-15 | C180: =OFFSET(InputPriceData!G$15,CalculationsAndCharts!$A180+$A$11,IF($C$7,8,0),1,1) -> 10339000 | D180: =OFFSET(InputPriceData!C$15,CalculationsAndCharts!$A180+$A$11,IF($C$7,8,0),1,1) -> 462.74 | E180: =OFFSET(InputPriceData!D$15,CalculationsAndCharts!$A180+$A$11,IF($C$7,8,0),1,1) -> 462.74 | F180: =OFFSET(InputPriceData!E$15,CalculationsAndCharts!$A180+$A$11,IF($C$7,8,0),1,1) -> 455.39 | G180: =OFFSET(InputPriceData!F$15,CalculationsAndCharts!$A180+$A$11,IF($C$7,8,0),1,1) -> 461.32 | H180: 7.35 | I180: 0.01 | J180: 7.36 | K180: 7.36 | L180: 5.241222164 | M180: 459.065 | N180: 462.745 | O180: 459.07 | P180: 2 | Q180: 7.36 | R180: 459.07 | S180: 1.603241336 | T180: 1.147805095
A181: 149 | B181: =OFFSET(InputPriceData!B$15,CalculationsAndCharts!$A181+$A$11,0,1,1) -> 1999-12-14 | C181: =OFFSET(InputPriceData!G$15,CalculationsAndCharts!$A181+$A$11,IF($C$7,8,0),1,1) -> 10278000 | D181: =OFFSET(InputPriceData!C$15,CalculationsAndCharts!$A181+$A$11,IF($C$7,8,0),1,1) -> 470.38 | E181: =OFFSET(InputPriceData!D$15,CalculationsAndCharts!$A181+$A$11,IF($C$7,8,0),1,1) -> 470.86 | F181: =OFFSET(InputPriceData!E$15,CalculationsAndCharts!$A181+$A$11,IF($C$7,8,0),1,1) -> 462.4 | G181: =OFFSET(InputPriceData!F$15,CalculationsAndCharts!$A181+$A$11,IF($C$7,8,0),1,1) -> 462.75 | H181: 8.46 | I181: 0.48 | J181: 7.98 | K181: 8.46 | L181: 5.078239253 | M181: 466.63 | N181: 470.62 | O181: 466.39 | P181: 0 | Q181: 8.46 | R181: 466.63 | S181: 1.812999593 | T181: 1.112771538
A182: 150 | B182: =OFFSET(InputPriceData!B$15,CalculationsAndCharts!$A182+$A$11,0,1,1) -> 1999-12-13 | C182: =OFFSET(InputPriceData!G$15,CalculationsAndCharts!$A182+$A$11,IF($C$7,8,0),1,1) -> 9776000 | D182: =OFFSET(InputPriceData!C$15,CalculationsAndCharts!$A182+$A$11,IF($C$7,8,0),1,1) -> 466.7 | E182: =OFFSET(InputPriceData!D$15,CalculationsAndCharts!$A182+$A$11,IF($C$7,8,0),1,1) -> 470.39 | F182: =OFFSET(InputPriceData!E$15,CalculationsAndCharts!$A182+$A$11,IF($C$7,8,0),1,1) -> 466.33 | G182: =OFFSET(InputPriceData!F$15,CalculationsAndCharts!$A182+$A$11,IF($C$7,8,0),1,1) -> 470.38 | H182: 4.06 | I182: 3.68 | J182: 0.38 | K182: 4.06 | L182: 4.818103811 | M182: 468.36 | N182: 468.55 | O182: 466.52 | P182: 0 | Q182: 4.06 | R182: 468.36 | S182: 0.8668545563 | T182: 1.058907841
A183: 151 | B183: =OFFSET(InputPriceData!B$15,CalculationsAndCharts!$A183+$A$11,0,1,1) -> 1999-12-10 | C183: =OFFSET(InputPriceData!G$15,CalculationsAndCharts!$A183+$A$11,IF($C$7,8,0),1,1) -> 9872000 | D183: =OFFSET(InputPriceData!C$15,CalculationsAndCharts!$A183+$A$11,IF($C$7,8,0),1,1) -> 464.88 | E183: =OFFSET(InputPriceData!D$15,CalculationsAndCharts!$A183+$A$11,IF($C$7,8,0),1,1) -> 467.13 | F183: =OFFSET(InputPriceData!E$15,CalculationsAndCharts!$A183+$A$11,IF($C$7,8,0),1,1) -> 462.67 | G183: =OFFSET(InputPriceData!F$15,CalculationsAndCharts!$A183+$A$11,IF($C$7,8,0),1,1) -> 466.71 | H183: 4.46 | I183: 2.23 | J183: 2.23 | K183: 4.46 | L183: 4.876419489 | M183: 464.9 | N183: 466.015 | O183: 463.785 | P183: 0 | Q183: 4.46 | R183: 464.9 | S183: 0.9593460959 | T183: 1.073681171
A184: 152 | B184: =OFFSET(InputPriceData!B$15,CalculationsAndCharts!$A184+$A$11,0,1,1) -> 1999-12-09 | C184: =OFFSET(InputPriceData!G$15,CalculationsAndCharts!$A184+$A$11,IF($C$7,8,0),1,1) -> 11221000 | D184: =OFFSET(InputPriceData!C$15,CalculationsAndCharts!$A184+$A$11,IF($C$7,8,0),1,1) -> 468.84 | E184: =OFFSET(InputPriceData!D$15,CalculationsAndCharts!$A184+$A$11,IF($C$7,8,0),1,1) -> 471.76 | F184: =OFFSET(InputPriceData!E$15,CalculationsAndCharts!$A184+$A$11,IF($C$7,8,0),1,1) -> 460.52 | G184: =OFFSET(InputPriceData!F$15,CalculationsAndCharts!$A184+$A$11,IF($C$7,8,0),1,1) -> 464.9 | H184: 11.24 | I184: 2.92 | J184: 8.32 | K184: 11.24 | L184: 4.908451757 | M184: 466.14 | N184: 470.3 | O184: 464.68 | P184: 0 | Q184: 11.24 | R184: 466.14 | S184: 2.411292745 | T184: 1.082476177
A185: 153 | B185: =OFFSET(InputPriceData!B$15,CalculationsAndCharts!$A185+$A$11,0,1,1) -> 1999-12-08 | C185: =OFFSET(InputPriceData!G$15,CalculationsAndCharts!$A185+$A$11,IF($C$7,8,0),1,1) -> 9570000 | D185: =OFFSET(InputPriceData!C$15,CalculationsAndCharts!$A185+$A$11,IF($C$7,8,0),1,1) -> 465.7 | E185: =OFFSET(InputPriceData!D$15,CalculationsAndCharts!$A185+$A$11,IF($C$7,8,0),1,1) -> 468.84 | F185: =OFFSET(InputPriceData!E$15,CalculationsAndCharts!$A185+$A$11,IF($C$7,8,0),1,1) -> 465.16 | G185: =OFFSET(InputPriceData!F$15,CalculationsAndCharts!$A185+$A$11,IF($C$7,8,0),1,1) -> 468.84 | H185: 3.68 | I185: 3.14 | J185: 0.54 | K185: 3.68 | L185: 4.421409585 | M185: 467 | N185: 467.27 | O185: 465.43 | P185: 0 | Q185: 3.68 | R185: 467 | S185: 0.7880085653 | T185: 0.9802595178
A186: 154 | B186: =OFFSET(InputPriceData!B$15,CalculationsAndCharts!$A186+$A$11,0,1,1) -> 1999-12-07 | C186: =OFFSET(InputPriceData!G$15,CalculationsAndCharts!$A186+$A$11,IF($C$7,8,0),1,1) -> 10858000 | D186: =OFFSET(InputPriceData!C$15,CalculationsAndCharts!$A186+$A$11,IF($C$7,8,0),1,1) -> 465.75 | E186: =OFFSET(InputPriceData!D$15,CalculationsAndCharts!$A186+$A$11,IF($C$7,8,0),1,1) -> 467.29 | F186: =OFFSET(InputPriceData!E$15,CalculationsAndCharts!$A186+$A$11,IF($C$7,8,0),1,1) -> 463.63 | G186: =OFFSET(InputPriceData!F$15,CalculationsAndCharts!$A186+$A$11,IF($C$7,8,0),1,1) -> 465.7 | H186: 3.66 | I186: 1.54 | J186: 2.12 | K186: 3.66 | L186: 4.478441091 | M186: 465.46 | N186: 466.52 | O186: 464.69 | P186: 0 | Q186: 3.66 | R186: 465.46 | S186: 0.7863189103 | T186: 0.9950480526
A187: 155 | B187: =OFFSET(InputPriceData!B$15,CalculationsAndCharts!$A187+$A$11,0,1,1) -> 1999-12-06 | C187: =OFFSET(InputPriceData!G$15,CalculationsAndCharts!$A187+$A$11,IF($C$7,8,0),1,1) -> 9168000 | D187: =OFFSET(InputPriceData!C$15,CalculationsAndCharts!$A187+$A$11,IF($C$7,8,0),1,1) -> 464.58 | E187: =OFFSET(InputPriceData!D$15,CalculationsAndCharts!$A187+$A$11,IF($C$7,8,0),1,1) -> 468.85 | F187: =OFFSET(InputPriceData!E$15,CalculationsAndCharts!$A187+$A$11,IF($C$7,8,0),1,1) -> 464.58 | G187: =OFFSET(InputPriceData!F$15,CalculationsAndCharts!$A187+$A$11,IF($C$7,8,0),1,1) -> 465.75 | H187: 4.27 | I187: 4.27 | J187: 0 | K187: 4.27 | L187: 4.541398098 | M187: 466.715 | N187: 466.715 | O187: 464.58 | P187: 0 | Q187: 4.27 | R187: 466.715 | S187: 0.914905242 | T187: 1.01110414
A188: 156 | B188: =OFFSET(InputPriceData!B$15,CalculationsAndCharts!$A188+$A$11,0,1,1) -> 1999-12-03 | C188: =OFFSET(InputPriceData!G$15,CalculationsAndCharts!$A188+$A$11,IF($C$7,8,0),1,1) -> 10064000 | D188: =OFFSET(InputPriceData!C$15,CalculationsAndCharts!$A188+$A$11,IF($C$7,8,0),1,1) -> 460.44 | E188: =OFFSET(InputPriceData!D$15,CalculationsAndCharts!$A188+$A$11,IF($C$7,8,0),1,1) -> 467.7 | F188: =OFFSET(InputPriceData!E$15,CalculationsAndCharts!$A188+$A$11,IF($C$7,8,0),1,1) -> 460.44 | G188: =OFFSET(InputPriceData!F$15,CalculationsAndCharts!$A188+$A$11,IF($C$7,8,0),1,1) -> 464.58 | H188: 7.26 | I188: 7.26 | J188: 0 | K188: 7.26 | L188: 4.562274875 | M188: 464.07 | N188: 464.07 | O188: 460.44 | P188: 0 | Q188: 7.26 | R188: 464.07 | S188: 1.564419161 | T188: 1.018504056
A189: 157 | B189: =OFFSET(InputPriceData!B$15,CalculationsAndCharts!$A189+$A$11,0,1,1) -> 1999-12-02 | C189: =OFFSET(InputPriceData!G$15,CalculationsAndCharts!$A189+$A$11,IF($C$7,8,0),1,1) -> 9007000 | D189: =OFFSET(InputPriceData!C$15,CalculationsAndCharts!$A189+$A$11,IF($C$7,8,0),1,1) -> 453.67 | E189: =OFFSET(InputPriceData!D$15,CalculationsAndCharts!$A189+$A$11,IF($C$7,8,0),1,1) -> 460.45 | F189: =OFFSET(InputPriceData!E$15,CalculationsAndCharts!$A189+$A$11,IF($C$7,8,0),1,1) -> 453.67 | G189: =OFFSET(InputPriceData!F$15,CalculationsAndCharts!$A189+$A$11,IF($C$7,8,0),1,1) -> 460.44 | H189: 6.78 | I189: 6.78 | J189: 0 | K189: 6.78 | L189: 4.354757558 | M189: 457.06 | N189: 457.06 | O189: 453.67 | P189: 0 | Q189: 6.78 | R189: 457.06 | S189: 1.483393865 | T189: 0.9765105861
A190: 158 | B190: =OFFSET(InputPriceData!B$15,CalculationsAndCharts!$A190+$A$11,0,1,1) -> 1999-12-01 | C190: =OFFSET(InputPriceData!G$15,CalculationsAndCharts!$A190+$A$11,IF($C$7,8,0),1,1) -> 8840000 | D190: =OFFSET(InputPriceData!C$15,CalculationsAndCharts!$A190+$A$11,IF($C$7,8,0),1,1) -> 454.08 | E190: =OFFSET(InputPriceData!D$15,CalculationsAndCharts!$A190+$A$11,IF($C$7,8,0),1,1) -> 454.79 | F190: =OFFSET(InputPriceData!E$15,CalculationsAndCharts!$A190+$A$11,IF($C$7,8,0),1,1) -> 451.81 | G190: =OFFSET(InputPriceData!F$15,CalculationsAndCharts!$A190+$A$11,IF($C$7,8,0),1,1) -> 453.67 | H190: 2.98 | I190: 0.71 | J190: 2.27 | K190: 2.98 | L190: 4.168200447 | M190: 453.3 | N190: 454.435 | O190: 452.945 | P190: 0 | Q190: 2.98 | R190: 453.3 | S190: 0.6574012795 | T190: 0.9375195646
A191: 159 | B191: =OFFSET(InputPriceData!B$15,CalculationsAndCharts!$A191+$A$11,0,1,1) -> 1999-11-30 | C191: =OFFSET(InputPriceData!G$15,CalculationsAndCharts!$A191+$A$11,IF($C$7,8,0),1,1) -> 9515000 | D191: =OFFSET(InputPriceData!C$15,CalculationsAndCharts!$A191+$A$11,IF($C$7,8,0),1,1) -> 456.95 | E191: =OFFSET(InputPriceData!D$15,CalculationsAndCharts!$A191+$A$11,IF($C$7,8,0),1,1) -> 456.95 | F191: =OFFSET(InputPriceData!E$15,CalculationsAndCharts!$A191+$A$11,IF($C$7,8,0),1,1) -> 452.39 | G191: =OFFSET(InputPriceData!F$15,CalculationsAndCharts!$A191+$A$11,IF($C$7,8,0),1,1) -> 454.08 | H191: 4.56 | I191: 0 | J191: 4.56 | K191: 4.56 | L191: 4.259600481 | M191: 454.67 | N191: 456.95 | O191: 454.67 | P191: 0 | Q191: 4.56 | R191: 454.67 | S191: 1.002925198 | T191: 0.959067125
A192: 160 | B192: =OFFSET(InputPriceData!B$15,CalculationsAndCharts!$A192+$A$11,0,1,1) -> 1999-11-29 | C192: =OFFSET(InputPriceData!G$15,CalculationsAndCharts!$A192+$A$11,IF($C$7,8,0),1,1) -> 8661000 | D192: =OFFSET(InputPriceData!C$15,CalculationsAndCharts!$A192+$A$11,IF($C$7,8,0),1,1) -> 458.94 | E192: =OFFSET(InputPriceData!D$15,CalculationsAndCharts!$A192+$A$11,IF($C$7,8,0),1,1) -> 459.93 | F192: =OFFSET(InputPriceData!E$15,CalculationsAndCharts!$A192+$A$11,IF($C$7,8,0),1,1) -> 456.47 | G192: =OFFSET(InputPriceData!F$15,CalculationsAndCharts!$A192+$A$11,IF($C$7,8,0),1,1) -> 456.95 | H192: 3.46 | I192: 0.99 | J192: 2.47 | K192: 3.46 | L192: 4.236492826 | M192: 458.2 | N192: 459.435 | O192: 457.705 | P192: 0 | Q192: 3.46 | R192: 458.2 | S192: 0.7551287647 | T192: 0.955693427
A193: 161 | B193: =OFFSET(InputPriceData!B$15,CalculationsAndCharts!$A193+$A$11,0,1,1) -> 1999-11-26 | C193: =OFFSET(InputPriceData!G$15,CalculationsAndCharts!$A193+$A$11,IF($C$7,8,0),1,1) -> 3121200 | D193: =OFFSET(InputPriceData!C$15,CalculationsAndCharts!$A193+$A$11,IF($C$7,8,0),1,1) -> 455.93 | E193: =OFFSET(InputPriceData!D$15,CalculationsAndCharts!$A193+$A$11,IF($C$7,8,0),1,1) -> 458.95 | F193: =OFFSET(InputPriceData!E$15,CalculationsAndCharts!$A193+$A$11,IF($C$7,8,0),1,1) -> 455.93 | G193: =OFFSET(InputPriceData!F$15,CalculationsAndCharts!$A193+$A$11,IF($C$7,8,0),1,1) -> 458.94 | H193: 3.02 | I193: 3.02 | J193: 0 | K193: 3.02 | L193: 4.296223044 | M193: 457.44 | N193: 457.44 | O193: 455.93 | P193: 0 | Q193: 3.02 | R193: 457.44 | S193: 0.6601958727 | T193: 0.971121478
A194: 162 | B194: =OFFSET(InputPriceData!B$15,CalculationsAndCharts!$A194+$A$11,0,1,1) -> 1999-11-24 | C194: =OFFSET(InputPriceData!G$15,CalculationsAndCharts!$A194+$A$11,IF($C$7,8,0),1,1) -> 7348000 | D194: =OFFSET(InputPriceData!C$15,CalculationsAndCharts!$A194+$A$11,IF($C$7,8,0),1,1) -> 454.45 | E194: =OFFSET(InputPriceData!D$15,CalculationsAndCharts!$A194+$A$11,IF($C$7,8,0),1,1) -> 456.04 | F194: =OFFSET(InputPriceData!E$15,CalculationsAndCharts!$A194+$A$11,IF($C$7,8,0),1,1) -> 451.22 | G194: =OFFSET(InputPriceData!F$15,CalculationsAndCharts!$A194+$A$11,IF($C$7,8,0),1,1) -> 455.93 | H194: 4.82 | I194: 1.59 | J194: 3.23 | K194: 4.82 | L194: 4.394394047 | M194: 453.63 | N194: 455.245 | O194: 452.835 | P194: 0 | Q194: 4.82 | R194: 453.63 | S194: 1.062539955 | T194: 0.9950388322
A195: 163 | B195: =OFFSET(InputPriceData!B$15,CalculationsAndCharts!$A195+$A$11,0,1,1) -> 1999-11-23 | C195: =OFFSET(InputPriceData!G$15,CalculationsAndCharts!$A195+$A$11,IF($C$7,8,0),1,1) -> 9261000 | D195: =OFFSET(InputPriceData!C$15,CalculationsAndCharts!$A195+$A$11,IF($C$7,8,0),1,1) -> 460.77 | E195: =OFFSET(InputPriceData!D$15,CalculationsAndCharts!$A195+$A$11,IF($C$7,8,0),1,1) -> 461.69 | F195: =OFFSET(InputPriceData!E$15,CalculationsAndCharts!$A195+$A$11,IF($C$7,8,0),1,1) -> 454.17 | G195: =OFFSET(InputPriceData!F$15,CalculationsAndCharts!$A195+$A$11,IF($C$7,8,0),1,1) -> 454.45 | H195: 7.52 | I195: 0.92 | J195: 6.6 | K195: 7.52 | L195: 4.361655127 | M195: 457.93 | N195: 461.23 | O195: 457.47 | P195: 0 | Q195: 7.52 | R195: 457.93 | S195: 1.642172384 | T195: 0.9898464381
A196: 164 | B196: =OFFSET(InputPriceData!B$15,CalculationsAndCharts!$A196+$A$11,0,1,1) -> 1999-11-22 | C196: =OFFSET(InputPriceData!G$15,CalculationsAndCharts!$A196+$A$11,IF($C$7,8,0),1,1) -> 8735000 | D196: =OFFSET(InputPriceData!C$15,CalculationsAndCharts!$A196+$A$11,IF($C$7,8,0),1,1) -> 461.27 | E196: =OFFSET(InputPriceData!D$15,CalculationsAndCharts!$A196+$A$11,IF($C$7,8,0),1,1) -> 462.4 | F196: =OFFSET(InputPriceData!E$15,CalculationsAndCharts!$A196+$A$11,IF($C$7,8,0),1,1) -> 459.69 | G196: =OFFSET(InputPriceData!F$15,CalculationsAndCharts!$A196+$A$11,IF($C$7,8,0),1,1) -> 460.77 | H196: 2.71 | I196: 1.13 | J196: 1.58 | K196: 2.71 | L196: 4.118705522 | M196: 461.045 | N196: 461.835 | O196: 460.48 | P196: 0 | Q196: 2.71 | R196: 461.045 | S196: 0.5877951176 | T196: 0.9396675192
A197: 165 | B197: =OFFSET(InputPriceData!B$15,CalculationsAndCharts!$A197+$A$11,0,1,1) -> 1999-11-19 | C197: =OFFSET(InputPriceData!G$15,CalculationsAndCharts!$A197+$A$11,IF($C$7,8,0),1,1) -> 8938000 | D197: =OFFSET(InputPriceData!C$15,CalculationsAndCharts!$A197+$A$11,IF($C$7,8,0),1,1) -> 462.04 | E197: =OFFSET(InputPriceData!D$15,CalculationsAndCharts!$A197+$A$11,IF($C$7,8,0),1,1) -> 463.2 | F197: =OFFSET(InputPriceData!E$15,CalculationsAndCharts!$A197+$A$11,IF($C$7,8,0),1,1) -> 460.69 | G197: =OFFSET(InputPriceData!F$15,CalculationsAndCharts!$A197+$A$11,IF($C$7,8,0),1,1) -> 461.27 | H197: 2.51 | I197: 1.16 | J197: 1.35 | K197: 2.51 | L197: 4.227067485 | M197: 461.945 | N197: 462.62 | O197: 461.365 | P197: 0 | Q197: 2.51 | R197: 461.945 | S197: 0.5433547284 | T197: 0.966734627
A198: 166 | B198: =OFFSET(InputPriceData!B$15,CalculationsAndCharts!$A198+$A$11,0,1,1) -> 1999-11-18 | C198: =OFFSET(InputPriceData!G$15,CalculationsAndCharts!$A198+$A$11,IF($C$7,8,0),1,1) -> 10228000 | D198: =OFFSET(InputPriceData!C$15,CalculationsAndCharts!$A198+$A$11,IF($C$7,8,0),1,1) -> 457.07 | E198: =OFFSET(InputPriceData!D$15,CalculationsAndCharts!$A198+$A$11,IF($C$7,8,0),1,1) -> 462.04 | F198: =OFFSET(InputPriceData!E$15,CalculationsAndCharts!$A198+$A$11,IF($C$7,8,0),1,1) -> 457.07 | G198: =OFFSET(InputPriceData!F$15,CalculationsAndCharts!$A198+$A$11,IF($C$7,8,0),1,1) -> 462.04 | H198: 4.97 | I198: 4.97 | J198: 0 | K198: 4.97 | L198: 4.359149599 | M198: 459.555 | N198: 459.555 | O198: 457.07 | P198: 0 | Q198: 4.97 | R198: 459.555 | S198: 1.081480998 | T198: 0.9993023115
A199: 167 | B199: =OFFSET(InputPriceData!B$15,CalculationsAndCharts!$A199+$A$11,0,1,1) -> 1999-11-17 | C199: =OFFSET(InputPriceData!G$15,CalculationsAndCharts!$A199+$A$11,IF($C$7,8,0),1,1) -> 9600000 | D199: =OFFSET(InputPriceData!C$15,CalculationsAndCharts!$A199+$A$11,IF($C$7,8,0),1,1) -> 456.88 | E199: =OFFSET(InputPriceData!D$15,CalculationsAndCharts!$A199+$A$11,IF($C$7,8,0),1,1) -> 458.86 | F199: =OFFSET(InputPriceData!E$15,CalculationsAndCharts!$A199+$A$11,IF($C$7,8,0),1,1) -> 456.88 | G199: =OFFSET(InputPriceData!F$15,CalculationsAndCharts!$A199+$A$11,IF($C$7,8,0),1,1) -> 457.07 | H199: 1.98 | I199: 1.98 | J199: 0 | K199: 1.98 | L199: 4.312161107 | M199: 457.87 | N199: 457.87 | O199: 456.88 | P199: 0 | Q199: 1.98 | R199: 457.87 | S199: 0.4324371547 | T199: 0.9929808741
A200: 168 | B200: =OFFSET(InputPriceData!B$15,CalculationsAndCharts!$A200+$A$11,0,1,1) -> 1999-11-16 | C200: =OFFSET(InputPriceData!G$15,CalculationsAndCharts!$A200+$A$11,IF($C$7,8,0),1,1) -> 9422000 | D200: =OFFSET(InputPriceData!C$15,CalculationsAndCharts!$A200+$A$11,IF($C$7,8,0),1,1) -> 452.97 | E200: =OFFSET(InputPriceData!D$15,CalculationsAndCharts!$A200+$A$11,IF($C$7,8,0),1,1) -> 456.88 | F200: =OFFSET(InputPriceData!E$15,CalculationsAndCharts!$A200+$A$11,IF($C$7,8,0),1,1) -> 452.97 | G200: =OFFSET(InputPriceData!F$15,CalculationsAndCharts!$A200+$A$11,IF($C$7,8,0),1,1) -> 456.88 | H200: 3.91 | I200: 3.91 | J200: 0 | K200: 3.91 | L200: 4.491558115 | M200: 454.925 | N200: 454.925 | O200: 452.97 | P200: 0 | Q200: 3.91 | R200: 454.925 | S200: 0.8594823323 | T200: 1.036099622
A201: 169 | B201: =OFFSET(InputPriceData!B$15,CalculationsAndCharts!$A201+$A$11,0,1,1) -> 1999-11-15 | C201: =OFFSET(InputPriceData!G$15,CalculationsAndCharts!$A201+$A$11,IF($C$7,8,0),1,1) -> 7957000 | D201: =OFFSET(InputPriceData!C$15,CalculationsAndCharts!$A201+$A$11,IF($C$7,8,0),1,1) -> 449.69 | E201: =OFFSET(InputPriceData!D$15,CalculationsAndCharts!$A201+$A$11,IF($C$7,8,0),1,1) -> 452.98 | F201: =OFFSET(InputPriceData!E$15,CalculationsAndCharts!$A201+$A$11,IF($C$7,8,0),1,1) -> 449.69 | G201: =OFFSET(InputPriceData!F$15,CalculationsAndCharts!$A201+$A$11,IF($C$7,8,0),1,1) -> 452.97 | H201: 3.29 | I201: 3.29 | J201: 0 | K201: 3.29 | L201: 4.536293355 | M201: 451.335 | N201: 451.335 | O201: 449.69 | P201: 0 | Q201: 3.29 | R201: 451.335 | S201: 0.7289485637 | T201: 1.049685567
A202: 170 | B202: =OFFSET(InputPriceData!B$15,CalculationsAndCharts!$A202+$A$11,0,1,1) -> 1999-11-12 | C202: =OFFSET(InputPriceData!G$15,CalculationsAndCharts!$A202+$A$11,IF($C$7,8,0),1,1) -> 9002000 | D202: =OFFSET(InputPriceData!C$15,CalculationsAndCharts!$A202+$A$11,IF($C$7,8,0),1,1) -> 447.49 | E202: =OFFSET(InputPriceData!D$15,CalculationsAndCharts!$A202+$A$11,IF($C$7,8,0),1,1) -> 449.71 | F202: =OFFSET(InputPriceData!E$15,CalculationsAndCharts!$A202+$A$11,IF($C$7,8,0),1,1) -> 444.06 | G202: =OFFSET(InputPriceData!F$15,CalculationsAndCharts!$A202+$A$11,IF($C$7,8,0),1,1) -> 449.69 | H202: 5.65 | I202: 2.22 | J202: 3.43 | K202: 5.65 | L202: 4.632162074 | M202: 446.885 | N202: 448.6 | O202: 445.775 | P202: 0 | Q202: 5.65 | R202: 446.885 | S202: 1.264307372 | T202: 1.074357644
A203: 171 | B203: =OFFSET(InputPriceData!B$15,CalculationsAndCharts!$A203+$A$11,0,1,1) -> 1999-11-11 | C203: =OFFSET(InputPriceData!G$15,CalculationsAndCharts!$A203+$A$11,IF($C$7,8,0),1,1) -> 8913000 | D203: =OFFSET(InputPriceData!C$15,CalculationsAndCharts!$A203+$A$11,IF($C$7,8,0),1,1) -> 448.72 | E203: =OFFSET(InputPriceData!D$15,CalculationsAndCharts!$A203+$A$11,IF($C$7,8,0),1,1) -> 450.76 | F203: =OFFSET(InputPriceData!E$15,CalculationsAndCharts!$A203+$A$11,IF($C$7,8,0),1,1) -> 447.09 | G203: =OFFSET(InputPriceData!F$15,CalculationsAndCharts!$A203+$A$11,IF($C$7,8,0),1,1) -> 447.49 | H203: 3.67 | I203: 2.04 | J203: 1.63 | K203: 3.67 | L203: 4.553866849 | M203: 448.925 | N203: 449.74 | O203: 447.905 | P203: 0 | Q203: 3.67 | R203: 448.925 | S203: 0.8175084925 | T203: 1.059746127
A204: 172 | B204: =OFFSET(InputPriceData!B$15,CalculationsAndCharts!$A204+$A$11,0,1,1) -> 1999-11-10 | C204: =OFFSET(InputPriceData!G$15,CalculationsAndCharts!$A204+$A$11,IF($C$7,8,0),1,1) -> 9847000 | D204: =OFFSET(InputPriceData!C$15,CalculationsAndCharts!$A204+$A$11,IF($C$7,8,0),1,1) -> 446.28 | E204: =OFFSET(InputPriceData!D$15,CalculationsAndCharts!$A204+$A$11,IF($C$7,8,0),1,1) -> 449.92 | F204: =OFFSET(InputPriceData!E$15,CalculationsAndCharts!$A204+$A$11,IF($C$7,8,0),1,1) -> 445.78 | G204: =OFFSET(InputPriceData!F$15,CalculationsAndCharts!$A204+$A$11,IF($C$7,8,0),1,1) -> 448.72 | H204: 4.14 | I204: 3.64 | J204: 0.5 | K204: 4.14 | L204: 4.621856607 | M204: 447.85 | N204: 448.1 | O204: 446.03 | P204: 0 | Q204: 4.14 | R204: 447.85 | S204: 0.9244166574 | T204: 1.078379791
A205: 173 | B205: =OFFSET(InputPriceData!B$15,CalculationsAndCharts!$A205+$A$11,0,1,1) -> 1999-11-09 | C205: =OFFSET(InputPriceData!G$15,CalculationsAndCharts!$A205+$A$11,IF($C$7,8,0),1,1) -> 8543000 | D205: =OFFSET(InputPriceData!C$15,CalculationsAndCharts!$A205+$A$11,IF($C$7,8,0),1,1) -> 445.07 | E205: =OFFSET(InputPriceData!D$15,CalculationsAndCharts!$A205+$A$11,IF($C$7,8,0),1,1) -> 447.81 | F205: =OFFSET(InputPriceData!E$15,CalculationsAndCharts!$A205+$A$11,IF($C$7,8,0),1,1) -> 443.79 | G205: =OFFSET(InputPriceData!F$15,CalculationsAndCharts!$A205+$A$11,IF($C$7,8,0),1,1) -> 446.28 | H205: 4.02 | I205: 2.74 | J205: 1.28 | K205: 4.02 | L205: 4.6589225 | M205: 445.8 | N205: 446.44 | O205: 444.43 | P205: 0 | Q205: 4.02 | R205: 445.8 | S205: 0.9017496635 | T205: 1.090223109
A206: 174 | B206: =OFFSET(InputPriceData!B$15,CalculationsAndCharts!$A206+$A$11,0,1,1) -> 1999-11-08 | C206: =OFFSET(InputPriceData!G$15,CalculationsAndCharts!$A206+$A$11,IF($C$7,8,0),1,1) -> 8068000 | D206: =OFFSET(InputPriceData!C$15,CalculationsAndCharts!$A206+$A$11,IF($C$7,8,0),1,1) -> 442.41 | E206: =OFFSET(InputPriceData!D$15,CalculationsAndCharts!$A206+$A$11,IF($C$7,8,0),1,1) -> 445.13 | F206: =OFFSET(InputPriceData!E$15,CalculationsAndCharts!$A206+$A$11,IF($C$7,8,0),1,1) -> 441.34 | G206: =OFFSET(InputPriceData!F$15,CalculationsAndCharts!$A206+$A$11,IF($C$7,8,0),1,1) -> 445.07 | H206: 3.79 | I206: 2.72 | J206: 1.07 | K206: 3.79 | L206: 4.708070384 | M206: 443.235 | N206: 443.77 | O206: 441.875 | P206: 0 | Q206: 3.79 | R206: 443.235 | S206: 0.855076878 | T206: 1.104721066
A207: 175 | B207: =OFFSET(InputPriceData!B$15,CalculationsAndCharts!$A207+$A$11,0,1,1) -> 1999-11-05 | C207: =OFFSET(InputPriceData!G$15,CalculationsAndCharts!$A207+$A$11,IF($C$7,8,0),1,1) -> 10073000 | D207: =OFFSET(InputPriceData!C$15,CalculationsAndCharts!$A207+$A$11,IF($C$7,8,0),1,1) -> 439.9 | E207: =OFFSET(InputPriceData!D$15,CalculationsAndCharts!$A207+$A$11,IF($C$7,8,0),1,1) -> 444.37 | F207: =OFFSET(InputPriceData!E$15,CalculationsAndCharts!$A207+$A$11,IF($C$7,8,0),1,1) -> 439.9 | G207: =OFFSET(InputPriceData!F$15,CalculationsAndCharts!$A207+$A$11,IF($C$7,8,0),1,1) -> 442.41 | H207: 4.47 | I207: 4.47 | J207: 0 | K207: 4.47 | L207: 4.778691183 | M207: 442.135 | N207: 442.135 | O207: 439.9 | P207: 0 | Q207: 4.47 | R207: 442.135 | S207: 1.011003427 | T207: 1.123924465
A208: 176 | B208: =OFFSET(InputPriceData!B$15,CalculationsAndCharts!$A208+$A$11,0,1,1) -> 1999-11-04 | C208: =OFFSET(InputPriceData!G$15,CalculationsAndCharts!$A208+$A$11,IF($C$7,8,0),1,1) -> 9817000 | D208: =OFFSET(InputPriceData!C$15,CalculationsAndCharts!$A208+$A$11,IF($C$7,8,0),1,1) -> 438.46 | E208: =OFFSET(InputPriceData!D$15,CalculationsAndCharts!$A208+$A$11,IF($C$7,8,0),1,1) -> 442.39 | F208: =OFFSET(InputPriceData!E$15,CalculationsAndCharts!$A208+$A$11,IF($C$7,8,0),1,1) -> 438.46 | G208: =OFFSET(InputPriceData!F$15,CalculationsAndCharts!$A208+$A$11,IF($C$7,8,0),1,1) -> 439.9 | H208: 3.93 | I208: 3.93 | J208: 0 | K208: 3.93 | L208: 4.802436659 | M208: 440.425 | N208: 440.425 | O208: 438.46 | P208: 0 | Q208: 3.93 | R208: 440.425 | S208: 0.8923199183 | T208: 1.132610699
... 2324 more rows

Sheet Follow
A1: Stocks and Indexes I wish to follow
A3: To ease following a stock, enter a Yahoo Finance acceptable symbol in column "A" anywhere below cell "A9".
A4: Thereafter you may doubleclick the cell containing a symbol of interest to initiate data retrieval and charting for that symbol.
A7: Symbol
A8: To | B8: Description | C8: Last Trade as of most recent check
A9: Follow | C9: Date | D9: Time | E9: Open | F9: High | G9: Low | H9: Close | I9: Volume | J9: Change
A10: A | B10: Agilent Technolog (A) -NYSE (Daily) | C10: 2015-02-02 | D10: 16:03:00 | E10: 37.9 | F10: 38.76 | G10: 37.71 | H10: 38.69 | I10: 2508493 | J10: 0.92
A11: AAL | B11: American Airlines (AAL) -NasdaqNM (Daily) | C11: 2015-02-19 | D11: 16:00:00 | E11: 50.73 | F11: 50.8 | G11: 49.59 | H11: 49.78 | I11: 11462722 | J11: 0.47
A12: ADM | B12: Archer-Daniels-Mi (ADM) -NYSE (Daily) | C12: 2015-02-02 | D12: 16:00:00 | E12: 46.79 | F12: 48.195 | G12: 46.72 | H12: 48.17 | I12: 6479474 | J12: 1.54
A13: AMC | B13: AMC Entertainment Holdings, Inc (AMC) -NYQ (Daily) | C13: 2015-09-04 | D13: 16:00:00 | E13: 27.14 | F13: 27.95 | G13: 26.99 | H13: 27.71 | I13: 167990 | J13: 0.28
A14: BSX | B14: Boston Scientific Corporation C (BSX) -NYQ (Daily) | C14: 2015-03-13 | D14: 16:01:00 | E14: 16.84 | F14: 16.91 | G14: 16.44 | H14: 16.61 | I14: 7262460 | J14: -0.28
A15: CASY | B15: Caseys General Stores, Inc. (CASY) -NMS (Daily) | C15: 2015-03-13 | D15: 16:00:00 | E15: 89.6 | F15: 89.6 | G15: 87.55 | H15: 88 | I15: 283264 | J15: -1.26
A16: CSCO | B16: Cisco Systems, In (CSCO) -NasdaqNM (Daily) | C16: 2015-02-19 | D16: 16:00:00 | E16: 29.32 | F16: 29.39 | G16: 29.13 | H16: 29.31 | I16: 21469012 | J16: -0.18
A17: CVS | B17: CVS Health Corpor (CVS) -NYSE (Daily) | C17: 2015-02-02 | D17: 16:01:00 | E17: 98.34 | F17: 99.22 | G17: 97.06 | H17: 99.11 | I17: 4416094 | J17: 0.95
A18: DIS | B18: Walt Disney Compa (DIS) -NYSE (Daily) | C18: 2015-02-26 | D18: 16:00:00 | E18: 105.5 | F18: 105.71 | G18: 104.14 | H18: 104.56 | I18: 5044969 | J18: -1.01
A19: EMC | B19: EMC Corporation C (EMC) -NYSE (Daily) | C19: 2015-02-19 | D19: 16:00:00 | E19: 28.26 | F19: 28.83 | G19: 28.19 | H19: 28.72 | I19: 11049079 | J19: 0.52
A20: F | B20: Ford Motor Company Common Stock (F) -NYQ (Daily) | C20: 2015-08-10 | D20: 16:00:00 | E20: 14.86 | F20: 15 | G20: 14.81 | H20: 14.99 | I20: 16804929 | J20: 0.19
A21: GSK | B21: GlaxoSmithKline P (GSK) -NYSE (Daily) | C21: 2015-02-02 | D21: 16:01:00 | E21: 44.11 | F21: 44.12 | G21: 43.71 | H21: 43.96 | I21: 3654466 | J21: -0.04
A22: HSY | B22: The Hershey Compa (HSY) -NYSE (Daily) | C22: 2015-02-19 | D22: 16:02:00 | E22: 106.97 | F22: 107.31 | G22: 105.42 | H22: 105.95 | I22: 1448321 | J22: -1
A23: HTLD | B23: Heartland Express (HTLD) -NasdaqNM (Daily) | C23: 2015-02-02 | D23: 16:00:00 | E23: 25.68 | F23: 25.81 | G23: 25.36 | H23: 25.62 | I23: 542510 | J23: -0.07
A24: IBM | B24: International Bus (IBM) -NYSE (Daily) | C24: 2015-02-02 | D24: 16:01:00 | E24: 154 | F24: 154.66 | G24: 151.51 | H24: 154.66 | I24: 4712247 | J24: 1.35
A25: INTC | B25: Intel Corporation (INTC) -NasdaqNM (Daily) | C25: 2015-02-19 | D25: 16:00:00 | E25: 34.25 | F25: 34.42 | G25: 34.05 | H25: 34.21 | I25: 11017541 | J25: -0.055
A26: JNJ | B26: Johnson & Johnson (JNJ) -NYSE (Daily) | C26: 2015-02-19 | D26: 16:00:00 | E26: 99.98 | F26: 100.84 | G26: 99.61 | H26: 100.7 | I26: 10022266 | J26: 0.74
A27: KO | B27: Coca-Cola Company (The) Common (KO) -NYQ (Daily) | C27: 2015-08-10 | D27: 16:00:00 | E27: 41.89 | F27: 41.99 | G27: 41.58 | H27: 41.68 | I27: 9501875 | J27: -0.09
A28: LHO | B28: LaSalle Hotel Pro (LHO) -NYSE (Daily) | C28: 2015-02-02 | D28: 16:06:00 | E28: 40.51 | F28: 40.74 | G28: 39.46 | H28: 40.26 | I28: 1034675 | J28: -0.2
A29: LINE | B29: Linn Energy, LLC (LINE) -NasdaqNM (Daily) | C29: 2015-02-02 | D29: 16:00:00 | E29: 10.4 | F29: 10.78 | G29: 10.25 | H29: 10.77 | I29: 3766537 | J29: 0.51
A30: LO | B30: Lorillard, Inc Co (LO) -NYSE (Daily) | C30: 2015-02-02 | D30: 16:03:00 | E30: 65.71 | F30: 66.29 | G30: 65.43 | H30: 66.29 | I30: 1563618 | J30: 0.68
A31: MCD | B31: McDonald's Corpor (MCD) -NYSE (Daily) | C31: 2015-03-03 | D31: 13:36:00 | E31: 99.89 | F31: 100.44 | G31: 99.57 | H31: 99.93 | I31: 5222757 | J31: -0.07
A32: MDT | B32: Medtronic plc. Or (MDT) -NYSE (Daily) | C32: 2015-02-19 | D32: 16:01:00 | E32: 78.59 | F32: 78.59 | G32: 77.85 | H32: 78.13 | I32: 6900528 | J32: -0.37
A33: MGM | B33: MGM Resorts Inter (MGM) -NYSE (Daily) | C33: 2015-02-02 | D33: 16:00:00 | E33: 19.44 | F33: 19.75 | G33: 19.12 | H33: 19.74 | I33: 7570281 | J33: 0.26
A34: MO | B34: Altria Group, Inc (MO) -NYSE (Daily) | C34: 2015-02-02 | D34: 16:01:00 | E34: 53.25 | F34: 53.84 | G34: 52.98 | H34: 53.8 | I34: 9183582 | J34: 0.7
A35: MSFT | B35: Microsoft Corpora (MSFT) -NasdaqNM (Daily) | C35: 2015-02-20 | D35: 16:00:00 | E35: 43.51 | F35: 43.88 | G35: 43.29 | H35: 43.855 | I35: 29721132 | J35: 0.355
A36: NVS | B36: Novartis AG Commo (NVS) -NYSE (Daily) | C36: 2015-02-19 | D36: 16:05:00 | E36: 102.32 | F36: 102.7 | G36: 102.001 | H36: 102.25 | I36: 931036 | J36: 0.08
A37: PRU | B37: Prudential Financ (PRU) -NYSE (Daily) | C37: 2015-02-23 | D37: 12:22:00 | E37: 80.25 | F37: 80.4499 | G37: 79.8 | H37: 80.12 | I37: 1604052 | J37: -0.69
A38: PSEC | B38: Prospect Capital Corporation (PSEC) -NMS (Daily) | C38: 2015-08-10 | D38: 16:00:00 | E38: 7.14 | F38: 7.28 | G38: 7.14 | H38: 7.23 | I38: 2132354 | J38: 0.09
A39: RAI | B39: Reynolds American (RAI) -NYSE (Daily) | C39: 2015-02-02 | D39: 16:03:00 | E39: 68.12 | F39: 69.06 | G39: 67.4346 | H39: 69.05 | I39: 1822013 | J39: 1.1
A40: RPM | B40: RPM International Inc. (RPM) -NYSE | C40: 2015-09-08 | D40: 15:01:00 | E40: 43.55 | F40: 43.96 | G40: 43.3 | H40: 43.94 | I40: 114939 | J40: 1.11 | K40: Owns Rust-Oleum
A41: RSP | B41: Guggenheim S&P 50 (RSP) -PCX (Daily) | C41: 2015-02-02 | D41: 16:00:00 | E41: 78.04 | F41: 78.81 | G41: 77.16 | H41: 78.55 | I41: 4156915 | J41: 0.838
A42: SONC | B42: Sonic Corp. (SONC) -NasdaqNM (Daily) | C42: 2015-03-04 | D42: 11:53:00 | E42: 33.65 | F42: 34.05 | G42: 33.44 | H42: 33.77 | I42: 174036 | J42: -0.09
A43: SWKS | B43: Skyworks Solution (SWKS) -NasdaqNM (Daily) | C43: 2015-02-02 | D43: 16:00:00 | E43: 83.07 | F43: 83.73 | G43: 80.15 | H43: 82.02 | I43: 4119001 | J43: -1.03
A44: TOL | B44: Toll Brothers Inc (TOL) -NYSE (Daily) | C44: 2015-02-23 | D44: 12:23:00 | E44: 37.56 | F44: 37.77 | G44: 37.1 | H44: 37.36 | I44: 1521944 | J44: -0.29
A45: UNP | B45: Union Pacific Cor (UNP) -NYSE (Daily) | C45: 2015-02-02 | D45: 16:10:00 | E45: 118.13 | F45: 119.06 | G45: 116.7 | H45: 119.01 | I45: 3259594 | J45: 1.8
A46: VZ | B46: Verizon Communica (VZ) -NYSE (Daily) | C46: 2015-02-23 | D46: 12:22:00 | E46: 48.94 | F46: 49 | G46: 48.54 | H46: 48.825 | I46: 4204644 | J46: -0.145
A47: WBA | B47: (WBA) -NasdaqNM (Daily) | C47: 2015-02-02 | D47: 16:00:00 | E47: 73.06 | F47: 74.98 | G47: 73 | H47: 74.89 | I47: 4247395 | J47: 1.14
A48: WMT | B48: Wal-Mart Stores Inc. (WMT) -NYSE | C48: 2015-09-08 | D48: 14:34:00 | E48: 65.23 | F48: 66.38 | G48: 65.2 | H48: 66.29 | I48: 12351247 | J48: 2.4
A50: ^NDX | B50: NASDAQ-100 (^NDX) -NIM (Daily) | C50: 2015-08-10 | D50: 17:15:00 | E50: 4558.68 | F50: 4583.63 | G50: 4554.63 | H50: 4573.11 | I50: 0 | J50: 53.03
A51: ^DJI | B51: Dow Jones Industrial Average (^DJI) -DJI | C51: 2015-09-08 | D51: 15:16:00 | E51: 16109.93 | F51: 16478.33 | G51: 16109.93 | H51: 16450.73 | I51: 0 | J51: 348.35
A52: SPY | B52: SPDR S&P 500 (SPY) -PCX (Daily) | C52: 2015-08-10 | D52: 15:38:00 | E52: 209.28 | F52: 210.67 | G52: 209.28 | H52: 210.41 | I52: 38534278 | J52: 2.46
A53: ^GSPC | B53: S&P 500 (^GSPC) -SNP (Daily) | C53: 2015-09-04 | D53: 16:30:00 | E53: 1947.76 | F53: 1947.76 | G53: 1911.21 | H53: 1921.22 | I53: 665450828 | J53: -29.91
A54: ^RUT | B54: Russell 2000 (^RUT) -WCB (Daily) | C54: 2015-09-09 | D54: 11:10:00 | E54: 1162.720581 | F54: 1170.204712 | G54: 1155.904419 | H54: 1158.366333 | I54: 0 | J54: -3.396606
A55: ^VIX | B55: VOLATILITY S&P 500 (^VIX) -WCB (Daily) | C55: 2015-08-07 | D55: 16:14:00 | E55: 13.57 | F55: 14.58 | G55: 13.29 | H55: 13.39 | I55: 0 | J55: -0.38
A58: ACAD | B58: ACADIA Pharmaceut (ACAD) -NasdaqNM (Daily) | C58: 2014-07-21 | D58: 16:00:00 | E58: 20.13 | F58: 20.55 | G58: 19.8101 | H58: 20.31 | I58: 691016
A59: CLDX | B59: Celldex Therapeut (CLDX) -NasdaqNM (Daily) | C59: 2015-02-02 | D59: 16:00:00 | E59: 21.47 | F59: 21.69 | G59: 20.11 | H59: 21.02 | I59: 1570418 | J59: -0.4
A60: ICPT | B60: Intercept Pharmac (ICPT) -NasdaqNM (Daily) | C60: 2014-07-21 | D60: 16:00:00 | E60: 215.97 | F60: 218.43 | G60: 213.05 | H60: 218.14 | I60: 191276
A61: INO | B61: Inovio Pharmaceut (INO) -AMEX (Daily) | C61: 2014-07-21 | D61: 16:00:00 | E61: 10.3 | F61: 11.08 | G61: 10.1 | H61: 11.01 | I61: 1800796
A62: JCP | B62: J.C. Penney Compa (JCP) -NYSE (Daily) | C62: 2015-02-02 | D62: 16:01:00 | E62: 7.16 | F62: 7.44 | G62: 7.01 | H62: 7.43 | I62: 12772679 | J62: 0.16
A63: LCI | B63: Lannett Co Inc Co (LCI) -NYSE (Daily) | C63: 2014-07-21 | D63: 16:02:00 | E63: 38.09 | F63: 38.803 | G63: 36.5101 | H63: 37.76 | I63: 611367
A64: NPSP | B64: NPS Pharmaceutica (NPSP) -NasdaqNM (Daily) | C64: 2014-07-21 | D64: 15:59:00 | E64: 28.75 | F64: 29.43 | G64: 28.31 | H64: 29.29 | I64: 1126758
A65: PBYI | B65: Puma Biotechnolog (PBYI) -NYSE (Daily) | C65: 2014-07-21 | D65: 16:02:00 | E65: 58.27 | F65: 59.46 | G65: 57.39 | H65: 58.98 | I65: 348030
